Workbook

Sheet test (hidden)
A1: Խումբ | B1: ՑՈՒՑԱՆԻՇՆԵՐ | C1: Չոր նյութ /կգ | D1: Կերի միավոր | E1: Փոխ. Էներգ. /մջ | F1: Հում պրոտեին /գ | G1: Մարսելի պրոտեին/գ | H1: Թաղանթանյութ /գ | I1: Օսլա /գ | J1: Շաքար /գ | K1: Հում ճարպ /գ | L1: Կալցիում /գ | M1: Ֆոսֆոր /գ | N1: Կարոտին /մգ | O1: D վիտամին /հազ.ԱՄ | P1: E վիտամին /մգ
A2: ԽՈՏ | B2: աշորայի | C2: 879 | D2: 0.52 | E2: 7.34 | F2: 81 | G2: 50 | H2: 300 | I2: 12 | J2: 75 | K2: 19 | L2: 3.5 | M2: 1.5 | N2: 10 | O2: 0 | P2: 0
A3: ԽՈՏ | B3: կորնգանի | C3: 830 | D3: 0.5 | E3: 7.41 | F3: 140 | G3: 99 | H3: 242 | I3: 9 | J3: 20 | K3: 25 | L3: 10.8 | M3: 2.4 | N3: 44 | O3: 310 | P3: 128
A4: ԽՈՏ | B4: երեքնուկի | C4: 830 | D4: 0.52 | E4: 7.23 | F4: 127 | G4: 78 | H4: 244 | I4: 8 | J4: 25 | K4: 25 | L4: 9.2 | M4: 2.2 | N4: 25 | O4: 350 | P4: 100
A5: ԽՈՏ | B5: վիկ վարսակի | C5: 830 | D5: 0.45 | E5: 6.8 | F5: 117 | G5: 67 | H5: 266 | I5: 10 | J5: 27 | K5: 23 | L5: 6.5 | M5: 2.9 | N5: 15 | O5: 250 | P5: 63
A6: ԽՈՏ | B6: մարգագետ. Շյուղախոտ | C6: 862 | D6: 0.44 | E6: 6.5 | F6: 78 | G6: 34 | H6: 285 | I6: 12 | J6: 26 | K6: 23 | L6: 3.7 | M6: 2.1 | N6: 15 | O6: 0 | P6: 0
A7: ԽՈՏ | B7: երեքնուկի սիզախոտ | C7: 830 | D7: 0.47 | E7: 6.76 | F7: 98 | G7: 53 | H7: 265 | I7: 11 | J7: 26 | K7: 25 | L7: 7.6 | M7: 2.5 | N7: 0 | O7: 5 | P7: 190
A8: ԾՂՈՏ | B8: աշնանացան ցորեն | C8: 846 | D8: 0.2 | E8: 4.76 | F8: 37 | G8: 5 | H8: 364 | I8: 0 | J8: 3 | K8: 13 | L8: 2.8 | M8: 0.8 | N8: 0 | O8: 4 | P8: 0
A9: ԾՂՈՏ | B9: գարնան. ցորեն | C9: 849 | D9: 0.22 | E9: 4.91 | F9: 46 | G9: 9 | H9: 351 | I9: 0 | J9: 3 | K9: 15 | L9: 3.3 | M9: 0.9 | N9: 0 | O9: 10 | P9: 0.5
A10: ԾՂՈՏ | B10: գարու | C10: 830 | D10: 0.34 | E10: 5.71 | F10: 49 | G10: 13 | H10: 331 | I10: 0 | J10: 2.4 | K10: 19 | L10: 3.3 | M10: 0.8 | N10: 0 | O10: 5 | P10: 0
A11: ԾՂՈՏ | B11: վարսակի | C11: 830 | D11: 0.31 | E11: 5.38 | F11: 39 | G11: 17 | H11: 324 | I11: 4.4 | J11: 4 | K11: 17 | L11: 3.4 | M11: 1 | N11: 0 | O11: 0 | P11: 0
A12: ԾՂՈՏ | B12: երեքնուկի | C12: 806 | D12: 0.17 | E12: 4.58 | F12: 65 | G12: 28 | H12: 348 | I12: 0 | J12: 2 | K12: 16 | L12: 8.6 | M12: 1.8 | N12: 3 | O12: 10 | P12: 0
A13: ԾՂՈՏ | B13: ոլոռի | C13: 844 | D13: 0.3 | E13: 5.66 | F13: 74 | G13: 35 | H13: 330 | I13: 0 | J13: 1.5 | K13: 17 | L13: 11.2 | M13: 1.4 | N13: 3 | O13: 10 | P13: 0
A14: ԾՂՈՏ | B14: վիկ վարսակի | C14: 850 | D14: 0.28 | E14: 5.74 | F14: 67 | G14: 29 | H14: 367 | I14: 0 | J14: 2.3 | K14: 17 | L14: 7.8 | M14: 2.1 | N14: 1 | O14: 7 | P14: 0
A15: ԽՈՏԱԼՅՈՒՐ | B15: երեքնուկի | C15: 830 | D15: 0.59 | E15: 6.99 | F15: 141 | G15: 60 | H15: 249 | I15: 24 | J15: 45 | K15: 25 | L15: 9.6 | M15: 2.1 | N15: 40 | O15: 600 | P15: 129
A16: ԽՈՏԱԼՅՈՒՐ | B16: առվույտի | C16: 830 | D16: 0.63 | E16: 6.8 | F16: 161 | G16: 89 | H16: 257 | I16: 28 | J16: 50 | K16: 23 | L16: 14.4 | M16: 2.9 | N16: 50 | O16: 600 | P16: 143
A17: ԽՈՏԱԼՅՈՒՐ | B17: վիկ վարսակի | C17: 830 | D17: 0.53 | E17: 7.04 | F17: 133 | G17: 66 | H17: 241 | I17: 26 | J17: 55 | K17: 21 | L17: 9.5 | M17: 3 | N17: 25 | O17: 600 | P17: 80
A18: ԿԱՆԱՉԻ ԱԼՅՈՒՐ | B18: վիկ վարսակի | C18: 900 | D18: 0.66 | E18: 8 | F18: 165 | G18: 106 | H18: 244 | I18: 27 | J18: 70 | K18: 33 | L18: 13.3 | M18: 3 | N18: 140 | O18: 80 | P18: 80
A19: ԿԱՆԱՉԻ ԱԼՅՈՒՐ | B19: երեքնուկի | C19: 900 | D19: 0.71 | E19: 8.41 | F19: 171 | G19: 94 | H19: 207 | I19: 22 | J19: 20 | K19: 31 | L19: 14 | M19: 2.9 | N19: 170 | O19: 80 | P19: 65
A20: ԿԱՆԱՉԻ ԱԼՅՈՒՐ | B20: առվույտի | C20: 900 | D20: 0.72 | E20: 8.62 | F20: 189 | G20: 119 | H20: 211 | I20: 26 | J20: 40 | K20: 29 | L20: 17.3 | M20: 3 | N20: 200 | O20: 100 | P20: 93.5
A21: ՄՂԵՂ | B21: աշնանացան ցորենի | C21: 840 | D21: 0.31 | E21: 4.6 | F21: 72 | G21: 22 | H21: 289 | I21: 0 | J21: 8 | K21: 18 | L21: 4.2 | M21: 2.7 | N21: 5 | O21: 12 | P21: 0
A22: ՍԻԼՈՍ | B22: այլատեսակ | C22: 250 | D22: 0.15 | E22: 1.78 | F22: 33 | G22: 16 | H22: 86 | I22: 2 | J22: 3 | K22: 13 | L22: 2.1 | M22: 0.6 | N22: 10 | O22: 65 | P22: 40
A23: ՍԻԼՈՍ | B23: եգիպտացորենի | C23: 250 | D23: 0.2 | E23: 2.3 | F23: 25 | G23: 14 | H23: 75 | I23: 8 | J23: 6 | K23: 10 | L23: 1.4 | M23: 0.4 | N23: 27 | O23: 50 | P23: 46
A24: ՍԻԼՈՍ | B24: արևածաղկի | C24: 250 | D24: 0.18 | E24: 2.1 | F24: 23 | G24: 15 | H24: 83 | I24: 7 | J24: 4 | K24: 13 | L24: 3.6 | M24: 1.6 | N24: 17 | O24: 65 | P24: 22
A25: ՍԻԼՈՍ | B25: վիկ վարսակի | C25: 250 | D25: 0.23 | E25: 2.45 | F25: 34 | G25: 24 | H25: 77 | I25: 3 | J25: 4 | K25: 15 | L25: 1.9 | M25: 0.9 | N25: 20 | O25: 125 | P25: 18
A26: ՍԻԼՈՍ | B26: ոլոռ վարսակի | C26: 250 | D26: 0.21 | E26: 2.14 | F26: 38 | G26: 28 | H26: 80 | I26: 3 | J26: 4 | K26: 14 | L26: 2.2 | M26: 1 | N26: 22 | O26: 80 | P26: 62
A27: ՍԻԼՈՍ | B27: կոմբինացված՝ եգ., ճակ., առվ., | C27: 250 | D27: 0.24 | E27: 2.82 | F27: 25 | G27: 20 | H27: 39 | I27: 0 | J27: 0 | K27: 5 | L27: 0.9 | M27: 0.5 | N27: 4.3 | O27: 13.5 | P27: 87
A28: ՍԵՆԱԺ | B28: առվույտի | C28: 450 | D28: 0.35 | E28: 4.19 | F28: 103 | G28: 71 | H28: 127 | I28: 12 | J28: 19 | K28: 17 | L28: 10.9 | M28: 1 | N28: 40 | O28: 165 | P28: 25
A29: ՍԵՆԱԺ | B29: երեքնուկի | C29: 450 | D29: 0.34 | E29: 3.84 | F29: 54 | G29: 33 | H29: 143 | I29: 10 | J29: 16 | K29: 12 | L29: 5.5 | M29: 0.6 | N29: 35 | O29: 185 | P29: 128
A30: ՍԵՆԱԺ | B30: վիկ վարսակի | C30: 450 | D30: 0.32 | E30: 3.68 | F30: 54 | G30: 38 | H30: 148 | I30: 14 | J30: 22 | K30: 13 | L30: 2.8 | M30: 1.4 | N30: 30 | O30: 160 | P30: 45
A31: ՍԵՆԱԺ | B31: ոլոռ վարսակի | C31: 450 | D31: 0.46 | E31: 4.44 | F31: 52 | G31: 39 | H31: 139 | I31: 19 | J31: 18 | K31: 11 | L31: 3.7 | M31: 1.6 | N31: 30 | O31: 120 | P31: 50
A32: ՍԵՆԱԺ | B32: այլատեսակ | C32: 450 | D32: 0.29 | E32: 3.44 | F32: 46 | G32: 23 | H32: 157 | I32: 15 | J32: 23 | K32: 10 | L32: 4.9 | M32: 1.3 | N32: 25 | O32: 180 | P32: 35
A33: ԱՐՄԱՏԱՊԱԼԱՐԱՊՏՈՒՂ | B33: կարտոֆիլ | C33: 220 | D33: 0.3 | E33: 2.82 | F33: 18 | G33: 10 | H33: 8 | I33: 140 | J33: 10.5 | K33: 1 | L33: 0.2 | M33: 0.5 | N33: 0.2 | O33: 0 | P33: 0.8
A34: ԱՐՄԱՏԱՊԱԼԱՐԱՊՏՈՒՂ | B34: կերի ճակնդեղ | C34: 120 | D34: 0.12 | E34: 1.65 | F34: 13 | G34: 9 | H34: 9 | I34: 3 | J34: 40 | K34: 1 | L34: 0.4 | M34: 0.5 | N34: 0.2 | O34: 0 | P34: 0.7
A35: ԱՐՄԱՏԱՊԱԼԱՐԱՊՏՈՒՂ | B35: կիսաշաքար ճակնդ. | C35: 170 | D35: 0.17 | E35: 2.15 | F35: 16 | G35: 9 | H35: 11 | I35: 4 | J35: 80 | K35: 1 | L35: 0.9 | M35: 0.4 | N35: 0.3 | O35: 0 | P35: 0.5
A36: ԱՐՄԱՏԱՊԱԼԱՐԱՊՏՈՒՂ | B36: շաքարի ճակնդեղ | C36: 230 | D36: 0.24 | E36: 2.84 | F36: 16 | G36: 7 | H36: 14 | I36: 6 | J36: 120 | K36: 2 | L36: 0.5 | M36: 0.5 | N36: 0.3 | O36: 0 | P36: 0.4
A37: ԱՐՄԱՏԱՊԱԼԱՐԱՊՏՈՒՂ | B37: գազար | C37: 120 | D37: 0.14 | E37: 2.2 | F37: 12 | G37: 8 | H37: 11 | I37: 7 | J37: 35 | K37: 2 | L37: 0.9 | M37: 0.6 | N37: 54 | O37: 0 | P37: 1.5
A38: ՀԱՏԻԿ | B38: ոլոռ | C38: 850 | D38: 1.18 | E38: 11.1 | F38: 218 | G38: 192 | H38: 54 | I38: 455 | J38: 55 | K38: 19 | L38: 2 | M38: 4.3 | N38: 0.2 | O38: 0 | P38: 53
A39: ՀԱՏԻԿ | B39: սոյա | C39: 850 | D39: 1.45 | E39: 14.7 | F39: 319 | G39: 281 | H39: 70 | I39: 12 | J39: 40 | K39: 146 | L39: 4.8 | M39: 7.1 | N39: 0.2 | O39: 0 | P39: 36
A40: ՀԱՏԻԿ | B40: եգիպտացորեն | C40: 850 | D40: 1.33 | E40: 12.8 | F40: 92 | G40: 67 | H40: 43 | I40: 560 | J40: 20 | K40: 43 | L40: 0.4 | M40: 2.7 | N40: 0.4 | O40: 0 | P40: 15
A41: ՀԱՏԻԿ | B41: վարսակ | C41: 850 | D41: 1 | E41: 9.2 | F41: 108 | G41: 79 | H41: 97 | I41: 320 | J41: 25 | K41: 40 | L41: 1.5 | M41: 3.4 | N41: 1.3 | O41: 0 | P41: 12.9
A42: ՀԱՏԻԿ | B42: ցորեն | C42: 850 | D42: 1.27 | E42: 10.7 | F42: 149 | G42: 142 | H42: 28 | I42: 490 | J42: 15 | K42: 15 | L42: 0.7 | M42: 4.3 | N42: 10 | O42: 0 | P42: 10.3
A43: ՀԱՏԻԿ | B43: գարի | C43: 850 | D43: 1.15 | E43: 10.5 | F43: 113 | G43: 85 | H43: 49 | I43: 485 | J43: 2 | K43: 22 | L43: 2 | M43: 3.9 | N43: 0.5 | O43: 0 | P43: 50
A44: ՀԱՏԻԿ | B44: տարեկան | C44: 850 | D44: 1.15 | E44: 10.3 | F44: 120 | G44: 91 | H44: 21 | I44: 518 | J44: 15 | K44: 19 | L44: 0.9 | M44: 2.8 | N44: 2 | O44: 0 | P44: 15.4
A45: ԹԵՓ | B45: ցորենի | C45: 850 | D45: 0.75 | E45: 8.85 | F45: 151 | G45: 97 | H45: 88 | I45: 0 | J45: 47 | K45: 41 | L45: 2 | M45: 9.6 | N45: 2.6 | O45: 0 | P45: 20.9
A46: ՔՈՒՍՊ | B46: արևածաղկի | C46: 900 | D46: 1.08 | E46: 10.44 | F46: 405 | G46: 324 | H46: 129 | I46: 25 | J46: 62.6 | K46: 77 | L46: 5.9 | M46: 12.9 | N46: 2 | O46: 5 | P46: 11
A47: ՔՈՒՍՊ | B47: բամբակի | C47: 900 | D47: 1.1 | E47: 11.07 | F47: 399 | G47: 319 | H47: 120 | I47: 15 | J47: 79 | K47: 74 | L47: 2.8 | M47: 9.4 | N47: 0 | O47: 0 | P47: 0
A48: ՔՈՒՍՊ | B48: սոյաի | C48: 900 | D48: 1.35 | E48: 12.9 | F48: 418 | G48: 393 | H48: 54 | I48: 20 | J48: 100 | K48: 74 | L48: 4.3 | M48: 6.9 | N48: 2 | O48: 9.5 | P48: 11
A49: ՔՈՒՍՊԱԼՅՈՒՐ | B49: բամբակի | C49: 900 | D49: 0.89 | E49: 10.21 | F49: 411 | G49: 329 | H49: 124 | I49: 15 | J49: 65 | K49: 13 | L49: 4.1 | M49: 10.1 | N49: 1 | O49: 3.5 | P49: 20
A50: ՔՈՒՍՊԱԼՅՈՒՐ | B50: սոյաի | C50: 900 | D50: 1.21 | E50: 12.42 | F50: 439 | G50: 400 | H50: 62 | I50: 18 | J50: 95 | K50: 27 | L50: 2.7 | M50: 6.6 | N50: 0.2 | O50: 4.5 | P50: 3
A51: ՔՈՒՍՊԱԼՅՈՒՐ | B51: արևածաղկի | C51: 900 | D51: 1.03 | E51: 10.6 | F51: 429 | G51: 386 | H51: 144 | I51: 28 | J51: 52.6 | K51: 37 | L51: 3.6 | M51: 12.2 | N51: 3 | O51: 3 | P51: 3
A52: ՔՈՒՍՊԱԼՅՈՒՐ | B52: կանեփի | C52: 900 | D52: 1.07 | E52: 11.7 | F52: 340 | G52: 282 | H52: 96 | I52: 25 | J52: 48 | K52: 17 | L52: 2.8 | M52: 8.3 | N52: 0 | O52: 0 | P52: 2.5
A53: ՄՐՈՒՐ | B53: ցորենի | C53: 100 | D53: 0.11 | E53: 1.1 | F53: 28 | G53: 21 | H53: 11 | I53: 0 | J53: 0 | K53: 6 | L53: 0.2 | M53: 0.6 | N53: 0 | O53: 0 | P53: 0
A54: ՄՐՈՒՐ | B54: գարու | C54: 900 | D54: 0.12 | E54: 11.57 | F54: 433 | G54: 277 | H54: 62 | I54: 0 | J54: 0 | K54: 82 | L54: 0 | M54: 0 | N54: 0 | O54: 0 | P54: 0
A55: ՄՐՈՒՐ | B55: եգիպտացորենի | C55: 100 | D55: 0.12 | E55: 1.19 | F55: 23 | G55: 18 | H55: 9 | I55: 0 | J55: 0 | K55: 9 | L55: 0.2 | M55: 0.3 | N55: 0 | O55: 0 | P55: 0
A56: ՄԶՈՒԿ | B56: ճակնդեղի թարմ | C56: 112 | D56: 0.12 | E56: 1.13 | F56: 12 | G56: 6 | H56: 33 | I56: 0 | J56: 2.5 | K56: 3 | L56: 1.5 | M56: 0.14 | N56: 0 | O56: 0 | P56: 0
A57: ՄԶՈՒԿ | B57: ճակնդեղի չոր | C57: 868 | D57: 0.84 | E57: 9.78 | F57: 77 | G57: 38 | H57: 190 | I57: 0 | J57: 0 | K57: 5 | L57: 7.8 | M57: 0.5 | N57: 0 | O57: 0 | P57: 0
A58: ՄԶՈՒԿ | B58: խմորասունկ կերի | C58: 90 | D58: 1.19 | E58: 12.22 | F58: 455 | G58: 419 | H58: 72 | I58: 0 | J58: 1.4 | K58: 15 | L58: 3.85 | M58: 14.9 | N58: 0 | O58: 1000 | P58: 0
A59: ԿԱԹ | B59: կովի անարատ կաթ | C59: 150 | D59: 0.34 | E59: 2.74 | F59: 54 | G59: 51 | H59: 0 | I59: 0 | J59: 43 | K59: 45 | L59: 1.6 | M59: 1.4 | N59: 0 | O59: 0 | P59: 0
A60: ԿԱԹ | B60: չոր անարատ կաթ | C60: 920 | D60: 2.02 | E60: 13.3 | F60: 245 | G60: 221 | H60: 0 | I60: 0 | J60: 356 | K60: 259 | L60: 9.1 | M60: 8.4 | N60: 0 | O60: 0 | P60: 0
A61: ԿԱԹ | B61: սերզատած կաթ | C61: 90 | D61: 0.13 | E61: 1.31 | F61: 37 | G61: 35 | H61: 0 | I61: 0 | J61: 0 | K61: 1 | L61: 1.4 | M61: 1 | N61: 0 | O61: 0.6 | P61: 0.4
A62: ԿԱԹ | B62: չոր սերզատած կաթ | C62: 920 | D62: 1.25 | E62: 12.31 | F62: 370 | G62: 338 | H62: 0 | I62: 0 | J62: 460 | K62: 11 | L62: 12.9 | M62: 10 | N62: 0 | O62: 0 | P62: 0.4
A63: ԿԱԹ | B63: խոզի կաթ | C63: 190 | D63: 0.48 | E63: 3.4 | F63: 60 | G63: 55 | H63: 0 | I63: 0 | J63: 55 | K63: 67 | L63: 1.9 | M63: 1.4 | N63: 3.3 | O63: 60 | P63: 87
A64: ԱՐՅԱՆ ԱԼՅՈՒՐ | B64: ԱՐՅԱՆ ԱԼՅՈՒՐ | C64: 900 | D64: 1.04 | E64: 12.44 | F64: 675 | G64: 527 | H64: 0 | I64: 0 | J64: 52 | K64: 25 | L64: 16.5 | M64: 4.5 | N64: 0 | O64: 0 | P64: 0
A65: ՄՍԱԼՅՈՒՐ | B65: ՄՍԱԼՅՈՒՐ | C65: 900 | D65: 1.49 | E65: 11.98 | F65: 561 | G65: 516 | H65: 0 | I65: 0 | J65: 41 | K65: 153 | L65: 61 | M65: 31 | N65: 0 | O65: 0 | P65: 0
A66: ՈՍԿՐԱԼՅՈՒՐ | B66: ՈՍԿՐԱԼՅՈՒՐ | C66: 900 | D66: 0.97 | E66: 8.7 | F66: 178 | G66: 146 | H66: 0 | I66: 0 | J66: 38 | K66: 157 | L66: 229.6 | M66: 102.5 | N66: 0 | O66: 0 | P66: 0
A67: ՁԿՆԱԼՅՈՒՐ ՃԱՐՊՈՏ | B67: ՁԿՆԱԼՅՈՒՐ ՃԱՐՊՈՏ | C67: 900 | D67: 1.31 | E67: 9.92 | F67: 535 | G67: 482 | H67: 0 | I67: 0 | J67: 95 | K67: 108 | L67: 27 | M67: 18 | N67: 0 | O67: 75 | P67: 19
A68: ՄՍՈՍԿՐԻ ԱԼՅՈՒՐ | B68: ՄՍՈՍԿՐԻ ԱԼՅՈՒՐ | C68: 900 | D68: 1.04 | E68: 8.63 | F68: 401 | G68: 341 | H68: 0 | I68: 0 | J68: 46 | K68: 112 | L68: 143 | M68: 74 | N68: 0 | O68: 0 | P68: 0
A69: ՁԿՆԱԼՅՈՒՐ ԱՆՃԱՐՊ | B69: ՁԿՆԱԼՅՈՒՐ ԱՆՃԱՐՊ | C69: 900 | D69: 0.98 | E69: 11.47 | F69: 621 | G69: 571 | H69: 0 | I69: 0 | J69: 0 | K69: 23 | L69: 66.6 | M69: 36.2 | N69: 0 | O69: 75 | P69: 19
A70: ԳԱՐԵՋՐԻ ԴԻՐՏ | B70: ԳԱՐԵՋՐԻ ԴԻՐՏ | C70: 232 | D70: 0.21 | E70: 2.35 | F70: 58 | G70: 42 | H70: 39 | I70: 0 | J70: 0 | K70: 17 | L70: 0.5 | M70: 1.1 | N70: 1.6 | O70: 0 | P70: 14

Sheet Օրական նորմեր (hidden)
A1: Ցուցանիշներ | B1: Քաշ | C1: Չոր նյութ /կգ | D1: Կերի միավոր | E1: Փոխ. Էներգ. /մջ | F1: Հում պրոտեին /գ | G1: Մարսելի պրոտեին/գ | H1: Թաղանթանյութ /գ | I1: Օսլա /գ | J1: Շաքար /գ | K1: Հում ճարպ /գ | L1: Կալցիում /գ | M1: Ֆոսֆոր /գ | N1: Կարոտին /մգ | O1: D վիտամին /հազ.ԱՄ | P1: E վիտամին /մգ | Q1: Աղ /գ | S1: Ցուցանիշներ | T1: Հղի-ցամաք կովեր | U1: Հղի-ցամաք կովեր | V1: Հղի-ցամաք կովեր | W1: Հղի-ցամաք կովեր | X1: Հղի-ցամաք կովեր | Y1: Հղի-ցամաք կովեր | Z1: Լակտացիայի առաջին փուլ | AA1: Լակտացիայի առաջին փուլ | AB1: Լակտացիայի առաջին փուլ | AC1: Լակտացիայի առաջին փուլ | AD1: Լակտացիայի առաջին փուլ | AE1: Լակտացիայի առաջին փուլ | AF1: Լակտացիայի երկրորդ փուլ | AG1: Լակտացիայի երկրորդ փուլ | AH1: Լակտացիայի երկրորդ փուլ | AI1: Լակտացիայի երկրորդ փուլ | AJ1: Լակտացիայի երկրորդ փուլ | AK1: Լակտացիայի երկրորդ փուլ
A2: Հղի-ցամաք կովեր | B2: 400 | C2: 9.8 | D2: 6.4 | E2: 79 | F2: 1100 | G2: 704 | H2: 2867 | I2: 688 | J2: 540 | K2: 211 | L2: 60 | M2: 35 | N2: 250 | O2: 6.4 | P2: 256 | Q2: 46 | S2: Քաշ | T2: 400 | U2: 450 | V2: 500 | W2: 550 | X2: 600 | Y2: 650 | Z2: 400 | AA2: 450 | AB2: 500 | AC2: 550 | AD2: 600 | AE2: 650 | AF2: 400 | AG2: 450 | AH2: 500 | AI2: 550 | AJ2: 600 | AK2: 650
A3: Հղի-ցամաք կովեր | B3: 450 | C3: 10.6 | D3: 7 | E3: 85 | F3: 1202 | G3: 770 | H3: 3136 | I3: 749 | J3: 588 | K3: 231 | L3: 65 | M3: 37 | N3: 280 | O3: 7 | P3: 280 | Q3: 50 | S3: Չոր նյութ /կգ | T3: 9.8 | U3: 10.6 | V3: 11.4 | W3: 12.2 | X3: 13 | Y3: 13.7 | Z3: 12 | AA3: 12.5 | AB3: 13 | AC3: 13.4 | AD3: 13.8 | AE3: 14.2 | AF3: 10.5 | AG3: 11.3 | AH3: 12.2 | AI3: 13 | AJ3: 13.6 | AK3: 14
A4: Հղի-ցամաք կովեր | B4: 500 | C4: 11.4 | D4: 7.5 | E4: 91 | F4: 1288 | G4: 825 | H4: 3360 | I4: 802 | J4: 630 | K4: 248 | L4: 70 | M4: 40 | N4: 300 | O4: 7.5 | P4: 300 | Q4: 54 | S4: Կերի միավոր | T4: 6.4 | U4: 7 | V4: 7.5 | W4: 8 | X4: 8.5 | Y4: 8.9 | Z4: 8.3 | AA4: 8.7 | AB4: 9 | AC4: 9.4 | AD4: 9.7 | AE4: 10 | AF4: 6.7 | AG4: 7.3 | AH4: 7.9 | AI4: 8.5 | AJ4: 8.9 | AK4: 9.2
A5: Հղի-ցամաք կովեր | B5: 550 | C5: 12.2 | D5: 8 | E5: 97 | F5: 1376 | G5: 880 | H5: 3584 | I5: 856 | J5: 672 | K5: 264 | L5: 75 | M5: 42 | N5: 320 | O5: 8 | P5: 320 | Q5: 58 | S5: Փոխ. Էներգ. /մջ | T5: 79 | U5: 85 | V5: 91 | W5: 97 | X5: 104 | Y5: 109 | Z5: 98 | AA5: 102 | AB5: 106 | AC5: 110 | AD5: 114 | AE5: 117 | AF5: 82 | AG5: 89 | AH5: 96 | AI5: 102 | AJ5: 107 | AK5: 110
A6: Հղի-ցամաք կովեր | B6: 600 | C6: 13 | D6: 8.5 | E6: 104 | F6: 1462 | G6: 936 | H6: 3808 | I6: 908 | J6: 711 | K6: 280 | L6: 80 | M6: 45 | N6: 340 | O6: 8.5 | P6: 340 | Q6: 61 | S6: Հում պրոտեին /գ | T6: 1100 | U6: 1202 | V6: 1288 | W6: 1376 | X6: 1462 | Y6: 1531 | Z6: 1288 | AA6: 1348 | AB6: 1395 | AC6: 1457 | AD6: 1503 | AE6: 1540 | AF6: 1010 | AG6: 1095 | AH6: 1185 | AI6: 1275 | AJ6: 1335 | AK6: 1384
A7: Հղի-ցամաք կովեր | B7: 650 | C7: 13.7 | D7: 8.9 | E7: 109 | F7: 1531 | G7: 979 | H7: 3987 | I7: 952 | J7: 748 | K7: 296 | L7: 84 | M7: 48 | N7: 355 | O7: 8.9 | P7: 356 | Q7: 64 | S7: Մարսելի պրոտեին/գ | T7: 704 | U7: 770 | V7: 825 | W7: 880 | X7: 936 | Y7: 979 | Z7: 780 | AA7: 818 | AB7: 846 | AC7: 884 | AD7: 912 | AE7: 940 | AF7: 570 | AG7: 620 | AH7: 672 | AI7: 722 | AJ7: 756 | AK7: 782
A8: Լակտացիայի առաջին փուլ | B8: 400 | C8: 12 | D8: 8.3 | E8: 98 | F8: 1288 | G8: 780 | H8: 3400 | I8: 872 | J8: 626 | K8: 266 | L8: 63 | M8: 36 | N8: 320 | O8: 7.6 | P8: 315 | Q8: 56 | S8: Թաղանթանյութ /գ | T8: 2867 | U8: 3136 | V8: 3360 | W8: 3584 | X8: 3808 | Y8: 3987 | Z8: 3400 | AA8: 3567 | AB8: 3690 | AC8: 3854 | AD8: 3977 | AE8: 4100 | AF8: 3015 | AG8: 3285 | AH8: 3556 | AI8: 3825 | AJ8: 4010 | AK8: 4140
A9: Լակտացիայի առաջին փուլ | B9: 450 | C9: 12.5 | D9: 8.7 | E9: 102 | F9: 1348 | G9: 818 | H9: 3567 | I9: 914 | J9: 644 | K9: 278 | L9: 66 | M9: 37 | N9: 340 | O9: 8 | P9: 330 | Q9: 58 | S9: Օսլա /գ | T9: 688 | U9: 749 | V9: 802 | W9: 856 | X9: 908 | Y9: 952 | Z9: 872 | AA9: 914 | AB9: 944 | AC9: 986 | AD9: 1010 | AE9: 1050 | AF9: 685 | AG9: 745 | AH9: 806 | AI9: 867 | AJ9: 908 | AK9: 938
A10: Լակտացիայի առաջին փուլ | B10: 500 | C10: 13 | D10: 9 | E10: 106 | F10: 1395 | G10: 846 | H10: 3690 | I10: 944 | J10: 666 | K10: 288 | L10: 68 | M10: 38 | N10: 350 | O10: 8.2 | P10: 340 | Q10: 60 | S10: Շաքար /գ | T10: 540 | U10: 588 | V10: 630 | W10: 672 | X10: 711 | Y10: 748 | Z10: 626 | AA10: 644 | AB10: 666 | AC10: 696 | AD10: 718 | AE10: 740 | AF10: 489 | AG10: 533 | AH10: 577 | AI10: 620 | AJ10: 650 | AK10: 672
A11: Լակտացիայի առաջին փուլ | B11: 550 | C11: 13.4 | D11: 9.4 | E11: 110 | F11: 1457 | G11: 884 | H11: 3854 | I11: 986 | J11: 696 | K11: 301 | L11: 71 | M11: 40 | N11: 365 | O11: 8.5 | P11: 355 | Q11: 63 | S11: Հում ճարպ /գ | T11: 211 | U11: 231 | V11: 248 | W11: 264 | X11: 280 | Y11: 296 | Z11: 266 | AA11: 278 | AB11: 288 | AC11: 301 | AD11: 310 | AE11: 320 | AF11: 214 | AG11: 234 | AH11: 253 | AI11: 272 | AJ11: 285 | AK11: 293
A12: Լակտացիայի առաջին փուլ | B12: 600 | C12: 13.8 | D12: 9.7 | E12: 114 | F12: 1503 | G12: 912 | H12: 3977 | I12: 1010 | J12: 718 | K12: 310 | L12: 74 | M12: 42 | N12: 380 | O12: 8.8 | P12: 365 | Q12: 65 | S12: Կալցիում /գ | T12: 60 | U12: 65 | V12: 70 | W12: 75 | X12: 80 | Y12: 84 | Z12: 63 | AA12: 66 | AB12: 68 | AC12: 71 | AD12: 74 | AE12: 76 | AF12: 50 | AG12: 55 | AH12: 59 | AI12: 64 | AJ12: 67 | AK12: 69
A13: Լակտացիայի առաջին փուլ | B13: 650 | C13: 14.2 | D13: 10 | E13: 117 | F13: 1540 | G13: 940 | H13: 4100 | I13: 1050 | J13: 740 | K13: 320 | L13: 76 | M13: 47 | N13: 390 | O13: 9 | P13: 380 | Q13: 70 | S13: Ֆոսֆոր /գ | T13: 35 | U13: 37 | V13: 40 | W13: 42 | X13: 45 | Y13: 48 | Z13: 36 | AA13: 37 | AB13: 38 | AC13: 40 | AD13: 42 | AE13: 47 | AF13: 27 | AG13: 29 | AH13: 32 | AI13: 34 | AJ13: 36 | AK13: 38
A14: Լակտացիայի երկրորդ փուլ | B14: 400 | C14: 10.5 | D14: 6.7 | E14: 82 | F14: 1010 | G14: 570 | H14: 3015 | I14: 685 | J14: 489 | K14: 214 | L14: 50 | M14: 27 | N14: 248 | O14: 5.4 | P14: 234 | Q14: 47 | S14: Կարոտին /մգ | T14: 250 | U14: 280 | V14: 300 | W14: 320 | X14: 340 | Y14: 355 | Z14: 320 | AA14: 340 | AB14: 350 | AC14: 365 | AD14: 380 | AE14: 390 | AF14: 248 | AG14: 270 | AH14: 292 | AI14: 315 | AJ14: 330 | AK14: 340
A15: Լակտացիայի երկրորդ փուլ | B15: 450 | C15: 11.3 | D15: 7.3 | E15: 89 | F15: 1095 | G15: 620 | H15: 3285 | I15: 745 | J15: 533 | K15: 234 | L15: 55 | M15: 29 | N15: 270 | O15: 5.8 | P15: 256 | Q15: 50 | S15: D վիտամին /հազ.ԱՄ | T15: 6.4 | U15: 7 | V15: 7.5 | W15: 8 | X15: 8.5 | Y15: 8.9 | Z15: 7.6 | AA15: 8 | AB15: 8.2 | AC15: 8.5 | AD15: 8.8 | AE15: 9 | AF15: 5.4 | AG15: 5.8 | AH15: 6.3 | AI15: 6.8 | AJ15: 7.1 | AK15: 7.4
A16: Լակտացիայի երկրորդ փուլ | B16: 500 | C16: 12.2 | D16: 7.9 | E16: 96 | F16: 1185 | G16: 672 | H16: 3556 | I16: 806 | J16: 577 | K16: 253 | L16: 59 | M16: 32 | N16: 292 | O16: 6.3 | P16: 276 | Q16: 55 | S16: E վիտամին /մգ | T16: 256 | U16: 280 | V16: 300 | W16: 320 | X16: 340 | Y16: 356 | Z16: 315 | AA16: 330 | AB16: 340 | AC16: 355 | AD16: 365 | AE16: 380 | AF16: 234 | AG16: 256 | AH16: 276 | AI16: 298 | AJ16: 312 | AK16: 322
A17: Լակտացիայի երկրորդ փուլ | B17: 550 | C17: 13 | D17: 8.5 | E17: 102 | F17: 1275 | G17: 722 | H17: 3825 | I17: 867 | J17: 620 | K17: 272 | L17: 64 | M17: 34 | N17: 315 | O17: 6.8 | P17: 298 | Q17: 60 | S17: Աղ /գ | T17: 46 | U17: 50 | V17: 54 | W17: 58 | X17: 61 | Y17: 64 | Z17: 56 | AA17: 58 | AB17: 60 | AC17: 63 | AD17: 65 | AE17: 70 | AF17: 47 | AG17: 50 | AH17: 55 | AI17: 60 | AJ17: 62 | AK17: 65
A18: Լակտացիայի երկրորդ փուլ | B18: 600 | C18: 13.6 | D18: 8.9 | E18: 107 | F18: 1335 | G18: 756 | H18: 4010 | I18: 908 | J18: 650 | K18: 285 | L18: 67 | M18: 36 | N18: 330 | O18: 7.1 | P18: 312 | Q18: 62
A19: Լակտացիայի երկրորդ փուլ | B19: 650 | C19: 14 | D19: 9.2 | E19: 110 | F19: 1384 | G19: 782 | H19: 4140 | I19: 938 | J19: 672 | K19: 293 | L19: 69 | M19: 38 | N19: 340 | O19: 7.4 | P19: 322 | Q19: 65

Sheet Sheet12 (hidden)
K1: Չոր նյութ /կգ | N1: Խումբ | O1: ՑՈՒՑԱՆԻՇՆԵՐ | R1: ԽՈՏ | S1: ԾՂՈՏ | T1: ԽՈՏԱԼՅՈՒՐ | U1: ԿԱՆԱՉԻ ԱԼՅՈՒՐ | V1: ՄՂԵՂ | W1: ՍԻԼՈՍ | X1: ՍԵՆԱԺ | Y1: ԱՐՄԱՏԱՊԱԼԱՐԱՊՏՈՒՂ | Z1: ՀԱՏԻԿ | AA1: ԹԵՓ | AB1: ՔՈՒՍՊ | AC1: ՔՈՒՍՊԱԼՅՈՒՐ | AD1: ՄՐՈՒՐ | AE1: ՄԶՈՒԿ | AF1: ԿԱԹ | AG1: ԱՐՅԱՆ ԱԼՅՈՒՐ | AH1: ՄՍԱԼՅՈՒՐ | AI1: ՈՍԿՐԱԼՅՈՒՐ | AJ1: ՁԿՆԱԼՅՈՒՐ ՃԱՐՊՈՏ | AK1: ՄՍՈՍԿՐԻ ԱԼՅՈՒՐ | AL1: ՁԿՆԱԼՅՈՒՐ ԱՆՃԱՐՊ | AM1: ԳԱՐԵՋՐԻ ԴԻՐՏ
R2: N/D | S2: N/D | T2: N/D | U2: N/D | V2: N/D | W2: N/D | X2: N/D | Y2: N/D | Z2: N/D | AA2: N/D | AB2: N/D | AC2: N/D | AD2: N/D | AE2: N/D | AF2: N/D | AG2: N/D | AH2: N/D | AI2: N/D | AJ2: N/D | AK2: N/D | AL2: N/D | AM2: N/D | AQ2: Հոլշտեյն | AR2: 7000 | AS2: 9000
A3: ԽՈՏ | E3: Քաշ | G3: Հղի-ցամաք կովեր | K3: Կերի միավոր | N3: ԽՈՏ | O3: աշորայի | R3: աշորայի | S3: աշնանացան ցորեն | T3: երեքնուկի | U3: վիկ վարսակի | V3: աշնանացան ցորենի | W3: այլատեսակ | X3: առվույտի | Y3: կարտոֆիլ | Z3: ոլոռ | AA3: ցորենի | AB3: արևածաղկի | AC3: բամբակի | AD3: ցորենի | AE3: ճակնդեղի թարմ | AF3: կովի անարատ կաթ | AG3: ԱՐՅԱՆ ԱԼՅՈՒՐ | AH3: ՄՍԱԼՅՈՒՐ | AI3: ՈՍԿՐԱԼՅՈՒՐ | AJ3: ՁԿՆԱԼՅՈՒՐ ՃԱՐՊՈՏ | AK3: ՄՍՈՍԿՐԻ ԱԼՅՈՒՐ | AL3: ՁԿՆԱԼՅՈՒՐ ԱՆՃԱՐՊ | AM3: ԳԱՐԵՋՐԻ ԴԻՐՏ | AQ3: Շվից | AR3: 6500 | AS3: 8000
A4: ԾՂՈՏ | E4: 400 | G4: Լակտացիայի առաջին փուլ | K4: Փոխ. Էներգ. /մջ | N4: ԽՈՏ | O4: կորնգանի | R4: կորնգանի | S4: գարնան. ցորեն | T4: առվույտի | U4: երեքնուկի | W4: եգիպտացորենի | X4: երեքնուկի | Y4: կերի ճակնդեղ | Z4: սոյա | AB4: բամբակի | AC4: սոյաի | AD4: գարու | AE4: ճակնդեղի չոր | AF4: չոր անարատ կաթ | AQ4: Ջերսե | AR4: 6000 | AS4: 7000
A5: ԽՈՏԱԼՅՈՒՐ | E5: 450 | G5: Լակտացիայի երկրորդ փուլ | K5: Հում պրոտեին /գ | N5: ԽՈՏ | O5: երեքնուկի | R5: երեքնուկի | S5: գարու | T5: վիկ վարսակի | U5: առվույտի | W5: արևածաղկի | X5: վիկ վարսակի | Y5: կիսաշաքար ճակնդ. | Z5: եգիպտացորեն | AB5: սոյաի | AC5: արևածաղկի | AD5: եգիպտացորենի | AE5: խմորասունկ կերի | AF5: սերզատած կաթ | AQ5: Սիմենթալ | AR5: 5000 | AS5: 6000
A6: ԿԱՆԱՉԻ ԱԼՈՒՐ | E6: 500 | K6: Մարսելի պրոտեին/գ | N6: ԽՈՏ | O6: վիկ վարսակի | R6: վիկ վարսակի | S6: վարսակի | W6: վիկ վարսակի | X6: ոլոռ վարսակի | Y6: շաքարի ճակնդեղ | Z6: վարսակ | AC6: կանեփի | AF6: չոր սերզատած կաթ | AQ6: Անգուս | AR6: 1400 | AS6: 1600
A7: ՄՂԵՂ | E7: 550 | K7: Թաղանթանյութ /գ | N7: ԽՈՏ | O7: մարգագետ. Շյուղախոտ | R7: մարգագետ. Շյուղախոտ | S7: երեքնուկի | W7: ոլոռ վարսակի | X7: այլատեսակ | Y7: գազար | Z7: ցորեն | AF7: խոզի կաթ | AQ7: Կովկասյան գորշ | AR7: 3500 | AS7: 4500
A8: ՍԻԼՈՍ | E8: 600 | K8: Օսլա /գ | N8: ԽՈՏ | O8: երեքնուկի սիզախոտ | R8: երեքնուկի սիզախոտ | S8: ոլոռի | W8: կոմբինացված՝ եգ., ճակ., առվ., | Z8: գարի
A9: ՍԵՆԱԺ | E9: 650 | K9: Շաքար /գ | N9: ԾՂՈՏ | O9: աշնանացան ցորեն | S9: վիկ վարսակի | Z9: տարեկան
A10: ԱՐՄԱՏԱՊԱԼԱՐԱՊՏՈՒՂ | K10: Հում ճարպ /գ | N10: ԾՂՈՏ | O10: գարնան. ցորեն
A11: ՀԱՏԻԿ | K11: Կալցիում /գ | N11: ԾՂՈՏ | O11: գարու
A12: ԹԵՓ | K12: Ֆոսֆոր /գ | N12: ԾՂՈՏ | O12: վարսակի
A13: ՔՈՒՍՊ | K13: Կարոտին /մգ | N13: ԾՂՈՏ | O13: երեքնուկի
A14: ՔՈՒՍՊԱԼՅՈՒՐ | K14: D վիտամին /հազ.ԱՄ | N14: ԾՂՈՏ | O14: ոլոռի
A15: Դիրտ | K15: E վիտամին /մգ | N15: ԾՂՈՏ | O15: վիկ վարսակի
A16: ՄՐՈՒՐ | K16: Աղ /գ | N16: ԽՈՏԱԼՅՈՒՐ | O16: երեքնուկի
A17: ՄԶՈՒԿ | N17: ԽՈՏԱԼՅՈՒՐ | O17: առվույտի
A18: ԿԱԹ | N18: ԽՈՏԱԼՅՈՒՐ | O18: վիկ վարսակի
A19: ԱՐՅԱՆ ԱԼՅՈՒՐ | N19: ԿԱՆԱՉԻ ԱԼՈՒՐ | O19: վիկ վարսակի
A20: ՄՍԱԼՅՈՒՐ | N20: ԿԱՆԱՉԻ ԱԼՈՒՐ | O20: երեքնուկի
A21: ՈՍԿՐԱԼՅՈՒՐ | N21: ԿԱՆԱՉԻ ԱԼՈՒՐ | O21: առվույտի
A22: ՁԿՆԱԼՅՈՒՐ ՃԱՐՊՈՏ | N22: ՄՂԵՂ | O22: աշնանացան ցորենի
A23: ՄՍՈՍԿՐԻ ԱԼՅՈՒՐ | N23: ՍԻԼՈՍ | O23: այլատեսակ
A24: ՁԿՆԱԼՅՈՒՐ ԱՆՃԱՐՊ | N24: ՍԻԼՈՍ | O24: եգիպտացորենի
N25: ՍԻԼՈՍ | O25: արևածաղկի
N26: ՍԻԼՈՍ | O26: վիկ վարսակի
N27: ՍԻԼՈՍ | O27: ոլոռ վարսակի
N28: ՍԻԼՈՍ | O28: կոմբինացված՝ եգ., ճակ., առվ.,
N29: ՍԵՆԱԺ | O29: առվույտի
N30: ՍԵՆԱԺ | O30: երեքնուկի
N31: ՍԵՆԱԺ | O31: վիկ վարսակի
N32: ՍԵՆԱԺ | O32: ոլոռ վարսակի
N33: ՍԵՆԱԺ | O33: այլատեսակ
N34: ԱՐՄԱՏԱՊԱԼԱՐԱՊՏՈՒՂ | O34: կարտոֆիլ
N35: ԱՐՄԱՏԱՊԱԼԱՐԱՊՏՈՒՂ | O35: կերի ճակնդեղ
N36: ԱՐՄԱՏԱՊԱԼԱՐԱՊՏՈՒՂ | O36: կիսաշաքար ճակնդ.
N37: ԱՐՄԱՏԱՊԱԼԱՐԱՊՏՈՒՂ | O37: շաքարի ճակնդեղ
N38: ԱՐՄԱՏԱՊԱԼԱՐԱՊՏՈՒՂ | O38: գազար
N39: ՀԱՏԻԿ | O39: ոլոռ
N40: ՀԱՏԻԿ | O40: սոյա
N41: ՀԱՏԻԿ | O41: եգիպտացորեն
N42: ՀԱՏԻԿ | O42: վարսակ
N43: ՀԱՏԻԿ | O43: ցորեն
N44: ՀԱՏԻԿ | O44: գարի
N45: ՀԱՏԻԿ | O45: տարեկան
N46: ԹԵՓ | O46: ցորենի
N47: ՔՈՒՍՊ | O47: արևածաղկի
N48: ՔՈՒՍՊ | O48: բամբակի
N49: ՔՈՒՍՊ | O49: սոյաի
N50: ՔՈՒՍՊԱԼՅՈՒՐ | O50: բամբակի
N51: ՔՈՒՍՊԱԼՅՈՒՐ | O51: սոյաի
N52: ՔՈՒՍՊԱԼՅՈՒՐ | O52: արևածաղկի
N53: ՔՈՒՍՊԱԼՅՈՒՐ | O53: կանեփի
N54: Դիրտ | O54: գարեջրի դիրտ
N55: ՄՐՈՒՐ | O55: ցորենի
N56: ՄՐՈՒՐ | O56: գարու
N57: ՄՐՈՒՐ | O57: եգիպտացորենի
N58: ՄԶՈՒԿ | O58: ճակնդեղի թարմ
N59: ՄԶՈՒԿ | O59: ճակնդեղի չոր
N60: ՄԶՈՒԿ | O60: խմորասունկ կերի
N61: ԿԱԹ | O61: կովի անարատ կաթ
N62: ԿԱԹ | O62: չոր անարատ կաթ
N63: ԿԱԹ | O63: սերզատած կաթ
N64: ԿԱԹ | O64: չոր սերզատած կաթ
N65: ԿԱԹ | O65: խոզի կաթ
N66: ԱՐՅԱՆ ԱԼՅՈՒՐ | O66: արյան ալյուր
N67: ՄՍԱԼՅՈՒՐ | O67: մսալյուր
N68: ՈՍԿՐԱԼՅՈՒՐ | O68: ոսկրալյուր
N69: ՁԿՆԱԼՅՈՒՐ ՃԱՐՊՈՏ | O69: ձկնալյուր ճարպոտ
N70: ՄՍՈՍԿՐԻ ԱԼՅՈՒՐ | O70: մսոսկրի ալյուր
N71: ՁԿՆԱԼՅՈՒՐ ԱՆՃԱՐՊ | O71: ձկնալյուր անճարպ

Sheet Հաշվիչ
A1: 1
AS3: Կերակրատեսակ 1-մեկ կգի հաշվով | BG3: Կերակրատեսակ 2-մեկ կգի հաշվով | BU3: Կերակրատեսակ 1-Կշռված | CI3: Կերակրատեսակ 2-Կշռված | CW3: Կերակրատեսակներ ընդամենը | DM3: Ցուցանիշներ | DN3: Հղի-ցամաք կովեր | DO3: Հղի-ցամաք կովեր | DP3: Հղի-ցամաք կովեր | DQ3: Հղի-ցամաք կովեր | DR3: Հղի-ցամաք կովեր | DS3: Հղի-ցամաք կովեր | DT3: Լակտացիայի առաջին փուլ | DU3: Լակտացիայի առաջին փուլ | DV3: Լակտացիայի առաջին փուլ | DW3: Լակտացիայի առաջին փուլ | DX3: Լակտացիայի առաջին փուլ | DY3: Լակտացիայի առաջին փուլ | DZ3: Լակտացիայի երկրորդ փուլ | EA3: Լակտացիայի երկրորդ փուլ | EB3: Լակտացիայի երկրորդ փուլ | EC3: Լակտացիայի երկրորդ փուլ | ED3: Լակտացիայի երկրորդ փուլ | EE3: Լակտացիայի երկրորդ փուլ
DM4: Քաշ | DN4: 400 | DO4: 450 | DP4: 500 | DQ4: 550 | DR4: 600 | DS4: 650 | DT4: 400 | DU4: 450 | DV4: 500 | DW4: 550 | DX4: 600 | DY4: 650 | DZ4: 400 | EA4: 450 | EB4: 500 | EC4: 550 | ED4: 600 | EE4: 650
D5: Կերակրատեսակ 1 | F5: ԿԳ | H5: Կերակրատեսակ 2 | J5: ԿԳ | L5: Կերի գինը | DM5: Չոր նյութ /կգ | DN5: 9.8 | DO5: 10.6 | DP5: 11.4 | DQ5: 12.2 | DR5: 13 | DS5: 13.7 | DT5: 12 | DU5: 12.5 | DV5: 13 | DW5: 13.4 | DX5: 13.8 | DY5: 14.2 | DZ5: 10.5 | EA5: 11.3 | EB5: 12.2 | EC5: 13 | ED5: 13.6 | EE5: 14
L6: Min Price | M6: Max Price | X6: Առկա | Y6: I | Z6: II | AA6: III | AB6: NORMA | AC6: GAP | AS6: Չոր նյութ /կգ | AT6: Կերի միավոր | AU6: Փոխ. Էներգ. /մջ | AV6: Հում պրոտեին /գ | AW6: Մարսելի պրոտեին/գ | AX6: Թաղանթանյութ /գ | AY6: Օսլա /գ | AZ6: Շաքար /գ | BA6: Հում ճարպ /գ | BB6: Կալցիում /գ | BC6: Ֆոսֆոր /գ | BD6: Կարոտին /մգ | BE6: D վիտամին /հազ.ԱՄ | BF6: E վիտամին /մգ | BG6: Չոր նյութ /կգ | BH6: Կերի միավոր | BI6: Փոխ. Էներգ. /մջ | BJ6: Հում պրոտեին /գ | BK6: Մարսելի պրոտեին/գ | BL6: Թաղանթանյութ /գ | BM6: Օսլա /գ | BN6: Շաքար /գ | BO6: Հում ճարպ /գ | BP6: Կալցիում /գ | BQ6: Ֆոսֆոր /գ | BR6: Կարոտին /մգ | BS6: D վիտամին /հազ.ԱՄ | BT6: E վիտամին /մգ | BU6: Չոր նյութ /կգ | BV6: Կերի միավոր | BW6: Փոխ. Էներգ. /մջ | BX6: Հում պրոտեին /գ | BY6: Մարսելի պրոտեին/գ | BZ6: Թաղանթանյութ /գ | CA6: Օսլա /գ | CB6: Շաքար /գ | CC6: Հում ճարպ /գ | CD6: Կալցիում /գ | CE6: Ֆոսֆոր /գ | CF6: Կարոտին /մգ | CG6: D վիտամին /հազ.ԱՄ | CH6: E վիտամին /մգ | CI6: Չոր նյութ /կգ | CJ6: Կերի միավոր | CK6: Փոխ. Էներգ. /մջ | CL6: Հում պրոտեին /գ | CM6: Մարսելի պրոտեին/գ | CN6: Թաղանթանյութ /գ | CO6: Օսլա /գ | CP6: Շաքար /գ | CQ6: Հում ճարպ /գ | CR6: Կալցիում /գ | CS6: Ֆոսֆոր /գ | CT6: Կարոտին /մգ | CU6: D վիտամին /հազ.ԱՄ | CV6: E վիտամին /մգ | CW6: Չոր նյութ /կգ | CX6: Կերի միավոր | CY6: Փոխ. Էներգ. /մջ | CZ6: Հում պրոտեին /գ | DA6: Մարսելի պրոտեին/գ | DB6: Թաղանթանյութ /գ | DC6: Օսլա /գ | DD6: Շաքար /գ | DE6: Հում ճարպ /գ | DF6: Կալցիում /գ | DG6: Ֆոսֆոր /գ | DH6: Կարոտին /մգ | DI6: D վիտամին /հազ.ԱՄ | DJ6: E վիտամին /մգ | DM6: Կերի միավոր | DN6: 6.4 | DO6: 7 | DP6: 7.5 | DQ6: 8 | DR6: 8.5 | DS6: 8.9 | DT6: 8.3 | DU6: 8.7 | DV6: 9 | DW6: 9.4 | DX6: 9.7 | DY6: 10 | DZ6: 6.7 | EA6: 7.3 | EB6: 7.9 | EC6: 8.5 | ED6: 8.9 | EE6: 9.2
B7: ԽՈՏ | D7: մարգագետ. Շյուղախոտ | F7: 8 | H7: N/D | J7: 0 | L7: 27 | M7: 45 | N7: =L7*(J7+F7) -> 216 | O7: =M7*(J7+F7) -> 360 | W7: Չոր նյութ /կգ | X7: =CW50/1000 -> 14.886 | Y7: =IF(AND($A$1=1, $T$19=400),'Օրական նորմեր'!T3,IF(AND($A$1=1, $T$19=450),'Օրական նորմեր'!U3,IF(AND($A$1=1, $T$19=500),'Օրական նորմեր'!V3,IF(AND($A$1=1, $T$19=550),'Օրական նորմեր'!W3,IF(AND($A$1=1, $T$19=600),'Օրական նորմեր'!X3,IF(AND($A$1=1, $T$19=650),'Օրական նորմեր'!Y3,0)))))) -> 11.4 | Z7: =IF(AND($A$1=2, $T$19=400),'Օրական նորմեր'!Z3,IF(AND($A$1=2, $T$19=450),'Օրական նորմեր'!AA3,IF(AND($A$1=2, $T$19=500),'Օրական նորմեր'!AB3,IF(AND($A$1=2, $T$19=550),'Օրական նորմեր'!AC3,IF(AND($A$1=2, $T$19=600),'Օրական նորմեր'!AD3,IF(AND($A$1=2, $T$19=650),'Օրական նորմեր'!AE3,0)))))) -> 0 | AA7: =IF(AND($A$1=3, $T$19=400),'Օրական նորմեր'!AF3,IF(AND($A$1=3, $T$19=450),'Օրական նորմեր'!AG3,IF(AND($A$1=3, $T$19=500),'Օրական նորմեր'!AH3,IF(AND($A$1=3, $T$19=550),'Օրական նորմեր'!AI3,IF(AND($A$1=3, $T$19=600),'Օրական նորմեր'!AJ3,IF(AND($A$1=3, $T$19=650),'Օրական նորմեր'!AK3,0)))))) -> 0 | AB7: =SUM(Y7:AA7) -> 11.4 | AC7: =X7-AB7 -> 3.486 | AS7: =IF($D$7=test!$B$2,test!C2,IF(Հաշվիչ!$D$7=test!$B$3,test!C3,IF(Հաշվիչ!$D$7=test!$B$4,test!C4,IF(Հաշվիչ!$D$7=test!$B$5,test!C5,IF(Հաշվիչ!$D$7=test!$B$6,test!C6,IF(Հաշվիչ!$D$7=test!$B$7,test!C7,0)))))) -> 862 | AT7: =IF($D$7=test!$B$2,test!D2,IF(Հաշվիչ!$D$7=test!$B$3,test!D3,IF(Հաշվիչ!$D$7=test!$B$4,test!D4,IF(Հաշվիչ!$D$7=test!$B$5,test!D5,IF(Հաշվիչ!$D$7=test!$B$6,test!D6,IF(Հաշվիչ!$D$7=test!$B$7,test!D7,0)))))) -> 0.44 | AU7: =IF($D$7=test!$B$2,test!E2,IF(Հաշվիչ!$D$7=test!$B$3,test!E3,IF(Հաշվիչ!$D$7=test!$B$4,test!E4,IF(Հաշվիչ!$D$7=test!$B$5,test!E5,IF(Հաշվիչ!$D$7=test!$B$6,test!E6,IF(Հաշվիչ!$D$7=test!$B$7,test!E7,0)))))) -> 6.5 | AV7: =IF($D$7=test!$B$2,test!F2,IF(Հաշվիչ!$D$7=test!$B$3,test!F3,IF(Հաշվիչ!$D$7=test!$B$4,test!F4,IF(Հաշվիչ!$D$7=test!$B$5,test!F5,IF(Հաշվիչ!$D$7=test!$B$6,test!F6,IF(Հաշվիչ!$D$7=test!$B$7,test!F7,0)))))) -> 78 | AW7: =IF($D$7=test!$B$2,test!G2,IF(Հաշվիչ!$D$7=test!$B$3,test!G3,IF(Հաշվիչ!$D$7=test!$B$4,test!G4,IF(Հաշվիչ!$D$7=test!$B$5,test!G5,IF(Հաշվիչ!$D$7=test!$B$6,test!G6,IF(Հաշվիչ!$D$7=test!$B$7,test!G7,0)))))) -> 34 | AX7: =IF($D$7=test!$B$2,test!H2,IF(Հաշվիչ!$D$7=test!$B$3,test!H3,IF(Հաշվիչ!$D$7=test!$B$4,test!H4,IF(Հաշվիչ!$D$7=test!$B$5,test!H5,IF(Հաշվիչ!$D$7=test!$B$6,test!H6,IF(Հաշվիչ!$D$7=test!$B$7,test!H7,0)))))) -> 285 | AY7: =IF($D$7=test!$B$2,test!I2,IF(Հաշվիչ!$D$7=test!$B$3,test!I3,IF(Հաշվիչ!$D$7=test!$B$4,test!I4,IF(Հաշվիչ!$D$7=test!$B$5,test!I5,IF(Հաշվիչ!$D$7=test!$B$6,test!I6,IF(Հաշվիչ!$D$7=test!$B$7,test!I7,0)))))) -> 12 | AZ7: =IF($D$7=test!$B$2,test!J2,IF(Հաշվիչ!$D$7=test!$B$3,test!J3,IF(Հաշվիչ!$D$7=test!$B$4,test!J4,IF(Հաշվիչ!$D$7=test!$B$5,test!J5,IF(Հաշվիչ!$D$7=test!$B$6,test!J6,IF(Հաշվիչ!$D$7=test!$B$7,test!J7,0)))))) -> 26 | BA7: =IF($D$7=test!$B$2,test!K2,IF(Հաշվիչ!$D$7=test!$B$3,test!K3,IF(Հաշվիչ!$D$7=test!$B$4,test!K4,IF(Հաշվիչ!$D$7=test!$B$5,test!K5,IF(Հաշվիչ!$D$7=test!$B$6,test!K6,IF(Հաշվիչ!$D$7=test!$B$7,test!K7,0)))))) -> 23 | BB7: =IF($D$7=test!$B$2,test!L2,IF(Հաշվիչ!$D$7=test!$B$3,test!L3,IF(Հաշվիչ!$D$7=test!$B$4,test!L4,IF(Հաշվիչ!$D$7=test!$B$5,test!L5,IF(Հաշվիչ!$D$7=test!$B$6,test!L6,IF(Հաշվիչ!$D$7=test!$B$7,test!L7,0)))))) -> 3.7 | BC7: =IF($D$7=test!$B$2,test!M2,IF(Հաշվիչ!$D$7=test!$B$3,test!M3,IF(Հաշվիչ!$D$7=test!$B$4,test!M4,IF(Հաշվիչ!$D$7=test!$B$5,test!M5,IF(Հաշվիչ!$D$7=test!$B$6,test!M6,IF(Հաշվիչ!$D$7=test!$B$7,test!M7,0)))))) -> 2.1 | BD7: =IF($D$7=test!$B$2,test!N2,IF(Հաշվիչ!$D$7=test!$B$3,test!N3,IF(Հաշվիչ!$D$7=test!$B$4,test!N4,IF(Հաշվիչ!$D$7=test!$B$5,test!N5,IF(Հաշվիչ!$D$7=test!$B$6,test!N6,IF(Հաշվիչ!$D$7=test!$B$7,test!N7,0)))))) -> 15 | BE7: =IF($D$7=test!$B$2,test!O2,IF(Հաշվիչ!$D$7=test!$B$3,test!O3,IF(Հաշվիչ!$D$7=test!$B$4,test!O4,IF(Հաշվիչ!$D$7=test!$B$5,test!O5,IF(Հաշվիչ!$D$7=test!$B$6,test!O6,IF(Հաշվիչ!$D$7=test!$B$7,test!O7,0)))))) -> 0 | BF7: =IF($D$7=test!$B$2,test!P2,IF(Հաշվիչ!$D$7=test!$B$3,test!P3,IF(Հաշվիչ!$D$7=test!$B$4,test!P4,IF(Հաշվիչ!$D$7=test!$B$5,test!P5,IF(Հաշվիչ!$D$7=test!$B$6,test!P6,IF(Հաշվիչ!$D$7=test!$B$7,test!P7,0)))))) -> 0 | BG7: =IF($H$7=test!$B$2,test!C2,IF(Հաշվիչ!$H$7=test!$B$3,test!C3,IF(Հաշվիչ!$H$7=test!$B$4,test!C4,IF(Հաշվիչ!$H$7=test!$B$5,test!C5,IF(Հաշվիչ!$H$7=test!$B$6,test!C6,IF(Հաշվիչ!$H$7=test!$B$7,test!C7,0)))))) -> 0 | BH7: =IF($H$7=test!$B$2,test!D2,IF(Հաշվիչ!$H$7=test!$B$3,test!D3,IF(Հաշվիչ!$H$7=test!$B$4,test!D4,IF(Հաշվիչ!$H$7=test!$B$5,test!D5,IF(Հաշվիչ!$H$7=test!$B$6,test!D6,IF(Հաշվիչ!$H$7=test!$B$7,test!D7,0)))))) -> 0 | BI7: =IF($H$7=test!$B$2,test!E2,IF(Հաշվիչ!$H$7=test!$B$3,test!E3,IF(Հաշվիչ!$H$7=test!$B$4,test!E4,IF(Հաշվիչ!$H$7=test!$B$5,test!E5,IF(Հաշվիչ!$H$7=test!$B$6,test!E6,IF(Հաշվիչ!$H$7=test!$B$7,test!E7,0)))))) -> 0 | BJ7: =IF($H$7=test!$B$2,test!F2,IF(Հաշվիչ!$H$7=test!$B$3,test!F3,IF(Հաշվիչ!$H$7=test!$B$4,test!F4,IF(Հաշվիչ!$H$7=test!$B$5,test!F5,IF(Հաշվիչ!$H$7=test!$B$6,test!F6,IF(Հաշվիչ!$H$7=test!$B$7,test!F7,0)))))) -> 0 | BK7: =IF($H$7=test!$B$2,test!G2,IF(Հաշվիչ!$H$7=test!$B$3,test!G3,IF(Հաշվիչ!$H$7=test!$B$4,test!G4,IF(Հաշվիչ!$H$7=test!$B$5,test!G5,IF(Հաշվիչ!$H$7=test!$B$6,test!G6,IF(Հաշվիչ!$H$7=test!$B$7,test!G7,0)))))) -> 0 | BL7: =IF($H$7=test!$B$2,test!H2,IF(Հաշվիչ!$H$7=test!$B$3,test!H3,IF(Հաշվիչ!$H$7=test!$B$4,test!H4,IF(Հաշվիչ!$H$7=test!$B$5,test!H5,IF(Հաշվիչ!$H$7=test!$B$6,test!H6,IF(Հաշվիչ!$H$7=test!$B$7,test!H7,0)))))) -> 0 | BM7: =IF($H$7=test!$B$2,test!I2,IF(Հաշվիչ!$H$7=test!$B$3,test!I3,IF(Հաշվիչ!$H$7=test!$B$4,test!I4,IF(Հաշվիչ!$H$7=test!$B$5,test!I5,IF(Հաշվիչ!$H$7=test!$B$6,test!I6,IF(Հաշվիչ!$H$7=test!$B$7,test!I7,0)))))) -> 0 | BN7: =IF($H$7=test!$B$2,test!J2,IF(Հաշվիչ!$H$7=test!$B$3,test!J3,IF(Հաշվիչ!$H$7=test!$B$4,test!J4,IF(Հաշվիչ!$H$7=test!$B$5,test!J5,IF(Հաշվիչ!$H$7=test!$B$6,test!J6,IF(Հաշվիչ!$H$7=test!$B$7,test!J7,0)))))) -> 0 | BO7: =IF($H$7=test!$B$2,test!K2,IF(Հաշվիչ!$H$7=test!$B$3,test!K3,IF(Հաշվիչ!$H$7=test!$B$4,test!K4,IF(Հաշվիչ!$H$7=test!$B$5,test!K5,IF(Հաշվիչ!$H$7=test!$B$6,test!K6,IF(Հաշվիչ!$H$7=test!$B$7,test!K7,0)))))) -> 0 | BP7: =IF($H$7=test!$B$2,test!L2,IF(Հաշվիչ!$H$7=test!$B$3,test!L3,IF(Հաշվիչ!$H$7=test!$B$4,test!L4,IF(Հաշվիչ!$H$7=test!$B$5,test!L5,IF(Հաշվիչ!$H$7=test!$B$6,test!L6,IF(Հաշվիչ!$H$7=test!$B$7,test!L7,0)))))) -> 0 | BQ7: =IF($H$7=test!$B$2,test!M2,IF(Հաշվիչ!$H$7=test!$B$3,test!M3,IF(Հաշվիչ!$H$7=test!$B$4,test!M4,IF(Հաշվիչ!$H$7=test!$B$5,test!M5,IF(Հաշվիչ!$H$7=test!$B$6,test!M6,IF(Հաշվիչ!$H$7=test!$B$7,test!M7,0)))))) -> 0 | BR7: =IF($H$7=test!$B$2,test!N2,IF(Հաշվիչ!$H$7=test!$B$3,test!N3,IF(Հաշվիչ!$H$7=test!$B$4,test!N4,IF(Հաշվիչ!$H$7=test!$B$5,test!N5,IF(Հաշվիչ!$H$7=test!$B$6,test!N6,IF(Հաշվիչ!$H$7=test!$B$7,test!N7,0)))))) -> 0 | BS7: =IF($H$7=test!$B$2,test!O2,IF(Հաշվիչ!$H$7=test!$B$3,test!O3,IF(Հաշվիչ!$H$7=test!$B$4,test!O4,IF(Հաշվիչ!$H$7=test!$B$5,test!O5,IF(Հաշվիչ!$H$7=test!$B$6,test!O6,IF(Հաշվիչ!$H$7=test!$B$7,test!O7,0)))))) -> 0 | BT7: =IF($H$7=test!$B$2,test!P2,IF(Հաշվիչ!$H$7=test!$B$3,test!P3,IF(Հաշվիչ!$H$7=test!$B$4,test!P4,IF(Հաշվիչ!$H$7=test!$B$5,test!P5,IF(Հաշվիչ!$H$7=test!$B$6,test!P6,IF(Հաշվիչ!$H$7=test!$B$7,test!P7,0)))))) -> 0 | BU7: =AS7*$F7 -> 6896 | BV7: =AT7*$F7 -> 3.52 | BW7: 52 | BX7: 624 | BY7: 272 | BZ7: 2280 | CA7: 96 | CB7: 208 | CC7: 184 | CD7: 29.6 | CE7: 16.8 | CF7: 120 | CG7: 0 | CH7: 0 | CI7: =$J7*BG7 -> 0 | CJ7: =$J7*BH7 -> 0 | CK7: 0 | CL7: 0 | CM7: 0 | CN7: 0 | CO7: 0 | CP7: 0 | CQ7: 0 | CR7: 0 | CS7: 0 | CT7: 0 | CU7: 0 | CV7: 0 | CW7: =CI7+BU7 -> 6896 | CX7: =CJ7+BV7 -> 3.52 | CY7: 52 | CZ7: 624 | DA7: 272 | DB7: 2280 | DC7: 96 | DD7: 208 | DE7: 184 | DF7: 29.6 | DG7: 16.8 | DH7: 120 | DI7: 0 | DJ7: 0 | DM7: Փոխ. Էներգ. /մջ | DN7: 79 | DO7: 85 | DP7: 91 | DQ7: 97 | DR7: 104 | DS7: 109 | DT7: 98 | DU7: 102 | DV7: 106 | DW7: 110 | DX7: 114 | DY7: 117 | DZ7: 82 | EA7: 89 | EB7: 96 | EC7: 102 | ED7: 107 | EE7: 110
F8: 10 | DM8: Հում պրոտեին /գ | DN8: 1100 | DO8: 1202 | DP8: 1288 | DQ8: 1376 | DR8: 1462 | DS8: 1531 | DT8: 1288 | DU8: 1348 | DV8: 1395 | DW8: 1457 | DX8: 1503 | DY8: 1540 | DZ8: 1010 | EA8: 1095 | EB8: 1185 | EC8: 1275 | ED8: 1335 | EE8: 1384
B9: ԾՂՈՏ | D9: գարու | F9: 5 | H9: N/D | J9: 0 | L9: 23 | M9: =1000/20 -> 50 | N9: =L9*(J9+F9) -> 115 | O9: =M9*(J9+F9) -> 250 | W9: Կերի միավոր | X9: =CX50 -> 10.42 | Y9: =IF(AND($A$1=1, $T$19=400),'Օրական նորմեր'!T4,IF(AND($A$1=1, $T$19=450),'Օրական նորմեր'!U4,IF(AND($A$1=1, $T$19=500),'Օրական նորմեր'!V4,IF(AND($A$1=1, $T$19=550),'Օրական նորմեր'!W4,IF(AND($A$1=1, $T$19=600),'Օրական նորմեր'!X4,IF(AND($A$1=1, $T$19=650),'Օրական նորմեր'!Y4,0)))))) -> 7.5 | Z9: =IF(AND($A$1=2, $T$19=400),'Օրական նորմեր'!Z4,IF(AND($A$1=2, $T$19=450),'Օրական նորմեր'!AA4,IF(AND($A$1=2, $T$19=500),'Օրական նորմեր'!AB4,IF(AND($A$1=2, $T$19=550),'Օրական նորմեր'!AC4,IF(AND($A$1=2, $T$19=600),'Օրական նորմեր'!AD4,IF(AND($A$1=2, $T$19=650),'Օրական նորմեր'!AE4,0)))))) -> 0 | AA9: =IF(AND($A$1=3, $T$19=400),'Օրական նորմեր'!AF4,IF(AND($A$1=3, $T$19=450),'Օրական նորմեր'!AG4,IF(AND($A$1=3, $T$19=500),'Օրական նորմեր'!AH4,IF(AND($A$1=3, $T$19=550),'Օրական նորմեր'!AI4,IF(AND($A$1=3, $T$19=600),'Օրական նորմեր'!AJ4,IF(AND($A$1=3, $T$19=650),'Օրական նորմեր'!AK4,0)))))) -> 0 | AB9: =SUM(Y9:AA9) -> 7.5 | AC9: =X9-AB9 -> 2.92 | AS9: =IF($D$9=test!$B$8,test!C8,IF(Հաշվիչ!$D$9=test!$B$9,test!C9,IF(Հաշվիչ!$D$9=test!$B$10,test!C10,IF(Հաշվիչ!$D$9=test!$B$11,test!C11,IF(Հաշվիչ!$D$9=test!$B$12,test!C12,IF(Հաշվիչ!$D$9=test!$B$13,test!C13,IF(Հաշվիչ!$D$9=test!$B$14,test!C14,0))))))) -> 830 | AT9: =IF($D$9=test!$B$8,test!D8,IF(Հաշվիչ!$D$9=test!$B$9,test!D9,IF(Հաշվիչ!$D$9=test!$B$10,test!D10,IF(Հաշվիչ!$D$9=test!$B$11,test!D11,IF(Հաշվիչ!$D$9=test!$B$12,test!D12,IF(Հաշվիչ!$D$9=test!$B$13,test!D13,IF(Հաշվիչ!$D$9=test!$B$14,test!D14,0))))))) -> 0.34 | AU9: =IF($D$9=test!$B$8,test!E8,IF(Հաշվիչ!$D$9=test!$B$9,test!E9,IF(Հաշվիչ!$D$9=test!$B$10,test!E10,IF(Հաշվիչ!$D$9=test!$B$11,test!E11,IF(Հաշվիչ!$D$9=test!$B$12,test!E12,IF(Հաշվիչ!$D$9=test!$B$13,test!E13,IF(Հաշվիչ!$D$9=test!$B$14,test!E14,0))))))) -> 5.71 | AV9: =IF($D$9=test!$B$8,test!F8,IF(Հաշվիչ!$D$9=test!$B$9,test!F9,IF(Հաշվիչ!$D$9=test!$B$10,test!F10,IF(Հաշվիչ!$D$9=test!$B$11,test!F11,IF(Հաշվիչ!$D$9=test!$B$12,test!F12,IF(Հաշվիչ!$D$9=test!$B$13,test!F13,IF(Հաշվիչ!$D$9=test!$B$14,test!F14,0))))))) -> 49 | AW9: =IF($D$9=test!$B$8,test!G8,IF(Հաշվիչ!$D$9=test!$B$9,test!G9,IF(Հաշվիչ!$D$9=test!$B$10,test!G10,IF(Հաշվիչ!$D$9=test!$B$11,test!G11,IF(Հաշվիչ!$D$9=test!$B$12,test!G12,IF(Հաշվիչ!$D$9=test!$B$13,test!G13,IF(Հաշվիչ!$D$9=test!$B$14,test!G14,0))))))) -> 13 | AX9: =IF($D$9=test!$B$8,test!H8,IF(Հաշվիչ!$D$9=test!$B$9,test!H9,IF(Հաշվիչ!$D$9=test!$B$10,test!H10,IF(Հաշվիչ!$D$9=test!$B$11,test!H11,IF(Հաշվիչ!$D$9=test!$B$12,test!H12,IF(Հաշվիչ!$D$9=test!$B$13,test!H13,IF(Հաշվիչ!$D$9=test!$B$14,test!H14,0))))))) -> 331 | AY9: =IF($D$9=test!$B$8,test!I8,IF(Հաշվիչ!$D$9=test!$B$9,test!I9,IF(Հաշվիչ!$D$9=test!$B$10,test!I10,IF(Հաշվիչ!$D$9=test!$B$11,test!I11,IF(Հաշվիչ!$D$9=test!$B$12,test!I12,IF(Հաշվիչ!$D$9=test!$B$13,test!I13,IF(Հաշվիչ!$D$9=test!$B$14,test!I14,0))))))) -> 0 | AZ9: =IF($D$9=test!$B$8,test!J8,IF(Հաշվիչ!$D$9=test!$B$9,test!J9,IF(Հաշվիչ!$D$9=test!$B$10,test!J10,IF(Հաշվիչ!$D$9=test!$B$11,test!J11,IF(Հաշվիչ!$D$9=test!$B$12,test!J12,IF(Հաշվիչ!$D$9=test!$B$13,test!J13,IF(Հաշվիչ!$D$9=test!$B$14,test!J14,0))))))) -> 2.4 | BA9: =IF($D$9=test!$B$8,test!K8,IF(Հաշվիչ!$D$9=test!$B$9,test!K9,IF(Հաշվիչ!$D$9=test!$B$10,test!K10,IF(Հաշվիչ!$D$9=test!$B$11,test!K11,IF(Հաշվիչ!$D$9=test!$B$12,test!K12,IF(Հաշվիչ!$D$9=test!$B$13,test!K13,IF(Հաշվիչ!$D$9=test!$B$14,test!K14,0))))))) -> 19 | BB9: =IF($D$9=test!$B$8,test!L8,IF(Հաշվիչ!$D$9=test!$B$9,test!L9,IF(Հաշվիչ!$D$9=test!$B$10,test!L10,IF(Հաշվիչ!$D$9=test!$B$11,test!L11,IF(Հաշվիչ!$D$9=test!$B$12,test!L12,IF(Հաշվիչ!$D$9=test!$B$13,test!L13,IF(Հաշվիչ!$D$9=test!$B$14,test!L14,0))))))) -> 3.3 | BC9: =IF($D$9=test!$B$8,test!M8,IF(Հաշվիչ!$D$9=test!$B$9,test!M9,IF(Հաշվիչ!$D$9=test!$B$10,test!M10,IF(Հաշվիչ!$D$9=test!$B$11,test!M11,IF(Հաշվիչ!$D$9=test!$B$12,test!M12,IF(Հաշվիչ!$D$9=test!$B$13,test!M13,IF(Հաշվիչ!$D$9=test!$B$14,test!M14,0))))))) -> 0.8 | BD9: =IF($D$9=test!$B$8,test!N8,IF(Հաշվիչ!$D$9=test!$B$9,test!N9,IF(Հաշվիչ!$D$9=test!$B$10,test!N10,IF(Հաշվիչ!$D$9=test!$B$11,test!N11,IF(Հաշվիչ!$D$9=test!$B$12,test!N12,IF(Հաշվիչ!$D$9=test!$B$13,test!N13,IF(Հաշվիչ!$D$9=test!$B$14,test!N14,0))))))) -> 0 | BE9: =IF($D$9=test!$B$8,test!O8,IF(Հաշվիչ!$D$9=test!$B$9,test!O9,IF(Հաշվիչ!$D$9=test!$B$10,test!O10,IF(Հաշվիչ!$D$9=test!$B$11,test!O11,IF(Հաշվիչ!$D$9=test!$B$12,test!O12,IF(Հաշվիչ!$D$9=test!$B$13,test!O13,IF(Հաշվիչ!$D$9=test!$B$14,test!O14,0))))))) -> 5 | BF9: =IF($D$9=test!$B$8,test!P8,IF(Հաշվիչ!$D$9=test!$B$9,test!P9,IF(Հաշվիչ!$D$9=test!$B$10,test!P10,IF(Հաշվիչ!$D$9=test!$B$11,test!P11,IF(Հաշվիչ!$D$9=test!$B$12,test!P12,IF(Հաշվիչ!$D$9=test!$B$13,test!P13,IF(Հաշվիչ!$D$9=test!$B$14,test!P14,0))))))) -> 0 | BG9: =IF($H$9=test!$B$8,test!C8,IF(Հաշվիչ!$H$9=test!$B$9,test!C9,IF(Հաշվիչ!$H$9=test!$B$10,test!C10,IF(Հաշվիչ!$H$9=test!$B$11,test!C11,IF(Հաշվիչ!$H$9=test!$B$12,test!C12,IF(Հաշվիչ!$H$9=test!$B$13,test!C13,IF(Հաշվիչ!$H$9=test!$B$14,test!C14,0))))))) -> 0 | BH9: =IF($H$9=test!$B$8,test!D8,IF(Հաշվիչ!$H$9=test!$B$9,test!D9,IF(Հաշվիչ!$H$9=test!$B$10,test!D10,IF(Հաշվիչ!$H$9=test!$B$11,test!D11,IF(Հաշվիչ!$H$9=test!$B$12,test!D12,IF(Հաշվիչ!$H$9=test!$B$13,test!D13,IF(Հաշվիչ!$H$9=test!$B$14,test!D14,0))))))) -> 0 | BI9: =IF($H$9=test!$B$8,test!E8,IF(Հաշվիչ!$H$9=test!$B$9,test!E9,IF(Հաշվիչ!$H$9=test!$B$10,test!E10,IF(Հաշվիչ!$H$9=test!$B$11,test!E11,IF(Հաշվիչ!$H$9=test!$B$12,test!E12,IF(Հաշվիչ!$H$9=test!$B$13,test!E13,IF(Հաշվիչ!$H$9=test!$B$14,test!E14,0))))))) -> 0 | BJ9: =IF($H$9=test!$B$8,test!F8,IF(Հաշվիչ!$H$9=test!$B$9,test!F9,IF(Հաշվիչ!$H$9=test!$B$10,test!F10,IF(Հաշվիչ!$H$9=test!$B$11,test!F11,IF(Հաշվիչ!$H$9=test!$B$12,test!F12,IF(Հաշվիչ!$H$9=test!$B$13,test!F13,IF(Հաշվիչ!$H$9=test!$B$14,test!F14,0))))))) -> 0 | BK9: =IF($H$9=test!$B$8,test!G8,IF(Հաշվիչ!$H$9=test!$B$9,test!G9,IF(Հաշվիչ!$H$9=test!$B$10,test!G10,IF(Հաշվիչ!$H$9=test!$B$11,test!G11,IF(Հաշվիչ!$H$9=test!$B$12,test!G12,IF(Հաշվիչ!$H$9=test!$B$13,test!G13,IF(Հաշվիչ!$H$9=test!$B$14,test!G14,0))))))) -> 0 | BL9: =IF($H$9=test!$B$8,test!H8,IF(Հաշվիչ!$H$9=test!$B$9,test!H9,IF(Հաշվիչ!$H$9=test!$B$10,test!H10,IF(Հաշվիչ!$H$9=test!$B$11,test!H11,IF(Հաշվիչ!$H$9=test!$B$12,test!H12,IF(Հաշվիչ!$H$9=test!$B$13,test!H13,IF(Հաշվիչ!$H$9=test!$B$14,test!H14,0))))))) -> 0 | BM9: =IF($H$9=test!$B$8,test!I8,IF(Հաշվիչ!$H$9=test!$B$9,test!I9,IF(Հաշվիչ!$H$9=test!$B$10,test!I10,IF(Հաշվիչ!$H$9=test!$B$11,test!I11,IF(Հաշվիչ!$H$9=test!$B$12,test!I12,IF(Հաշվիչ!$H$9=test!$B$13,test!I13,IF(Հաշվիչ!$H$9=test!$B$14,test!I14,0))))))) -> 0 | BN9: =IF($H$9=test!$B$8,test!J8,IF(Հաշվիչ!$H$9=test!$B$9,test!J9,IF(Հաշվիչ!$H$9=test!$B$10,test!J10,IF(Հաշվիչ!$H$9=test!$B$11,test!J11,IF(Հաշվիչ!$H$9=test!$B$12,test!J12,IF(Հաշվիչ!$H$9=test!$B$13,test!J13,IF(Հաշվիչ!$H$9=test!$B$14,test!J14,0))))))) -> 0 | BO9: =IF($H$9=test!$B$8,test!K8,IF(Հաշվիչ!$H$9=test!$B$9,test!K9,IF(Հաշվիչ!$H$9=test!$B$10,test!K10,IF(Հաշվիչ!$H$9=test!$B$11,test!K11,IF(Հաշվիչ!$H$9=test!$B$12,test!K12,IF(Հաշվիչ!$H$9=test!$B$13,test!K13,IF(Հաշվիչ!$H$9=test!$B$14,test!K14,0))))))) -> 0 | BP9: =IF($H$9=test!$B$8,test!L8,IF(Հաշվիչ!$H$9=test!$B$9,test!L9,IF(Հաշվիչ!$H$9=test!$B$10,test!L10,IF(Հաշվիչ!$H$9=test!$B$11,test!L11,IF(Հաշվիչ!$H$9=test!$B$12,test!L12,IF(Հաշվիչ!$H$9=test!$B$13,test!L13,IF(Հաշվիչ!$H$9=test!$B$14,test!L14,0))))))) -> 0 | BQ9: =IF($H$9=test!$B$8,test!M8,IF(Հաշվիչ!$H$9=test!$B$9,test!M9,IF(Հաշվիչ!$H$9=test!$B$10,test!M10,IF(Հաշվիչ!$H$9=test!$B$11,test!M11,IF(Հաշվիչ!$H$9=test!$B$12,test!M12,IF(Հաշվիչ!$H$9=test!$B$13,test!M13,IF(Հաշվիչ!$H$9=test!$B$14,test!M14,0))))))) -> 0 | BR9: =IF($H$9=test!$B$8,test!N8,IF(Հաշվիչ!$H$9=test!$B$9,test!N9,IF(Հաշվիչ!$H$9=test!$B$10,test!N10,IF(Հաշվիչ!$H$9=test!$B$11,test!N11,IF(Հաշվիչ!$H$9=test!$B$12,test!N12,IF(Հաշվիչ!$H$9=test!$B$13,test!N13,IF(Հաշվիչ!$H$9=test!$B$14,test!N14,0))))))) -> 0 | BS9: =IF($H$9=test!$B$8,test!O8,IF(Հաշվիչ!$H$9=test!$B$9,test!O9,IF(Հաշվիչ!$H$9=test!$B$10,test!O10,IF(Հաշվիչ!$H$9=test!$B$11,test!O11,IF(Հաշվիչ!$H$9=test!$B$12,test!O12,IF(Հաշվիչ!$H$9=test!$B$13,test!O13,IF(Հաշվիչ!$H$9=test!$B$14,test!O14,0))))))) -> 0 | BT9: =IF($H$9=test!$B$8,test!P8,IF(Հաշվիչ!$H$9=test!$B$9,test!P9,IF(Հաշվիչ!$H$9=test!$B$10,test!P10,IF(Հաշվիչ!$H$9=test!$B$11,test!P11,IF(Հաշվիչ!$H$9=test!$B$12,test!P12,IF(Հաշվիչ!$H$9=test!$B$13,test!P13,IF(Հաշվիչ!$H$9=test!$B$14,test!P14,0))))))) -> 0 | BU9: =AS9*$F9 -> 4150 | BV9: =AT9*$F9 -> 1.7 | BW9: =AU9*$F9 -> 28.55 | BX9: =AV9*$F9 -> 245 | BY9: =AW9*$F9 -> 65 | BZ9: =AX9*$F9 -> 1655 | CA9: =AY9*$F9 -> 0 | CB9: =AZ9*$F9 -> 12 | CC9: =BA9*$F9 -> 95 | CD9: =BB9*$F9 -> 16.5 | CE9: =BC9*$F9 -> 4 | CF9: =BD9*$F9 -> 0 | CG9: =BE9*$F9 -> 25 | CH9: =BF9*$F9 -> 0 | CI9: =$J9*BG9 -> 0 | CJ9: =$J9*BH9 -> 0 | CK9: =$J9*BI9 -> 0 | CL9: =$J9*BJ9 -> 0 | CM9: =$J9*BK9 -> 0 | CN9: =$J9*BL9 -> 0 | CO9: =$J9*BM9 -> 0 | CP9: =$J9*BN9 -> 0 | CQ9: =$J9*BO9 -> 0 | CR9: =$J9*BP9 -> 0 | CS9: =$J9*BQ9 -> 0 | CT9: =$J9*BR9 -> 0 | CU9: =$J9*BS9 -> 0 | CV9: =$J9*BT9 -> 0 | CW9: =CI9+BU9 -> 4150 | CX9: =CJ9+BV9 -> 1.7 | CY9: =CK9+BW9 -> 28.55 | CZ9: =CL9+BX9 -> 245 | DA9: =CM9+BY9 -> 65 | DB9: =CN9+BZ9 -> 1655 | DC9: =CO9+CA9 -> 0 | DD9: =CP9+CB9 -> 12 | DE9: =CQ9+CC9 -> 95 | DF9: =CR9+CD9 -> 16.5 | DG9: =CS9+CE9 -> 4 | DH9: =CT9+CF9 -> 0 | DI9: =CU9+CG9 -> 25 | DJ9: =CV9+CH9 -> 0 | DM9: Մարսելի պրոտեին/գ | DN9: 704 | DO9: 770 | DP9: 825 | DQ9: 880 | DR9: 936 | DS9: 979 | DT9: 780 | DU9: 818 | DV9: 846 | DW9: 884 | DX9: 912 | DY9: 940 | DZ9: 570 | EA9: 620 | EB9: 672 | EC9: 722 | ED9: 756 | EE9: 782
F10: 10 | DM10: Թաղանթանյութ /գ | DN10: 2867 | DO10: 3136 | DP10: 3360 | DQ10: 3584 | DR10: 3808 | DS10: 3987 | DT10: 3400 | DU10: 3567 | DV10: 3690 | DW10: 3854 | DX10: 3977 | DY10: 4100 | DZ10: 3015 | EA10: 3285 | EB10: 3556 | EC10: 3825 | ED10: 4010 | EE10: 4140
B11: ԽՈՏԱԼՅՈՒՐ | D11: երեքնուկի | F11: 0 | H11: N/D | J11: 0 | L11: 50 | M11: 60 | N11: 0 | O11: 0 | Q11: Հղի-ցամաք կովեր | W11: Փոխ. Էներգ. /մջ | X11: =CY50 -> 128.19 | Y11: =IF(AND($A$1=1, $T$19=400),'Օրական նորմեր'!T5,IF(AND($A$1=1, $T$19=450),'Օրական նորմեր'!U5,IF(AND($A$1=1, $T$19=500),'Օրական նորմեր'!V5,IF(AND($A$1=1, $T$19=550),'Օրական նորմեր'!W5,IF(AND($A$1=1, $T$19=600),'Օրական նորմեր'!X5,IF(AND($A$1=1, $T$19=650),'Օրական նորմեր'!Y5,0)))))) -> 91 | Z11: =IF(AND($A$1=2, $T$19=400),'Օրական նորմեր'!Z5,IF(AND($A$1=2, $T$19=450),'Օրական նորմեր'!AA5,IF(AND($A$1=2, $T$19=500),'Օրական նորմեր'!AB5,IF(AND($A$1=2, $T$19=550),'Օրական նորմեր'!AC5,IF(AND($A$1=2, $T$19=600),'Օրական նորմեր'!AD5,IF(AND($A$1=2, $T$19=650),'Օրական նորմեր'!AE5,0)))))) -> 0 | AA11: =IF(AND($A$1=3, $T$19=400),'Օրական նորմեր'!AF5,IF(AND($A$1=3, $T$19=450),'Օրական նորմեր'!AG5,IF(AND($A$1=3, $T$19=500),'Օրական նորմեր'!AH5,IF(AND($A$1=3, $T$19=550),'Օրական նորմեր'!AI5,IF(AND($A$1=3, $T$19=600),'Օրական նորմեր'!AJ5,IF(AND($A$1=3, $T$19=650),'Օրական նորմեր'!AK5,0)))))) -> 0 | AB11: 91 | AC11: 37.19 | AS11: =IF($D$11=test!$B$15,test!C15,IF(Հաշվիչ!$D$11=test!$B$16,test!C16,IF(Հաշվիչ!$D$11=test!$B$17,test!C17,0))) -> 830 | AT11: =IF($D$11=test!$B$15,test!D15,IF(Հաշվիչ!$D$11=test!$B$16,test!D16,IF(Հաշվիչ!$D$11=test!$B$17,test!D17,0))) -> 0.59 | AU11: =IF($D$11=test!$B$15,test!E15,IF(Հաշվիչ!$D$11=test!$B$16,test!E16,IF(Հաշվիչ!$D$11=test!$B$17,test!E17,0))) -> 6.99 | AV11: =IF($D$11=test!$B$15,test!F15,IF(Հաշվիչ!$D$11=test!$B$16,test!F16,IF(Հաշվիչ!$D$11=test!$B$17,test!F17,0))) -> 141 | AW11: =IF($D$11=test!$B$15,test!G15,IF(Հաշվիչ!$D$11=test!$B$16,test!G16,IF(Հաշվիչ!$D$11=test!$B$17,test!G17,0))) -> 60 | AX11: =IF($D$11=test!$B$15,test!H15,IF(Հաշվիչ!$D$11=test!$B$16,test!H16,IF(Հաշվիչ!$D$11=test!$B$17,test!H17,0))) -> 249 | AY11: =IF($D$11=test!$B$15,test!I15,IF(Հաշվիչ!$D$11=test!$B$16,test!I16,IF(Հաշվիչ!$D$11=test!$B$17,test!I17,0))) -> 24 | AZ11: =IF($D$11=test!$B$15,test!J15,IF(Հաշվիչ!$D$11=test!$B$16,test!J16,IF(Հաշվիչ!$D$11=test!$B$17,test!J17,0))) -> 45 | BA11: =IF($D$11=test!$B$15,test!K15,IF(Հաշվիչ!$D$11=test!$B$16,test!K16,IF(Հաշվիչ!$D$11=test!$B$17,test!K17,0))) -> 25 | BB11: =IF($D$11=test!$B$15,test!L15,IF(Հաշվիչ!$D$11=test!$B$16,test!L16,IF(Հաշվիչ!$D$11=test!$B$17,test!L17,0))) -> 9.6 | BC11: =IF($D$11=test!$B$15,test!M15,IF(Հաշվիչ!$D$11=test!$B$16,test!M16,IF(Հաշվիչ!$D$11=test!$B$17,test!M17,0))) -> 2.1 | BD11: =IF($D$11=test!$B$15,test!N15,IF(Հաշվիչ!$D$11=test!$B$16,test!N16,IF(Հաշվիչ!$D$11=test!$B$17,test!N17,0))) -> 40 | BE11: =IF($D$11=test!$B$15,test!O15,IF(Հաշվիչ!$D$11=test!$B$16,test!O16,IF(Հաշվիչ!$D$11=test!$B$17,test!O17,0))) -> 600 | BF11: =IF($D$11=test!$B$15,test!P15,IF(Հաշվիչ!$D$11=test!$B$16,test!P16,IF(Հաշվիչ!$D$11=test!$B$17,test!P17,0))) -> 129 | BG11: =IF($H$11=test!$B$15,test!C15,IF(Հաշվիչ!$H$11=test!$B$16,test!C16,IF(Հաշվիչ!$H$11=test!$B$17,test!C17,0))) -> 0 | BH11: =IF($H$11=test!$B$15,test!D15,IF(Հաշվիչ!$H$11=test!$B$16,test!D16,IF(Հաշվիչ!$H$11=test!$B$17,test!D17,0))) -> 0 | BI11: =IF($H$11=test!$B$15,test!E15,IF(Հաշվիչ!$H$11=test!$B$16,test!E16,IF(Հաշվիչ!$H$11=test!$B$17,test!E17,0))) -> 0 | BJ11: =IF($H$11=test!$B$15,test!F15,IF(Հաշվիչ!$H$11=test!$B$16,test!F16,IF(Հաշվիչ!$H$11=test!$B$17,test!F17,0))) -> 0 | BK11: =IF($H$11=test!$B$15,test!G15,IF(Հաշվիչ!$H$11=test!$B$16,test!G16,IF(Հաշվիչ!$H$11=test!$B$17,test!G17,0))) -> 0 | BL11: =IF($H$11=test!$B$15,test!H15,IF(Հաշվիչ!$H$11=test!$B$16,test!H16,IF(Հաշվիչ!$H$11=test!$B$17,test!H17,0))) -> 0 | BM11: =IF($H$11=test!$B$15,test!I15,IF(Հաշվիչ!$H$11=test!$B$16,test!I16,IF(Հաշվիչ!$H$11=test!$B$17,test!I17,0))) -> 0 | BN11: =IF($H$11=test!$B$15,test!J15,IF(Հաշվիչ!$H$11=test!$B$16,test!J16,IF(Հաշվիչ!$H$11=test!$B$17,test!J17,0))) -> 0 | BO11: =IF($H$11=test!$B$15,test!K15,IF(Հաշվիչ!$H$11=test!$B$16,test!K16,IF(Հաշվիչ!$H$11=test!$B$17,test!K17,0))) -> 0 | BP11: =IF($H$11=test!$B$15,test!L15,IF(Հաշվիչ!$H$11=test!$B$16,test!L16,IF(Հաշվիչ!$H$11=test!$B$17,test!L17,0))) -> 0 | BQ11: =IF($H$11=test!$B$15,test!M15,IF(Հաշվիչ!$H$11=test!$B$16,test!M16,IF(Հաշվիչ!$H$11=test!$B$17,test!M17,0))) -> 0 | BR11: =IF($H$11=test!$B$15,test!N15,IF(Հաշվիչ!$H$11=test!$B$16,test!N16,IF(Հաշվիչ!$H$11=test!$B$17,test!N17,0))) -> 0 | BS11: =IF($H$11=test!$B$15,test!O15,IF(Հաշվիչ!$H$11=test!$B$16,test!O16,IF(Հաշվիչ!$H$11=test!$B$17,test!O17,0))) -> 0 | BT11: =IF($H$11=test!$B$15,test!P15,IF(Հաշվիչ!$H$11=test!$B$16,test!P16,IF(Հաշվիչ!$H$11=test!$B$17,test!P17,0))) -> 0 | BU11: =AS11*$F11 -> 0 | BV11: =AT11*$F11 -> 0 | BW11: =AU11*$F11 -> 0 | BX11: =AV11*$F11 -> 0 | BY11: =AW11*$F11 -> 0 | BZ11: =AX11*$F11 -> 0 | CA11: =AY11*$F11 -> 0 | CB11: =AZ11*$F11 -> 0 | CC11: =BA11*$F11 -> 0 | CD11: =BB11*$F11 -> 0 | CE11: =BC11*$F11 -> 0 | CF11: =BD11*$F11 -> 0 | CG11: =BE11*$F11 -> 0 | CH11: =BF11*$F11 -> 0 | CI11: 0 | CJ11: 0 | CK11: 0 | CL11: 0 | CM11: 0 | CN11: 0 | CO11: 0 | CP11: 0 | CQ11: 0 | CR11: 0 | CS11: 0 | CT11: 0 | CU11: 0 | CV11: 0 | CW11: 0 | CX11: 0 | CY11: 0 | CZ11: 0 | DA11: 0 | DB11: 0 | DC11: 0 | DD11: 0 | DE11: 0 | DF11: 0 | DG11: 0 | DH11: 0 | DI11: 0 | DJ11: 0 | DM11: Օսլա /գ | DN11: 688 | DO11: 749 | DP11: 802 | DQ11: 856 | DR11: 908 | DS11: 952 | DT11: 872 | DU11: 914 | DV11: 944 | DW11: 986 | DX11: 1010 | DY11: 1050 | DZ11: 685 | EA11: 745 | EB11: 806 | EC11: 867 | ED11: 908 | EE11: 938
DM12: Շաքար /գ | DN12: 540 | DO12: 588 | DP12: 630 | DQ12: 672 | DR12: 711 | DS12: 748 | DT12: 626 | DU12: 644 | DV12: 666 | DW12: 696 | DX12: 718 | DY12: 740 | DZ12: 489 | EA12: 533 | EB12: 577 | EC12: 620 | ED12: 650 | EE12: 672
B13: ԿԱՆԱՉԻ ԱԼՅՈՒՐ | D13: վիկ վարսակի | F13: 0 | H13: N/D | J13: 0 | L13: 45 | M13: 60 | N13: 0 | O13: 0 | Q13: Լակտացիայի I-ին փուլ | W13: Հում պրոտեին /գ | X13: =CZ50 -> 1357 | Y13: =IF(AND($A$1=1, $T$19=400),'Օրական նորմեր'!T6,IF(AND($A$1=1, $T$19=450),'Օրական նորմեր'!U6,IF(AND($A$1=1, $T$19=500),'Օրական նորմեր'!V6,IF(AND($A$1=1, $T$19=550),'Օրական նորմեր'!W6,IF(AND($A$1=1, $T$19=600),'Օրական նորմեր'!X6,IF(AND($A$1=1, $T$19=650),'Օրական նորմեր'!Y6,0)))))) -> 1288 | Z13: =IF(AND($A$1=2, $T$19=400),'Օրական նորմեր'!Z6,IF(AND($A$1=2, $T$19=450),'Օրական նորմեր'!AA6,IF(AND($A$1=2, $T$19=500),'Օրական նորմեր'!AB6,IF(AND($A$1=2, $T$19=550),'Օրական նորմեր'!AC6,IF(AND($A$1=2, $T$19=600),'Օրական նորմեր'!AD6,IF(AND($A$1=2, $T$19=650),'Օրական նորմեր'!AE6,0)))))) -> 0 | AA13: =IF(AND($A$1=3, $T$19=400),'Օրական նորմեր'!AF6,IF(AND($A$1=3, $T$19=450),'Օրական նորմեր'!AG6,IF(AND($A$1=3, $T$19=500),'Օրական նորմեր'!AH6,IF(AND($A$1=3, $T$19=550),'Օրական նորմեր'!AI6,IF(AND($A$1=3, $T$19=600),'Օրական նորմեր'!AJ6,IF(AND($A$1=3, $T$19=650),'Օրական նորմեր'!AK6,0)))))) -> 0 | AB13: 1288 | AC13: 69 | AS13: =IF($D$13=test!$B$18,test!C18,IF(Հաշվիչ!$D$13=test!$B$19,test!C19,IF(Հաշվիչ!$D$13=test!$B$20,test!C20,0))) -> 900 | AT13: =IF($D$13=test!$B$18,test!D18,IF(Հաշվիչ!$D$13=test!$B$19,test!D19,IF(Հաշվիչ!$D$13=test!$B$20,test!D20,0))) -> 0.66 | AU13: =IF($D$13=test!$B$18,test!E18,IF(Հաշվիչ!$D$13=test!$B$19,test!E19,IF(Հաշվիչ!$D$13=test!$B$20,test!E20,0))) -> 8 | AV13: =IF($D$13=test!$B$18,test!F18,IF(Հաշվիչ!$D$13=test!$B$19,test!F19,IF(Հաշվիչ!$D$13=test!$B$20,test!F20,0))) -> 165 | AW13: =IF($D$13=test!$B$18,test!G18,IF(Հաշվիչ!$D$13=test!$B$19,test!G19,IF(Հաշվիչ!$D$13=test!$B$20,test!G20,0))) -> 106 | AX13: =IF($D$13=test!$B$18,test!H18,IF(Հաշվիչ!$D$13=test!$B$19,test!H19,IF(Հաշվիչ!$D$13=test!$B$20,test!H20,0))) -> 244 | AY13: =IF($D$13=test!$B$18,test!I18,IF(Հաշվիչ!$D$13=test!$B$19,test!I19,IF(Հաշվիչ!$D$13=test!$B$20,test!I20,0))) -> 27 | AZ13: =IF($D$13=test!$B$18,test!J18,IF(Հաշվիչ!$D$13=test!$B$19,test!J19,IF(Հաշվիչ!$D$13=test!$B$20,test!J20,0))) -> 70 | BA13: =IF($D$13=test!$B$18,test!K18,IF(Հաշվիչ!$D$13=test!$B$19,test!K19,IF(Հաշվիչ!$D$13=test!$B$20,test!K20,0))) -> 33 | BB13: =IF($D$13=test!$B$18,test!L18,IF(Հաշվիչ!$D$13=test!$B$19,test!L19,IF(Հաշվիչ!$D$13=test!$B$20,test!L20,0))) -> 13.3 | BC13: =IF($D$13=test!$B$18,test!M18,IF(Հաշվիչ!$D$13=test!$B$19,test!M19,IF(Հաշվիչ!$D$13=test!$B$20,test!M20,0))) -> 3 | BD13: =IF($D$13=test!$B$18,test!N18,IF(Հաշվիչ!$D$13=test!$B$19,test!N19,IF(Հաշվիչ!$D$13=test!$B$20,test!N20,0))) -> 140 | BE13: =IF($D$13=test!$B$18,test!O18,IF(Հաշվիչ!$D$13=test!$B$19,test!O19,IF(Հաշվիչ!$D$13=test!$B$20,test!O20,0))) -> 80 | BF13: =IF($D$13=test!$B$18,test!P18,IF(Հաշվիչ!$D$13=test!$B$19,test!P19,IF(Հաշվիչ!$D$13=test!$B$20,test!P20,0))) -> 80 | BG13: =IF($H$13=test!$B$18,test!C18,IF(Հաշվիչ!$H$13=test!$B$19,test!C19,IF(Հաշվիչ!$H$13=test!$B$20,test!C20,0))) -> 0 | BH13: =IF($H$13=test!$B$18,test!D18,IF(Հաշվիչ!$H$13=test!$B$19,test!D19,IF(Հաշվիչ!$H$13=test!$B$20,test!D20,0))) -> 0 | BI13: =IF($H$13=test!$B$18,test!E18,IF(Հաշվիչ!$H$13=test!$B$19,test!E19,IF(Հաշվիչ!$H$13=test!$B$20,test!E20,0))) -> 0 | BJ13: =IF($H$13=test!$B$18,test!F18,IF(Հաշվիչ!$H$13=test!$B$19,test!F19,IF(Հաշվիչ!$H$13=test!$B$20,test!F20,0))) -> 0 | BK13: =IF($H$13=test!$B$18,test!G18,IF(Հաշվիչ!$H$13=test!$B$19,test!G19,IF(Հաշվիչ!$H$13=test!$B$20,test!G20,0))) -> 0 | BL13: =IF($H$13=test!$B$18,test!H18,IF(Հաշվիչ!$H$13=test!$B$19,test!H19,IF(Հաշվիչ!$H$13=test!$B$20,test!H20,0))) -> 0 | BM13: =IF($H$13=test!$B$18,test!I18,IF(Հաշվիչ!$H$13=test!$B$19,test!I19,IF(Հաշվիչ!$H$13=test!$B$20,test!I20,0))) -> 0 | BN13: =IF($H$13=test!$B$18,test!J18,IF(Հաշվիչ!$H$13=test!$B$19,test!J19,IF(Հաշվիչ!$H$13=test!$B$20,test!J20,0))) -> 0 | BO13: =IF($H$13=test!$B$18,test!K18,IF(Հաշվիչ!$H$13=test!$B$19,test!K19,IF(Հաշվիչ!$H$13=test!$B$20,test!K20,0))) -> 0 | BP13: =IF($H$13=test!$B$18,test!L18,IF(Հաշվիչ!$H$13=test!$B$19,test!L19,IF(Հաշվիչ!$H$13=test!$B$20,test!L20,0))) -> 0 | BQ13: =IF($H$13=test!$B$18,test!M18,IF(Հաշվիչ!$H$13=test!$B$19,test!M19,IF(Հաշվիչ!$H$13=test!$B$20,test!M20,0))) -> 0 | BR13: =IF($H$13=test!$B$18,test!N18,IF(Հաշվիչ!$H$13=test!$B$19,test!N19,IF(Հաշվիչ!$H$13=test!$B$20,test!N20,0))) -> 0 | BS13: =IF($H$13=test!$B$18,test!O18,IF(Հաշվիչ!$H$13=test!$B$19,test!O19,IF(Հաշվիչ!$H$13=test!$B$20,test!O20,0))) -> 0 | BT13: =IF($H$13=test!$B$18,test!P18,IF(Հաշվիչ!$H$13=test!$B$19,test!P19,IF(Հաշվիչ!$H$13=test!$B$20,test!P20,0))) -> 0 | BU13: 0 | BV13: 0 | BW13: 0 | BX13: 0 | BY13: 0 | BZ13: 0 | CA13: 0 | CB13: 0 | CC13: 0 | CD13: 0 | CE13: 0 | CF13: 0 | CG13: 0 | CH13: 0 | CI13: 0 | CJ13: 0 | CK13: 0 | CL13: 0 | CM13: 0 | CN13: 0 | CO13: 0 | CP13: 0 | CQ13: 0 | CR13: 0 | CS13: 0 | CT13: 0 | CU13: 0 | CV13: 0 | CW13: 0 | CX13: 0 | CY13: 0 | CZ13: 0 | DA13: 0 | DB13: 0 | DC13: 0 | DD13: 0 | DE13: 0 | DF13: 0 | DG13: 0 | DH13: 0 | DI13: 0 | DJ13: 0 | DM13: Հում ճարպ /գ | DN13: 211 | DO13: 231 | DP13: 248 | DQ13: 264 | DR13: 280 | DS13: 296 | DT13: 266 | DU13: 278 | DV13: 288 | DW13: 301 | DX13: 310 | DY13: 320 | DZ13: 214 | EA13: 234 | EB13: 253 | EC13: 272 | ED13: 285 | EE13: 293
DM14: Կալցիում /գ | DN14: 60 | DO14: 65 | DP14: 70 | DQ14: 75 | DR14: 80 | DS14: 84 | DT14: 63 | DU14: 66 | DV14: 68 | DW14: 71 | DX14: 74 | DY14: 76 | DZ14: 50 | EA14: 55 | EB14: 59 | EC14: 64 | ED14: 67 | EE14: 69
B15: ՄՂԵՂ | D15: N/D | F15: 0 | H15: N/D | J15: 0 | L15: 50 | M15: 60 | N15: 0 | O15: 0 | Q15: Լակտացիայի II-րդ փուլ | W15: Մարսելի պրոտեին/գ | X15: =DA50 -> 697 | Y15: =IF(AND($A$1=1, $T$19=400),'Օրական նորմեր'!T7,IF(AND($A$1=1, $T$19=450),'Օրական նորմեր'!U7,IF(AND($A$1=1, $T$19=500),'Օրական նորմեր'!V7,IF(AND($A$1=1, $T$19=550),'Օրական նորմեր'!W7,IF(AND($A$1=1, $T$19=600),'Օրական նորմեր'!X7,IF(AND($A$1=1, $T$19=650),'Օրական նորմեր'!Y7,0)))))) -> 825 | Z15: =IF(AND($A$1=2, $T$19=400),'Օրական նորմեր'!Z7,IF(AND($A$1=2, $T$19=450),'Օրական նորմեր'!AA7,IF(AND($A$1=2, $T$19=500),'Օրական նորմեր'!AB7,IF(AND($A$1=2, $T$19=550),'Օրական նորմեր'!AC7,IF(AND($A$1=2, $T$19=600),'Օրական նորմեր'!AD7,IF(AND($A$1=2, $T$19=650),'Օրական նորմեր'!AE7,0)))))) -> 0 | AA15: =IF(AND($A$1=3, $T$19=400),'Օրական նորմեր'!AF7,IF(AND($A$1=3, $T$19=450),'Օրական նորմեր'!AG7,IF(AND($A$1=3, $T$19=500),'Օրական նորմեր'!AH7,IF(AND($A$1=3, $T$19=550),'Օրական նորմեր'!AI7,IF(AND($A$1=3, $T$19=600),'Օրական նորմեր'!AJ7,IF(AND($A$1=3, $T$19=650),'Օրական նորմեր'!AK7,0)))))) -> 0 | AB15: 825 | AC15: -128 | AS15: =IF($D$15=test!$B$21,test!C21,0) -> 0 | AT15: =IF($D$15=test!$B$21,test!D21,0) -> 0 | AU15: =IF($D$15=test!$B$21,test!E21,0) -> 0 | AV15: =IF($D$15=test!$B$21,test!F21,0) -> 0 | AW15: =IF($D$15=test!$B$21,test!G21,0) -> 0 | AX15: =IF($D$15=test!$B$21,test!H21,0) -> 0 | AY15: =IF($D$15=test!$B$21,test!I21,0) -> 0 | AZ15: =IF($D$15=test!$B$21,test!J21,0) -> 0 | BA15: =IF($D$15=test!$B$21,test!K21,0) -> 0 | BB15: =IF($D$15=test!$B$21,test!L21,0) -> 0 | BC15: =IF($D$15=test!$B$21,test!M21,0) -> 0 | BD15: =IF($D$15=test!$B$21,test!N21,0) -> 0 | BE15: =IF($D$15=test!$B$21,test!O21,0) -> 0 | BF15: =IF($D$15=test!$B$21,test!P21,0) -> 0 | BG15: =IF($H$15=test!$B$21,test!C21,0) -> 0 | BH15: =IF($H$15=test!$B$21,test!D21,0) -> 0 | BI15: =IF($H$15=test!$B$21,test!E21,0) -> 0 | BJ15: =IF($H$15=test!$B$21,test!F21,0) -> 0 | BK15: =IF($H$15=test!$B$21,test!G21,0) -> 0 | BL15: =IF($H$15=test!$B$21,test!H21,0) -> 0 | BM15: =IF($H$15=test!$B$21,test!I21,0) -> 0 | BN15: =IF($H$15=test!$B$21,test!J21,0) -> 0 | BO15: =IF($H$15=test!$B$21,test!K21,0) -> 0 | BP15: =IF($H$15=test!$B$21,test!L21,0) -> 0 | BQ15: =IF($H$15=test!$B$21,test!M21,0) -> 0 | BR15: =IF($H$15=test!$B$21,test!N21,0) -> 0 | BS15: =IF($H$15=test!$B$21,test!O21,0) -> 0 | BT15: =IF($H$15=test!$B$21,test!P21,0) -> 0 | BU15: 0 | BV15: 0 | BW15: 0 | BX15: 0 | BY15: 0 | BZ15: 0 | CA15: 0 | CB15: 0 | CC15: 0 | CD15: 0 | CE15: 0 | CF15: 0 | CG15: 0 | CH15: 0 | CI15: 0 | CJ15: 0 | CK15: 0 | CL15: 0 | CM15: 0 | CN15: 0 | CO15: 0 | CP15: 0 | CQ15: 0 | CR15: 0 | CS15: 0 | CT15: 0 | CU15: 0 | CV15: 0 | CW15: 0 | CX15: 0 | CY15: 0 | CZ15: 0 | DA15: 0 | DB15: 0 | DC15: 0 | DD15: 0 | DE15: 0 | DF15: 0 | DG15: 0 | DH15: 0 | DI15: 0 | DJ15: 0 | DM15: Ֆոսֆոր /գ | DN15: 35 | DO15: 37 | DP15: 40 | DQ15: 42 | DR15: 45 | DS15: 48 | DT15: 36 | DU15: 37 | DV15: 38 | DW15: 40 | DX15: 42 | DY15: 47 | DZ15: 27 | EA15: 29 | EB15: 32 | EC15: 34 | ED15: 36 | EE15: 38
DM16: Կարոտին /մգ | DN16: 250 | DO16: 280 | DP16: 300 | DQ16: 320 | DR16: 340 | DS16: 355 | DT16: 320 | DU16: 340 | DV16: 350 | DW16: 365 | DX16: 380 | DY16: 390 | DZ16: 248 | EA16: 270 | EB16: 292 | EC16: 315 | ED16: 330 | EE16: 340
B17: ՍԻԼՈՍ | D17: N/D | F17: 0 | H17: N/D | J17: 0 | L17: 70 | M17: 90 | N17: 0 | O17: 0 | W17: Թաղանթանյութ /գ | X17: =DB50 -> 4147 | Y17: =IF(AND($A$1=1, $T$19=400),'Օրական նորմեր'!T8,IF(AND($A$1=1, $T$19=450),'Օրական նորմեր'!U8,IF(AND($A$1=1, $T$19=500),'Օրական նորմեր'!V8,IF(AND($A$1=1, $T$19=550),'Օրական նորմեր'!W8,IF(AND($A$1=1, $T$19=600),'Օրական նորմեր'!X8,IF(AND($A$1=1, $T$19=650),'Օրական նորմեր'!Y8,0)))))) -> 3360 | Z17: =IF(AND($A$1=2, $T$19=400),'Օրական նորմեր'!Z8,IF(AND($A$1=2, $T$19=450),'Օրական նորմեր'!AA8,IF(AND($A$1=2, $T$19=500),'Օրական նորմեր'!AB8,IF(AND($A$1=2, $T$19=550),'Օրական նորմեր'!AC8,IF(AND($A$1=2, $T$19=600),'Օրական նորմեր'!AD8,IF(AND($A$1=2, $T$19=650),'Օրական նորմեր'!AE8,0)))))) -> 0 | AA17: =IF(AND($A$1=3, $T$19=400),'Օրական նորմեր'!AF8,IF(AND($A$1=3, $T$19=450),'Օրական նորմեր'!AG8,IF(AND($A$1=3, $T$19=500),'Օրական նորմեր'!AH8,IF(AND($A$1=3, $T$19=550),'Օրական նորմեր'!AI8,IF(AND($A$1=3, $T$19=600),'Օրական նորմեր'!AJ8,IF(AND($A$1=3, $T$19=650),'Օրական նորմեր'!AK8,0)))))) -> 0 | AB17: 3360 | AC17: 787 | AS17: =IF($D$17=test!$B$22,test!C22,IF(Հաշվիչ!$D$17=test!$B$23,test!C23,IF(Հաշվիչ!$D$17=test!$B$24,test!C24,IF(Հաշվիչ!$D$17=test!$B$25,test!C25,IF(Հաշվիչ!$D$17=test!$B$26,test!C26,IF(Հաշվիչ!$D$17=test!$B$27,test!C27,0)))))) -> 0 | AT17: =IF($D$17=test!$B$22,test!D22,IF(Հաշվիչ!$D$17=test!$B$23,test!D23,IF(Հաշվիչ!$D$17=test!$B$24,test!D24,IF(Հաշվիչ!$D$17=test!$B$25,test!D25,IF(Հաշվիչ!$D$17=test!$B$26,test!D26,IF(Հաշվիչ!$D$17=test!$B$27,test!D27,0)))))) -> 0 | AU17: =IF($D$17=test!$B$22,test!E22,IF(Հաշվիչ!$D$17=test!$B$23,test!E23,IF(Հաշվիչ!$D$17=test!$B$24,test!E24,IF(Հաշվիչ!$D$17=test!$B$25,test!E25,IF(Հաշվիչ!$D$17=test!$B$26,test!E26,IF(Հաշվիչ!$D$17=test!$B$27,test!E27,0)))))) -> 0 | AV17: =IF($D$17=test!$B$22,test!F22,IF(Հաշվիչ!$D$17=test!$B$23,test!F23,IF(Հաշվիչ!$D$17=test!$B$24,test!F24,IF(Հաշվիչ!$D$17=test!$B$25,test!F25,IF(Հաշվիչ!$D$17=test!$B$26,test!F26,IF(Հաշվիչ!$D$17=test!$B$27,test!F27,0)))))) -> 0 | AW17: =IF($D$17=test!$B$22,test!G22,IF(Հաշվիչ!$D$17=test!$B$23,test!G23,IF(Հաշվիչ!$D$17=test!$B$24,test!G24,IF(Հաշվիչ!$D$17=test!$B$25,test!G25,IF(Հաշվիչ!$D$17=test!$B$26,test!G26,IF(Հաշվիչ!$D$17=test!$B$27,test!G27,0)))))) -> 0 | AX17: =IF($D$17=test!$B$22,test!H22,IF(Հաշվիչ!$D$17=test!$B$23,test!H23,IF(Հաշվիչ!$D$17=test!$B$24,test!H24,IF(Հաշվիչ!$D$17=test!$B$25,test!H25,IF(Հաշվիչ!$D$17=test!$B$26,test!H26,IF(Հաշվիչ!$D$17=test!$B$27,test!H27,0)))))) -> 0 | AY17: =IF($D$17=test!$B$22,test!I22,IF(Հաշվիչ!$D$17=test!$B$23,test!I23,IF(Հաշվիչ!$D$17=test!$B$24,test!I24,IF(Հաշվիչ!$D$17=test!$B$25,test!I25,IF(Հաշվիչ!$D$17=test!$B$26,test!I26,IF(Հաշվիչ!$D$17=test!$B$27,test!I27,0)))))) -> 0 | AZ17: =IF($D$17=test!$B$22,test!J22,IF(Հաշվիչ!$D$17=test!$B$23,test!J23,IF(Հաշվիչ!$D$17=test!$B$24,test!J24,IF(Հաշվիչ!$D$17=test!$B$25,test!J25,IF(Հաշվիչ!$D$17=test!$B$26,test!J26,IF(Հաշվիչ!$D$17=test!$B$27,test!J27,0)))))) -> 0 | BA17: =IF($D$17=test!$B$22,test!K22,IF(Հաշվիչ!$D$17=test!$B$23,test!K23,IF(Հաշվիչ!$D$17=test!$B$24,test!K24,IF(Հաշվիչ!$D$17=test!$B$25,test!K25,IF(Հաշվիչ!$D$17=test!$B$26,test!K26,IF(Հաշվիչ!$D$17=test!$B$27,test!K27,0)))))) -> 0 | BB17: =IF($D$17=test!$B$22,test!L22,IF(Հաշվիչ!$D$17=test!$B$23,test!L23,IF(Հաշվիչ!$D$17=test!$B$24,test!L24,IF(Հաշվիչ!$D$17=test!$B$25,test!L25,IF(Հաշվիչ!$D$17=test!$B$26,test!L26,IF(Հաշվիչ!$D$17=test!$B$27,test!L27,0)))))) -> 0 | BC17: =IF($D$17=test!$B$22,test!M22,IF(Հաշվիչ!$D$17=test!$B$23,test!M23,IF(Հաշվիչ!$D$17=test!$B$24,test!M24,IF(Հաշվիչ!$D$17=test!$B$25,test!M25,IF(Հաշվիչ!$D$17=test!$B$26,test!M26,IF(Հաշվիչ!$D$17=test!$B$27,test!M27,0)))))) -> 0 | BD17: =IF($D$17=test!$B$22,test!N22,IF(Հաշվիչ!$D$17=test!$B$23,test!N23,IF(Հաշվիչ!$D$17=test!$B$24,test!N24,IF(Հաշվիչ!$D$17=test!$B$25,test!N25,IF(Հաշվիչ!$D$17=test!$B$26,test!N26,IF(Հաշվիչ!$D$17=test!$B$27,test!N27,0)))))) -> 0 | BE17: =IF($D$17=test!$B$22,test!O22,IF(Հաշվիչ!$D$17=test!$B$23,test!O23,IF(Հաշվիչ!$D$17=test!$B$24,test!O24,IF(Հաշվիչ!$D$17=test!$B$25,test!O25,IF(Հաշվիչ!$D$17=test!$B$26,test!O26,IF(Հաշվիչ!$D$17=test!$B$27,test!O27,0)))))) -> 0 | BF17: =IF($D$17=test!$B$22,test!P22,IF(Հաշվիչ!$D$17=test!$B$23,test!P23,IF(Հաշվիչ!$D$17=test!$B$24,test!P24,IF(Հաշվիչ!$D$17=test!$B$25,test!P25,IF(Հաշվիչ!$D$17=test!$B$26,test!P26,IF(Հաշվիչ!$D$17=test!$B$27,test!P27,0)))))) -> 0 | BG17: =IF($H$17=test!$B$22,test!C22,IF(Հաշվիչ!$H$17=test!$B$23,test!C23,IF(Հաշվիչ!$H$17=test!$B$24,test!C24,IF(Հաշվիչ!$H$17=test!$B$25,test!C25,IF(Հաշվիչ!$H$17=test!$B$26,test!C26,IF(Հաշվիչ!$H$17=test!$B$27,test!C27,0)))))) -> 0 | BH17: =IF($H$17=test!$B$22,test!D22,IF(Հաշվիչ!$H$17=test!$B$23,test!D23,IF(Հաշվիչ!$H$17=test!$B$24,test!D24,IF(Հաշվիչ!$H$17=test!$B$25,test!D25,IF(Հաշվիչ!$H$17=test!$B$26,test!D26,IF(Հաշվիչ!$H$17=test!$B$27,test!D27,0)))))) -> 0 | BI17: =IF($H$17=test!$B$22,test!E22,IF(Հաշվիչ!$H$17=test!$B$23,test!E23,IF(Հաշվիչ!$H$17=test!$B$24,test!E24,IF(Հաշվիչ!$H$17=test!$B$25,test!E25,IF(Հաշվիչ!$H$17=test!$B$26,test!E26,IF(Հաշվիչ!$H$17=test!$B$27,test!E27,0)))))) -> 0 | BJ17: =IF($H$17=test!$B$22,test!F22,IF(Հաշվիչ!$H$17=test!$B$23,test!F23,IF(Հաշվիչ!$H$17=test!$B$24,test!F24,IF(Հաշվիչ!$H$17=test!$B$25,test!F25,IF(Հաշվիչ!$H$17=test!$B$26,test!F26,IF(Հաշվիչ!$H$17=test!$B$27,test!F27,0)))))) -> 0 | BK17: =IF($H$17=test!$B$22,test!G22,IF(Հաշվիչ!$H$17=test!$B$23,test!G23,IF(Հաշվիչ!$H$17=test!$B$24,test!G24,IF(Հաշվիչ!$H$17=test!$B$25,test!G25,IF(Հաշվիչ!$H$17=test!$B$26,test!G26,IF(Հաշվիչ!$H$17=test!$B$27,test!G27,0)))))) -> 0 | BL17: =IF($H$17=test!$B$22,test!H22,IF(Հաշվիչ!$H$17=test!$B$23,test!H23,IF(Հաշվիչ!$H$17=test!$B$24,test!H24,IF(Հաշվիչ!$H$17=test!$B$25,test!H25,IF(Հաշվիչ!$H$17=test!$B$26,test!H26,IF(Հաշվիչ!$H$17=test!$B$27,test!H27,0)))))) -> 0 | BM17: =IF($H$17=test!$B$22,test!I22,IF(Հաշվիչ!$H$17=test!$B$23,test!I23,IF(Հաշվիչ!$H$17=test!$B$24,test!I24,IF(Հաշվիչ!$H$17=test!$B$25,test!I25,IF(Հաշվիչ!$H$17=test!$B$26,test!I26,IF(Հաշվիչ!$H$17=test!$B$27,test!I27,0)))))) -> 0 | BN17: =IF($H$17=test!$B$22,test!J22,IF(Հաշվիչ!$H$17=test!$B$23,test!J23,IF(Հաշվիչ!$H$17=test!$B$24,test!J24,IF(Հաշվիչ!$H$17=test!$B$25,test!J25,IF(Հաշվիչ!$H$17=test!$B$26,test!J26,IF(Հաշվիչ!$H$17=test!$B$27,test!J27,0)))))) -> 0 | BO17: =IF($H$17=test!$B$22,test!K22,IF(Հաշվիչ!$H$17=test!$B$23,test!K23,IF(Հաշվիչ!$H$17=test!$B$24,test!K24,IF(Հաշվիչ!$H$17=test!$B$25,test!K25,IF(Հաշվիչ!$H$17=test!$B$26,test!K26,IF(Հաշվիչ!$H$17=test!$B$27,test!K27,0)))))) -> 0 | BP17: =IF($H$17=test!$B$22,test!L22,IF(Հաշվիչ!$H$17=test!$B$23,test!L23,IF(Հաշվիչ!$H$17=test!$B$24,test!L24,IF(Հաշվիչ!$H$17=test!$B$25,test!L25,IF(Հաշվիչ!$H$17=test!$B$26,test!L26,IF(Հաշվիչ!$H$17=test!$B$27,test!L27,0)))))) -> 0 | BQ17: =IF($H$17=test!$B$22,test!M22,IF(Հաշվիչ!$H$17=test!$B$23,test!M23,IF(Հաշվիչ!$H$17=test!$B$24,test!M24,IF(Հաշվիչ!$H$17=test!$B$25,test!M25,IF(Հաշվիչ!$H$17=test!$B$26,test!M26,IF(Հաշվիչ!$H$17=test!$B$27,test!M27,0)))))) -> 0 | BR17: =IF($H$17=test!$B$22,test!N22,IF(Հաշվիչ!$H$17=test!$B$23,test!N23,IF(Հաշվիչ!$H$17=test!$B$24,test!N24,IF(Հաշվիչ!$H$17=test!$B$25,test!N25,IF(Հաշվիչ!$H$17=test!$B$26,test!N26,IF(Հաշվիչ!$H$17=test!$B$27,test!N27,0)))))) -> 0 | BS17: =IF($H$17=test!$B$22,test!O22,IF(Հաշվիչ!$H$17=test!$B$23,test!O23,IF(Հաշվիչ!$H$17=test!$B$24,test!O24,IF(Հաշվիչ!$H$17=test!$B$25,test!O25,IF(Հաշվիչ!$H$17=test!$B$26,test!O26,IF(Հաշվիչ!$H$17=test!$B$27,test!O27,0)))))) -> 0 | BT17: =IF($H$17=test!$B$22,test!P22,IF(Հաշվիչ!$H$17=test!$B$23,test!P23,IF(Հաշվիչ!$H$17=test!$B$24,test!P24,IF(Հաշվիչ!$H$17=test!$B$25,test!P25,IF(Հաշվիչ!$H$17=test!$B$26,test!P26,IF(Հաշվիչ!$H$17=test!$B$27,test!P27,0)))))) -> 0 | BU17: 0 | BV17: 0 | BW17: 0 | BX17: 0 | BY17: 0 | BZ17: 0 | CA17: 0 | CB17: 0 | CC17: 0 | CD17: 0 | CE17: 0 | CF17: 0 | CG17: 0 | CH17: 0 | CI17: 0 | CJ17: 0 | CK17: 0 | CL17: 0 | CM17: 0 | CN17: 0 | CO17: 0 | CP17: 0 | CQ17: 0 | CR17: 0 | CS17: 0 | CT17: 0 | CU17: 0 | CV17: 0 | CW17: 0 | CX17: 0 | CY17: 0 | CZ17: 0 | DA17: 0 | DB17: 0 | DC17: 0 | DD17: 0 | DE17: 0 | DF17: 0 | DG17: 0 | DH17: 0 | DI17: 0 | DJ17: 0 | DM17: D վիտամին /հազ.ԱՄ | DN17: 6.4 | DO17: 7 | DP17: 7.5 | DQ17: 8 | DR17: 8.5 | DS17: 8.9 | DT17: 7.6 | DU17: 8 | DV17: 8.2 | DW17: 8.5 | DX17: 8.8 | DY17: 9 | DZ17: 5.4 | EA17: 5.8 | EB17: 6.3 | EC17: 6.8 | ED17: 7.1 | EE17: 7.4
DM18: E վիտամին /մգ | DN18: 256 | DO18: 280 | DP18: 300 | DQ18: 320 | DR18: 340 | DS18: 356 | DT18: 315 | DU18: 330 | DV18: 340 | DW18: 355 | DX18: 365 | DY18: 380 | DZ18: 234 | EA18: 256 | EB18: 276 | EC18: 298 | ED18: 312 | EE18: 322
B19: ՍԵՆԱԺ | D19: N/D | F19: 0 | H19: N/D | J19: 0 | L19: 70 | M19: 90 | N19: 0 | O19: 0 | Q19: Կովի քաշը կգ. | T19: 500 | W19: Օսլա /գ | X19: =DC50 -> 2316 | Y19: =IF(AND($A$1=1, $T$19=400),'Օրական նորմեր'!T9,IF(AND($A$1=1, $T$19=450),'Օրական նորմեր'!U9,IF(AND($A$1=1, $T$19=500),'Օրական նորմեր'!V9,IF(AND($A$1=1, $T$19=550),'Օրական նորմեր'!W9,IF(AND($A$1=1, $T$19=600),'Օրական նորմեր'!X9,IF(AND($A$1=1, $T$19=650),'Օրական նորմեր'!Y9,0)))))) -> 802 | Z19: =IF(AND($A$1=2, $T$19=400),'Օրական նորմեր'!Z9,IF(AND($A$1=2, $T$19=450),'Օրական նորմեր'!AA9,IF(AND($A$1=2, $T$19=500),'Օրական նորմեր'!AB9,IF(AND($A$1=2, $T$19=550),'Օրական նորմեր'!AC9,IF(AND($A$1=2, $T$19=600),'Օրական նորմեր'!AD9,IF(AND($A$1=2, $T$19=650),'Օրական նորմեր'!AE9,0)))))) -> 0 | AA19: =IF(AND($A$1=3, $T$19=400),'Օրական նորմեր'!AF9,IF(AND($A$1=3, $T$19=450),'Օրական նորմեր'!AG9,IF(AND($A$1=3, $T$19=500),'Օրական նորմեր'!AH9,IF(AND($A$1=3, $T$19=550),'Օրական նորմեր'!AI9,IF(AND($A$1=3, $T$19=600),'Օրական նորմեր'!AJ9,IF(AND($A$1=3, $T$19=650),'Օրական նորմեր'!AK9,0)))))) -> 0 | AB19: 802 | AC19: 1514 | AS19: =IF($D$19=test!$B$28,test!C28,IF(Հաշվիչ!$D$19=test!$B$29,test!C29,IF(Հաշվիչ!$D$19=test!$B$30,test!C30,IF(Հաշվիչ!$D$19=test!$B$31,test!C31,IF(Հաշվիչ!$D$19=test!$B$32,test!C32,0))))) -> 0 | AT19: =IF($D$19=test!$B$28,test!D28,IF(Հաշվիչ!$D$19=test!$B$29,test!D29,IF(Հաշվիչ!$D$19=test!$B$30,test!D30,IF(Հաշվիչ!$D$19=test!$B$31,test!D31,IF(Հաշվիչ!$D$19=test!$B$32,test!D32,0))))) -> 0 | AU19: =IF($D$19=test!$B$28,test!E28,IF(Հաշվիչ!$D$19=test!$B$29,test!E29,IF(Հաշվիչ!$D$19=test!$B$30,test!E30,IF(Հաշվիչ!$D$19=test!$B$31,test!E31,IF(Հաշվիչ!$D$19=test!$B$32,test!E32,0))))) -> 0 | AV19: =IF($D$19=test!$B$28,test!F28,IF(Հաշվիչ!$D$19=test!$B$29,test!F29,IF(Հաշվիչ!$D$19=test!$B$30,test!F30,IF(Հաշվիչ!$D$19=test!$B$31,test!F31,IF(Հաշվիչ!$D$19=test!$B$32,test!F32,0))))) -> 0 | AW19: =IF($D$19=test!$B$28,test!G28,IF(Հաշվիչ!$D$19=test!$B$29,test!G29,IF(Հաշվիչ!$D$19=test!$B$30,test!G30,IF(Հաշվիչ!$D$19=test!$B$31,test!G31,IF(Հաշվիչ!$D$19=test!$B$32,test!G32,0))))) -> 0 | AX19: =IF($D$19=test!$B$28,test!H28,IF(Հաշվիչ!$D$19=test!$B$29,test!H29,IF(Հաշվիչ!$D$19=test!$B$30,test!H30,IF(Հաշվիչ!$D$19=test!$B$31,test!H31,IF(Հաշվիչ!$D$19=test!$B$32,test!H32,0))))) -> 0 | AY19: =IF($D$19=test!$B$28,test!I28,IF(Հաշվիչ!$D$19=test!$B$29,test!I29,IF(Հաշվիչ!$D$19=test!$B$30,test!I30,IF(Հաշվիչ!$D$19=test!$B$31,test!I31,IF(Հաշվիչ!$D$19=test!$B$32,test!I32,0))))) -> 0 | AZ19: =IF($D$19=test!$B$28,test!J28,IF(Հաշվիչ!$D$19=test!$B$29,test!J29,IF(Հաշվիչ!$D$19=test!$B$30,test!J30,IF(Հաշվիչ!$D$19=test!$B$31,test!J31,IF(Հաշվիչ!$D$19=test!$B$32,test!J32,0))))) -> 0 | BA19: =IF($D$19=test!$B$28,test!K28,IF(Հաշվիչ!$D$19=test!$B$29,test!K29,IF(Հաշվիչ!$D$19=test!$B$30,test!K30,IF(Հաշվիչ!$D$19=test!$B$31,test!K31,IF(Հաշվիչ!$D$19=test!$B$32,test!K32,0))))) -> 0 | BB19: =IF($D$19=test!$B$28,test!L28,IF(Հաշվիչ!$D$19=test!$B$29,test!L29,IF(Հաշվիչ!$D$19=test!$B$30,test!L30,IF(Հաշվիչ!$D$19=test!$B$31,test!L31,IF(Հաշվիչ!$D$19=test!$B$32,test!L32,0))))) -> 0 | BC19: =IF($D$19=test!$B$28,test!M28,IF(Հաշվիչ!$D$19=test!$B$29,test!M29,IF(Հաշվիչ!$D$19=test!$B$30,test!M30,IF(Հաշվիչ!$D$19=test!$B$31,test!M31,IF(Հաշվիչ!$D$19=test!$B$32,test!M32,0))))) -> 0 | BD19: =IF($D$19=test!$B$28,test!N28,IF(Հաշվիչ!$D$19=test!$B$29,test!N29,IF(Հաշվիչ!$D$19=test!$B$30,test!N30,IF(Հաշվիչ!$D$19=test!$B$31,test!N31,IF(Հաշվիչ!$D$19=test!$B$32,test!N32,0))))) -> 0 | BE19: =IF($D$19=test!$B$28,test!O28,IF(Հաշվիչ!$D$19=test!$B$29,test!O29,IF(Հաշվիչ!$D$19=test!$B$30,test!O30,IF(Հաշվիչ!$D$19=test!$B$31,test!O31,IF(Հաշվիչ!$D$19=test!$B$32,test!O32,0))))) -> 0 | BF19: =IF($D$19=test!$B$28,test!P28,IF(Հաշվիչ!$D$19=test!$B$29,test!P29,IF(Հաշվիչ!$D$19=test!$B$30,test!P30,IF(Հաշվիչ!$D$19=test!$B$31,test!P31,IF(Հաշվիչ!$D$19=test!$B$32,test!P32,0))))) -> 0 | BG19: =IF($H$19=test!$B$28,test!C28,IF(Հաշվիչ!$H$19=test!$B$29,test!C29,IF(Հաշվիչ!$H$19=test!$B$30,test!C30,IF(Հաշվիչ!$H$19=test!$B$31,test!C31,IF(Հաշվիչ!$H$19=test!$B$32,test!C32,0))))) -> 0 | BH19: =IF($H$19=test!$B$28,test!D28,IF(Հաշվիչ!$H$19=test!$B$29,test!D29,IF(Հաշվիչ!$H$19=test!$B$30,test!D30,IF(Հաշվիչ!$H$19=test!$B$31,test!D31,IF(Հաշվիչ!$H$19=test!$B$32,test!D32,0))))) -> 0 | BI19: =IF($H$19=test!$B$28,test!E28,IF(Հաշվիչ!$H$19=test!$B$29,test!E29,IF(Հաշվիչ!$H$19=test!$B$30,test!E30,IF(Հաշվիչ!$H$19=test!$B$31,test!E31,IF(Հաշվիչ!$H$19=test!$B$32,test!E32,0))))) -> 0 | BJ19: =IF($H$19=test!$B$28,test!F28,IF(Հաշվիչ!$H$19=test!$B$29,test!F29,IF(Հաշվիչ!$H$19=test!$B$30,test!F30,IF(Հաշվիչ!$H$19=test!$B$31,test!F31,IF(Հաշվիչ!$H$19=test!$B$32,test!F32,0))))) -> 0 | BK19: =IF($H$19=test!$B$28,test!G28,IF(Հաշվիչ!$H$19=test!$B$29,test!G29,IF(Հաշվիչ!$H$19=test!$B$30,test!G30,IF(Հաշվիչ!$H$19=test!$B$31,test!G31,IF(Հաշվիչ!$H$19=test!$B$32,test!G32,0))))) -> 0 | BL19: =IF($H$19=test!$B$28,test!H28,IF(Հաշվիչ!$H$19=test!$B$29,test!H29,IF(Հաշվիչ!$H$19=test!$B$30,test!H30,IF(Հաշվիչ!$H$19=test!$B$31,test!H31,IF(Հաշվիչ!$H$19=test!$B$32,test!H32,0))))) -> 0 | BM19: =IF($H$19=test!$B$28,test!I28,IF(Հաշվիչ!$H$19=test!$B$29,test!I29,IF(Հաշվիչ!$H$19=test!$B$30,test!I30,IF(Հաշվիչ!$H$19=test!$B$31,test!I31,IF(Հաշվիչ!$H$19=test!$B$32,test!I32,0))))) -> 0 | BN19: =IF($H$19=test!$B$28,test!J28,IF(Հաշվիչ!$H$19=test!$B$29,test!J29,IF(Հաշվիչ!$H$19=test!$B$30,test!J30,IF(Հաշվիչ!$H$19=test!$B$31,test!J31,IF(Հաշվիչ!$H$19=test!$B$32,test!J32,0))))) -> 0 | BO19: =IF($H$19=test!$B$28,test!K28,IF(Հաշվիչ!$H$19=test!$B$29,test!K29,IF(Հաշվիչ!$H$19=test!$B$30,test!K30,IF(Հաշվիչ!$H$19=test!$B$31,test!K31,IF(Հաշվիչ!$H$19=test!$B$32,test!K32,0))))) -> 0 | BP19: =IF($H$19=test!$B$28,test!L28,IF(Հաշվիչ!$H$19=test!$B$29,test!L29,IF(Հաշվիչ!$H$19=test!$B$30,test!L30,IF(Հաշվիչ!$H$19=test!$B$31,test!L31,IF(Հաշվիչ!$H$19=test!$B$32,test!L32,0))))) -> 0 | BQ19: =IF($H$19=test!$B$28,test!M28,IF(Հաշվիչ!$H$19=test!$B$29,test!M29,IF(Հաշվիչ!$H$19=test!$B$30,test!M30,IF(Հաշվիչ!$H$19=test!$B$31,test!M31,IF(Հաշվիչ!$H$19=test!$B$32,test!M32,0))))) -> 0 | BR19: =IF($H$19=test!$B$28,test!N28,IF(Հաշվիչ!$H$19=test!$B$29,test!N29,IF(Հաշվիչ!$H$19=test!$B$30,test!N30,IF(Հաշվիչ!$H$19=test!$B$31,test!N31,IF(Հաշվիչ!$H$19=test!$B$32,test!N32,0))))) -> 0 | BS19: =IF($H$19=test!$B$28,test!O28,IF(Հաշվիչ!$H$19=test!$B$29,test!O29,IF(Հաշվիչ!$H$19=test!$B$30,test!O30,IF(Հաշվիչ!$H$19=test!$B$31,test!O31,IF(Հաշվիչ!$H$19=test!$B$32,test!O32,0))))) -> 0 | BT19: =IF($H$19=test!$B$28,test!P28,IF(Հաշվիչ!$H$19=test!$B$29,test!P29,IF(Հաշվիչ!$H$19=test!$B$30,test!P30,IF(Հաշվիչ!$H$19=test!$B$31,test!P31,IF(Հաշվիչ!$H$19=test!$B$32,test!P32,0))))) -> 0 | BU19: 0 | BV19: 0 | BW19: 0 | BX19: 0 | BY19: 0 | BZ19: 0 | CA19: 0 | CB19: 0 | CC19: 0 | CD19: 0 | CE19: 0 | CF19: 0 | CG19: 0 | CH19: 0 | CI19: 0 | CJ19: 0 | CK19: 0 | CL19: 0 | CM19: 0 | CN19: 0 | CO19: 0 | CP19: 0 | CQ19: 0 | CR19: 0 | CS19: 0 | CT19: 0 | CU19: 0 | CV19: 0 | CW19: 0 | CX19: 0 | CY19: 0 | CZ19: 0 | DA19: 0 | DB19: 0 | DC19: 0 | DD19: 0 | DE19: 0 | DF19: 0 | DG19: 0 | DH19: 0 | DI19: 0 | DJ19: 0 | DM19: Աղ /գ | DN19: 46 | DO19: 50 | DP19: 54 | DQ19: 58 | DR19: 61 | DS19: 64 | DT19: 56 | DU19: 58 | DV19: 60 | DW19: 63 | DX19: 65 | DY19: 70 | DZ19: 47 | EA19: 50 | EB19: 55 | EC19: 60 | ED19: 62 | EE19: 65
B21: ԱՐՄԱՏԱՊԱԼԱՐԱՊՏՈՒՂ | D21: կարտոֆիլ | F21: 2 | H21: N/D | J21: 0 | L21: 45 | M21: 60 | N21: 90 | O21: 120 | W21: Շաքար /գ | X21: =DD50 -> 249 | Y21: =IF(AND($A$1=1, $T$19=400),'Օրական նորմեր'!T10,IF(AND($A$1=1, $T$19=450),'Օրական նորմեր'!U10,IF(AND($A$1=1, $T$19=500),'Օրական նորմեր'!V10,IF(AND($A$1=1, $T$19=550),'Օրական նորմեր'!W10,IF(AND($A$1=1, $T$19=600),'Օրական նորմեր'!X10,IF(AND($A$1=1, $T$19=650),'Օրական նորմեր'!Y10,0)))))) -> 630 | Z21: =IF(AND($A$1=2, $T$19=400),'Օրական նորմեր'!Z10,IF(AND($A$1=2, $T$19=450),'Օրական նորմեր'!AA10,IF(AND($A$1=2, $T$19=500),'Օրական նորմեր'!AB10,IF(AND($A$1=2, $T$19=550),'Օրական նորմեր'!AC10,IF(AND($A$1=2, $T$19=600),'Օրական նորմեր'!AD10,IF(AND($A$1=2, $T$19=650),'Օրական նորմեր'!AE10,0)))))) -> 0 | AA21: =IF(AND($A$1=3, $T$19=400),'Օրական նորմեր'!AF10,IF(AND($A$1=3, $T$19=450),'Օրական նորմեր'!AG10,IF(AND($A$1=3, $T$19=500),'Օրական նորմեր'!AH10,IF(AND($A$1=3, $T$19=550),'Օրական նորմեր'!AI10,IF(AND($A$1=3, $T$19=600),'Օրական նորմեր'!AJ10,IF(AND($A$1=3, $T$19=650),'Օրական նորմեր'!AK10,0)))))) -> 0 | AB21: 630 | AC21: -381 | AS21: =IF($D$21=test!$B$33,test!C33,IF(Հաշվիչ!$D$21=test!$B$34,test!C34,IF(Հաշվիչ!$D$21=test!$B$35,test!C35,IF(Հաշվիչ!$D$21=test!$B$36,test!C36,IF(Հաշվիչ!$D$21=test!$B$37,test!C37,0))))) -> 220 | AT21: =IF($D$21=test!$B$33,test!D33,IF(Հաշվիչ!$D$21=test!$B$34,test!D34,IF(Հաշվիչ!$D$21=test!$B$35,test!D35,IF(Հաշվիչ!$D$21=test!$B$36,test!D36,IF(Հաշվիչ!$D$21=test!$B$37,test!D37,0))))) -> 0.3 | AU21: =IF($D$21=test!$B$33,test!E33,IF(Հաշվիչ!$D$21=test!$B$34,test!E34,IF(Հաշվիչ!$D$21=test!$B$35,test!E35,IF(Հաշվիչ!$D$21=test!$B$36,test!E36,IF(Հաշվիչ!$D$21=test!$B$37,test!E37,0))))) -> 2.82 | AV21: =IF($D$21=test!$B$33,test!F33,IF(Հաշվիչ!$D$21=test!$B$34,test!F34,IF(Հաշվիչ!$D$21=test!$B$35,test!F35,IF(Հաշվիչ!$D$21=test!$B$36,test!F36,IF(Հաշվիչ!$D$21=test!$B$37,test!F37,0))))) -> 18 | AW21: =IF($D$21=test!$B$33,test!G33,IF(Հաշվիչ!$D$21=test!$B$34,test!G34,IF(Հաշվիչ!$D$21=test!$B$35,test!G35,IF(Հաշվիչ!$D$21=test!$B$36,test!G36,IF(Հաշվիչ!$D$21=test!$B$37,test!G37,0))))) -> 10 | AX21: =IF($D$21=test!$B$33,test!H33,IF(Հաշվիչ!$D$21=test!$B$34,test!H34,IF(Հաշվիչ!$D$21=test!$B$35,test!H35,IF(Հաշվիչ!$D$21=test!$B$36,test!H36,IF(Հաշվիչ!$D$21=test!$B$37,test!H37,0))))) -> 8 | AY21: =IF($D$21=test!$B$33,test!I33,IF(Հաշվիչ!$D$21=test!$B$34,test!I34,IF(Հաշվիչ!$D$21=test!$B$35,test!I35,IF(Հաշվիչ!$D$21=test!$B$36,test!I36,IF(Հաշվիչ!$D$21=test!$B$37,test!I37,0))))) -> 140 | AZ21: =IF($D$21=test!$B$33,test!J33,IF(Հաշվիչ!$D$21=test!$B$34,test!J34,IF(Հաշվիչ!$D$21=test!$B$35,test!J35,IF(Հաշվիչ!$D$21=test!$B$36,test!J36,IF(Հաշվիչ!$D$21=test!$B$37,test!J37,0))))) -> 10.5 | BA21: =IF($D$21=test!$B$33,test!K33,IF(Հաշվիչ!$D$21=test!$B$34,test!K34,IF(Հաշվիչ!$D$21=test!$B$35,test!K35,IF(Հաշվիչ!$D$21=test!$B$36,test!K36,IF(Հաշվիչ!$D$21=test!$B$37,test!K37,0))))) -> 1 | BB21: =IF($D$21=test!$B$33,test!L33,IF(Հաշվիչ!$D$21=test!$B$34,test!L34,IF(Հաշվիչ!$D$21=test!$B$35,test!L35,IF(Հաշվիչ!$D$21=test!$B$36,test!L36,IF(Հաշվիչ!$D$21=test!$B$37,test!L37,0))))) -> 0.2 | BC21: =IF($D$21=test!$B$33,test!M33,IF(Հաշվիչ!$D$21=test!$B$34,test!M34,IF(Հաշվիչ!$D$21=test!$B$35,test!M35,IF(Հաշվիչ!$D$21=test!$B$36,test!M36,IF(Հաշվիչ!$D$21=test!$B$37,test!M37,0))))) -> 0.5 | BD21: =IF($D$21=test!$B$33,test!N33,IF(Հաշվիչ!$D$21=test!$B$34,test!N34,IF(Հաշվիչ!$D$21=test!$B$35,test!N35,IF(Հաշվիչ!$D$21=test!$B$36,test!N36,IF(Հաշվիչ!$D$21=test!$B$37,test!N37,0))))) -> 0.2 | BE21: =IF($D$21=test!$B$33,test!O33,IF(Հաշվիչ!$D$21=test!$B$34,test!O34,IF(Հաշվիչ!$D$21=test!$B$35,test!O35,IF(Հաշվիչ!$D$21=test!$B$36,test!O36,IF(Հաշվիչ!$D$21=test!$B$37,test!O37,0))))) -> 0 | BF21: =IF($D$21=test!$B$33,test!P33,IF(Հաշվիչ!$D$21=test!$B$34,test!P34,IF(Հաշվիչ!$D$21=test!$B$35,test!P35,IF(Հաշվիչ!$D$21=test!$B$36,test!P36,IF(Հաշվիչ!$D$21=test!$B$37,test!P37,0))))) -> 0.8 | BG21: =IF($H$21=test!$B$33,test!C33,IF(Հաշվիչ!$H$21=test!$B$34,test!C34,IF(Հաշվիչ!$H$21=test!$B$35,test!C35,IF(Հաշվիչ!$H$21=test!$B$36,test!C36,IF(Հաշվիչ!$H$21=test!$B$37,test!C37,0))))) -> 0 | BH21: =IF($H$21=test!$B$33,test!D33,IF(Հաշվիչ!$H$21=test!$B$34,test!D34,IF(Հաշվիչ!$H$21=test!$B$35,test!D35,IF(Հաշվիչ!$H$21=test!$B$36,test!D36,IF(Հաշվիչ!$H$21=test!$B$37,test!D37,0))))) -> 0 | BI21: =IF($H$21=test!$B$33,test!E33,IF(Հաշվիչ!$H$21=test!$B$34,test!E34,IF(Հաշվիչ!$H$21=test!$B$35,test!E35,IF(Հաշվիչ!$H$21=test!$B$36,test!E36,IF(Հաշվիչ!$H$21=test!$B$37,test!E37,0))))) -> 0 | BJ21: =IF($H$21=test!$B$33,test!F33,IF(Հաշվիչ!$H$21=test!$B$34,test!F34,IF(Հաշվիչ!$H$21=test!$B$35,test!F35,IF(Հաշվիչ!$H$21=test!$B$36,test!F36,IF(Հաշվիչ!$H$21=test!$B$37,test!F37,0))))) -> 0 | BK21: =IF($H$21=test!$B$33,test!G33,IF(Հաշվիչ!$H$21=test!$B$34,test!G34,IF(Հաշվիչ!$H$21=test!$B$35,test!G35,IF(Հաշվիչ!$H$21=test!$B$36,test!G36,IF(Հաշվիչ!$H$21=test!$B$37,test!G37,0))))) -> 0 | BL21: =IF($H$21=test!$B$33,test!H33,IF(Հաշվիչ!$H$21=test!$B$34,test!H34,IF(Հաշվիչ!$H$21=test!$B$35,test!H35,IF(Հաշվիչ!$H$21=test!$B$36,test!H36,IF(Հաշվիչ!$H$21=test!$B$37,test!H37,0))))) -> 0 | BM21: =IF($H$21=test!$B$33,test!I33,IF(Հաշվիչ!$H$21=test!$B$34,test!I34,IF(Հաշվիչ!$H$21=test!$B$35,test!I35,IF(Հաշվիչ!$H$21=test!$B$36,test!I36,IF(Հաշվիչ!$H$21=test!$B$37,test!I37,0))))) -> 0 | BN21: =IF($H$21=test!$B$33,test!J33,IF(Հաշվիչ!$H$21=test!$B$34,test!J34,IF(Հաշվիչ!$H$21=test!$B$35,test!J35,IF(Հաշվիչ!$H$21=test!$B$36,test!J36,IF(Հաշվիչ!$H$21=test!$B$37,test!J37,0))))) -> 0 | BO21: =IF($H$21=test!$B$33,test!K33,IF(Հաշվիչ!$H$21=test!$B$34,test!K34,IF(Հաշվիչ!$H$21=test!$B$35,test!K35,IF(Հաշվիչ!$H$21=test!$B$36,test!K36,IF(Հաշվիչ!$H$21=test!$B$37,test!K37,0))))) -> 0 | BP21: =IF($H$21=test!$B$33,test!L33,IF(Հաշվիչ!$H$21=test!$B$34,test!L34,IF(Հաշվիչ!$H$21=test!$B$35,test!L35,IF(Հաշվիչ!$H$21=test!$B$36,test!L36,IF(Հաշվիչ!$H$21=test!$B$37,test!L37,0))))) -> 0 | BQ21: =IF($H$21=test!$B$33,test!M33,IF(Հաշվիչ!$H$21=test!$B$34,test!M34,IF(Հաշվիչ!$H$21=test!$B$35,test!M35,IF(Հաշվիչ!$H$21=test!$B$36,test!M36,IF(Հաշվիչ!$H$21=test!$B$37,test!M37,0))))) -> 0 | BR21: =IF($H$21=test!$B$33,test!N33,IF(Հաշվիչ!$H$21=test!$B$34,test!N34,IF(Հաշվիչ!$H$21=test!$B$35,test!N35,IF(Հաշվիչ!$H$21=test!$B$36,test!N36,IF(Հաշվիչ!$H$21=test!$B$37,test!N37,0))))) -> 0 | BS21: =IF($H$21=test!$B$33,test!O33,IF(Հաշվիչ!$H$21=test!$B$34,test!O34,IF(Հաշվիչ!$H$21=test!$B$35,test!O35,IF(Հաշվիչ!$H$21=test!$B$36,test!O36,IF(Հաշվիչ!$H$21=test!$B$37,test!O37,0))))) -> 0 | BT21: =IF($H$21=test!$B$33,test!P33,IF(Հաշվիչ!$H$21=test!$B$34,test!P34,IF(Հաշվիչ!$H$21=test!$B$35,test!P35,IF(Հաշվիչ!$H$21=test!$B$36,test!P36,IF(Հաշվիչ!$H$21=test!$B$37,test!P37,0))))) -> 0 | BU21: 440 | BV21: 0.6 | BW21: 5.64 | BX21: 36 | BY21: 20 | BZ21: 16 | CA21: 280 | CB21: 21 | CC21: 2 | CD21: 0.4 | CE21: 1 | CF21: 0.4 | CG21: 0 | CH21: 1.6 | CI21: 0 | CJ21: 0 | CK21: 0 | CL21: 0 | CM21: 0 | CN21: 0 | CO21: 0 | CP21: 0 | CQ21: 0 | CR21: 0 | CS21: 0 | CT21: 0 | CU21: 0 | CV21: 0 | CW21: 440 | CX21: 0.6 | CY21: 5.64 | CZ21: 36 | DA21: 20 | DB21: 16 | DC21: 280 | DD21: 21 | DE21: 2 | DF21: 0.4 | DG21: 1 | DH21: 0.4 | DI21: 0 | DJ21: 1.6
B23: ՀԱՏԻԿ | D23: գարի | F23: 4 | H23: N/D | J23: 0 | L23: 38 | M23: 60 | N23: 152 | O23: 240 | W23: Հում ճարպ /գ | X23: =DE50 -> 369 | Y23: =IF(AND($A$1=1, $T$19=400),'Օրական նորմեր'!T11,IF(AND($A$1=1, $T$19=450),'Օրական նորմեր'!U11,IF(AND($A$1=1, $T$19=500),'Օրական նորմեր'!V11,IF(AND($A$1=1, $T$19=550),'Օրական նորմեր'!W11,IF(AND($A$1=1, $T$19=600),'Օրական նորմեր'!X11,IF(AND($A$1=1, $T$19=650),'Օրական նորմեր'!Y11,0)))))) -> 248 | Z23: =IF(AND($A$1=2, $T$19=400),'Օրական նորմեր'!Z11,IF(AND($A$1=2, $T$19=450),'Օրական նորմեր'!AA11,IF(AND($A$1=2, $T$19=500),'Օրական նորմեր'!AB11,IF(AND($A$1=2, $T$19=550),'Օրական նորմեր'!AC11,IF(AND($A$1=2, $T$19=600),'Օրական նորմեր'!AD11,IF(AND($A$1=2, $T$19=650),'Օրական նորմեր'!AE11,0)))))) -> 0 | AA23: =IF(AND($A$1=3, $T$19=400),'Օրական նորմեր'!AF11,IF(AND($A$1=3, $T$19=450),'Օրական նորմեր'!AG11,IF(AND($A$1=3, $T$19=500),'Օրական նորմեր'!AH11,IF(AND($A$1=3, $T$19=550),'Օրական նորմեր'!AI11,IF(AND($A$1=3, $T$19=600),'Օրական նորմեր'!AJ11,IF(AND($A$1=3, $T$19=650),'Օրական նորմեր'!AK11,0)))))) -> 0 | AB23: 248 | AC23: 121 | AS23: =IF($D$23=test!$B$38,test!C38,IF(Հաշվիչ!$D$23=test!$B$39,test!C39,IF(Հաշվիչ!$D$23=test!$B$40,test!C40,IF(Հաշվիչ!$D$23=test!$B$41,test!C41,IF(Հաշվիչ!$D$23=test!$B$42,test!C42,IF(Հաշվիչ!$D$23=test!$B$43,test!C43,IF(Հաշվիչ!$D$23=test!$B$44,test!C44,0))))))) -> 850 | AT23: =IF($D$23=test!$B$38,test!D38,IF(Հաշվիչ!$D$23=test!$B$39,test!D39,IF(Հաշվիչ!$D$23=test!$B$40,test!D40,IF(Հաշվիչ!$D$23=test!$B$41,test!D41,IF(Հաշվիչ!$D$23=test!$B$42,test!D42,IF(Հաշվիչ!$D$23=test!$B$43,test!D43,IF(Հաշվիչ!$D$23=test!$B$44,test!D44,0))))))) -> 1.15 | AU23: =IF($D$23=test!$B$38,test!E38,IF(Հաշվիչ!$D$23=test!$B$39,test!E39,IF(Հաշվիչ!$D$23=test!$B$40,test!E40,IF(Հաշվիչ!$D$23=test!$B$41,test!E41,IF(Հաշվիչ!$D$23=test!$B$42,test!E42,IF(Հաշվիչ!$D$23=test!$B$43,test!E43,IF(Հաշվիչ!$D$23=test!$B$44,test!E44,0))))))) -> 10.5 | AV23: =IF($D$23=test!$B$38,test!F38,IF(Հաշվիչ!$D$23=test!$B$39,test!F39,IF(Հաշվիչ!$D$23=test!$B$40,test!F40,IF(Հաշվիչ!$D$23=test!$B$41,test!F41,IF(Հաշվիչ!$D$23=test!$B$42,test!F42,IF(Հաշվիչ!$D$23=test!$B$43,test!F43,IF(Հաշվիչ!$D$23=test!$B$44,test!F44,0))))))) -> 113 | AW23: =IF($D$23=test!$B$38,test!G38,IF(Հաշվիչ!$D$23=test!$B$39,test!G39,IF(Հաշվիչ!$D$23=test!$B$40,test!G40,IF(Հաշվիչ!$D$23=test!$B$41,test!G41,IF(Հաշվիչ!$D$23=test!$B$42,test!G42,IF(Հաշվիչ!$D$23=test!$B$43,test!G43,IF(Հաշվիչ!$D$23=test!$B$44,test!G44,0))))))) -> 85 | AX23: =IF($D$23=test!$B$38,test!H38,IF(Հաշվիչ!$D$23=test!$B$39,test!H39,IF(Հաշվիչ!$D$23=test!$B$40,test!H40,IF(Հաշվիչ!$D$23=test!$B$41,test!H41,IF(Հաշվիչ!$D$23=test!$B$42,test!H42,IF(Հաշվիչ!$D$23=test!$B$43,test!H43,IF(Հաշվիչ!$D$23=test!$B$44,test!H44,0))))))) -> 49 | AY23: =IF($D$23=test!$B$38,test!I38,IF(Հաշվիչ!$D$23=test!$B$39,test!I39,IF(Հաշվիչ!$D$23=test!$B$40,test!I40,IF(Հաշվիչ!$D$23=test!$B$41,test!I41,IF(Հաշվիչ!$D$23=test!$B$42,test!I42,IF(Հաշվիչ!$D$23=test!$B$43,test!I43,IF(Հաշվիչ!$D$23=test!$B$44,test!I44,0))))))) -> 485 | AZ23: =IF($D$23=test!$B$38,test!J38,IF(Հաշվիչ!$D$23=test!$B$39,test!J39,IF(Հաշվիչ!$D$23=test!$B$40,test!J40,IF(Հաշվիչ!$D$23=test!$B$41,test!J41,IF(Հաշվիչ!$D$23=test!$B$42,test!J42,IF(Հաշվիչ!$D$23=test!$B$43,test!J43,IF(Հաշվիչ!$D$23=test!$B$44,test!J44,0))))))) -> 2 | BA23: =IF($D$23=test!$B$38,test!K38,IF(Հաշվիչ!$D$23=test!$B$39,test!K39,IF(Հաշվիչ!$D$23=test!$B$40,test!K40,IF(Հաշվիչ!$D$23=test!$B$41,test!K41,IF(Հաշվիչ!$D$23=test!$B$42,test!K42,IF(Հաշվիչ!$D$23=test!$B$43,test!K43,IF(Հաշվիչ!$D$23=test!$B$44,test!K44,0))))))) -> 22 | BB23: =IF($D$23=test!$B$38,test!L38,IF(Հաշվիչ!$D$23=test!$B$39,test!L39,IF(Հաշվիչ!$D$23=test!$B$40,test!L40,IF(Հաշվիչ!$D$23=test!$B$41,test!L41,IF(Հաշվիչ!$D$23=test!$B$42,test!L42,IF(Հաշվիչ!$D$23=test!$B$43,test!L43,IF(Հաշվիչ!$D$23=test!$B$44,test!L44,0))))))) -> 2 | BC23: =IF($D$23=test!$B$38,test!M38,IF(Հաշվիչ!$D$23=test!$B$39,test!M39,IF(Հաշվիչ!$D$23=test!$B$40,test!M40,IF(Հաշվիչ!$D$23=test!$B$41,test!M41,IF(Հաշվիչ!$D$23=test!$B$42,test!M42,IF(Հաշվիչ!$D$23=test!$B$43,test!M43,IF(Հաշվիչ!$D$23=test!$B$44,test!M44,0))))))) -> 3.9 | BD23: =IF($D$23=test!$B$38,test!N38,IF(Հաշվիչ!$D$23=test!$B$39,test!N39,IF(Հաշվիչ!$D$23=test!$B$40,test!N40,IF(Հաշվիչ!$D$23=test!$B$41,test!N41,IF(Հաշվիչ!$D$23=test!$B$42,test!N42,IF(Հաշվիչ!$D$23=test!$B$43,test!N43,IF(Հաշվիչ!$D$23=test!$B$44,test!N44,0))))))) -> 0.5 | BE23: =IF($D$23=test!$B$38,test!O38,IF(Հաշվիչ!$D$23=test!$B$39,test!O39,IF(Հաշվիչ!$D$23=test!$B$40,test!O40,IF(Հաշվիչ!$D$23=test!$B$41,test!O41,IF(Հաշվիչ!$D$23=test!$B$42,test!O42,IF(Հաշվիչ!$D$23=test!$B$43,test!O43,IF(Հաշվիչ!$D$23=test!$B$44,test!O44,0))))))) -> 0 | BF23: =IF($D$23=test!$B$38,test!P38,IF(Հաշվիչ!$D$23=test!$B$39,test!P39,IF(Հաշվիչ!$D$23=test!$B$40,test!P40,IF(Հաշվիչ!$D$23=test!$B$41,test!P41,IF(Հաշվիչ!$D$23=test!$B$42,test!P42,IF(Հաշվիչ!$D$23=test!$B$43,test!P43,IF(Հաշվիչ!$D$23=test!$B$44,test!P44,0))))))) -> 50 | BG23: =IF($H$23=test!$B$38,test!C38,IF(Հաշվիչ!$H$23=test!$B$39,test!C39,IF(Հաշվիչ!$H$23=test!$B$40,test!C40,IF(Հաշվիչ!$H$23=test!$B$41,test!C41,IF(Հաշվիչ!$H$23=test!$B$42,test!C42,IF(Հաշվիչ!$H$23=test!$B$43,test!C43,IF(Հաշվիչ!$H$23=test!$B$44,test!C44,0))))))) -> 0 | BH23: =IF($H$23=test!$B$38,test!D38,IF(Հաշվիչ!$H$23=test!$B$39,test!D39,IF(Հաշվիչ!$H$23=test!$B$40,test!D40,IF(Հաշվիչ!$H$23=test!$B$41,test!D41,IF(Հաշվիչ!$H$23=test!$B$42,test!D42,IF(Հաշվիչ!$H$23=test!$B$43,test!D43,IF(Հաշվիչ!$H$23=test!$B$44,test!D44,0))))))) -> 0 | BI23: =IF($H$23=test!$B$38,test!E38,IF(Հաշվիչ!$H$23=test!$B$39,test!E39,IF(Հաշվիչ!$H$23=test!$B$40,test!E40,IF(Հաշվիչ!$H$23=test!$B$41,test!E41,IF(Հաշվիչ!$H$23=test!$B$42,test!E42,IF(Հաշվիչ!$H$23=test!$B$43,test!E43,IF(Հաշվիչ!$H$23=test!$B$44,test!E44,0))))))) -> 0 | BJ23: =IF($H$23=test!$B$38,test!F38,IF(Հաշվիչ!$H$23=test!$B$39,test!F39,IF(Հաշվիչ!$H$23=test!$B$40,test!F40,IF(Հաշվիչ!$H$23=test!$B$41,test!F41,IF(Հաշվիչ!$H$23=test!$B$42,test!F42,IF(Հաշվիչ!$H$23=test!$B$43,test!F43,IF(Հաշվիչ!$H$23=test!$B$44,test!F44,0))))))) -> 0 | BK23: =IF($H$23=test!$B$38,test!G38,IF(Հաշվիչ!$H$23=test!$B$39,test!G39,IF(Հաշվիչ!$H$23=test!$B$40,test!G40,IF(Հաշվիչ!$H$23=test!$B$41,test!G41,IF(Հաշվիչ!$H$23=test!$B$42,test!G42,IF(Հաշվիչ!$H$23=test!$B$43,test!G43,IF(Հաշվիչ!$H$23=test!$B$44,test!G44,0))))))) -> 0 | BL23: =IF($H$23=test!$B$38,test!H38,IF(Հաշվիչ!$H$23=test!$B$39,test!H39,IF(Հաշվիչ!$H$23=test!$B$40,test!H40,IF(Հաշվիչ!$H$23=test!$B$41,test!H41,IF(Հաշվիչ!$H$23=test!$B$42,test!H42,IF(Հաշվիչ!$H$23=test!$B$43,test!H43,IF(Հաշվիչ!$H$23=test!$B$44,test!H44,0))))))) -> 0 | BM23: =IF($H$23=test!$B$38,test!I38,IF(Հաշվիչ!$H$23=test!$B$39,test!I39,IF(Հաշվիչ!$H$23=test!$B$40,test!I40,IF(Հաշվիչ!$H$23=test!$B$41,test!I41,IF(Հաշվիչ!$H$23=test!$B$42,test!I42,IF(Հաշվիչ!$H$23=test!$B$43,test!I43,IF(Հաշվիչ!$H$23=test!$B$44,test!I44,0))))))) -> 0 | BN23: =IF($H$23=test!$B$38,test!J38,IF(Հաշվիչ!$H$23=test!$B$39,test!J39,IF(Հաշվիչ!$H$23=test!$B$40,test!J40,IF(Հաշվիչ!$H$23=test!$B$41,test!J41,IF(Հաշվիչ!$H$23=test!$B$42,test!J42,IF(Հաշվիչ!$H$23=test!$B$43,test!J43,IF(Հաշվիչ!$H$23=test!$B$44,test!J44,0))))))) -> 0 | BO23: =IF($H$23=test!$B$38,test!K38,IF(Հաշվիչ!$H$23=test!$B$39,test!K39,IF(Հաշվիչ!$H$23=test!$B$40,test!K40,IF(Հաշվիչ!$H$23=test!$B$41,test!K41,IF(Հաշվիչ!$H$23=test!$B$42,test!K42,IF(Հաշվիչ!$H$23=test!$B$43,test!K43,IF(Հաշվիչ!$H$23=test!$B$44,test!K44,0))))))) -> 0 | BP23: =IF($H$23=test!$B$38,test!L38,IF(Հաշվիչ!$H$23=test!$B$39,test!L39,IF(Հաշվիչ!$H$23=test!$B$40,test!L40,IF(Հաշվիչ!$H$23=test!$B$41,test!L41,IF(Հաշվիչ!$H$23=test!$B$42,test!L42,IF(Հաշվիչ!$H$23=test!$B$43,test!L43,IF(Հաշվիչ!$H$23=test!$B$44,test!L44,0))))))) -> 0 | BQ23: =IF($H$23=test!$B$38,test!M38,IF(Հաշվիչ!$H$23=test!$B$39,test!M39,IF(Հաշվիչ!$H$23=test!$B$40,test!M40,IF(Հաշվիչ!$H$23=test!$B$41,test!M41,IF(Հաշվիչ!$H$23=test!$B$42,test!M42,IF(Հաշվիչ!$H$23=test!$B$43,test!M43,IF(Հաշվիչ!$H$23=test!$B$44,test!M44,0))))))) -> 0 | BR23: =IF($H$23=test!$B$38,test!N38,IF(Հաշվիչ!$H$23=test!$B$39,test!N39,IF(Հաշվիչ!$H$23=test!$B$40,test!N40,IF(Հաշվիչ!$H$23=test!$B$41,test!N41,IF(Հաշվիչ!$H$23=test!$B$42,test!N42,IF(Հաշվիչ!$H$23=test!$B$43,test!N43,IF(Հաշվիչ!$H$23=test!$B$44,test!N44,0))))))) -> 0 | BS23: =IF($H$23=test!$B$38,test!O38,IF(Հաշվիչ!$H$23=test!$B$39,test!O39,IF(Հաշվիչ!$H$23=test!$B$40,test!O40,IF(Հաշվիչ!$H$23=test!$B$41,test!O41,IF(Հաշվիչ!$H$23=test!$B$42,test!O42,IF(Հաշվիչ!$H$23=test!$B$43,test!O43,IF(Հաշվիչ!$H$23=test!$B$44,test!O44,0))))))) -> 0 | BT23: =IF($H$23=test!$B$38,test!P38,IF(Հաշվիչ!$H$23=test!$B$39,test!P39,IF(Հաշվիչ!$H$23=test!$B$40,test!P40,IF(Հաշվիչ!$H$23=test!$B$41,test!P41,IF(Հաշվիչ!$H$23=test!$B$42,test!P42,IF(Հաշվիչ!$H$23=test!$B$43,test!P43,IF(Հաշվիչ!$H$23=test!$B$44,test!P44,0))))))) -> 0 | BU23: 3400 | BV23: 4.6 | BW23: 42 | BX23: 452 | BY23: 340 | BZ23: 196 | CA23: 1940 | CB23: 8 | CC23: 88 | CD23: 8 | CE23: 15.6 | CF23: 2 | CG23: 0 | CH23: 200 | CI23: 0 | CJ23: 0 | CK23: 0 | CL23: 0 | CM23: 0 | CN23: 0 | CO23: 0 | CP23: 0 | CQ23: 0 | CR23: 0 | CS23: 0 | CT23: 0 | CU23: 0 | CV23: 0 | CW23: 3400 | CX23: 4.6 | CY23: 42 | CZ23: 452 | DA23: 340 | DB23: 196 | DC23: 1940 | DD23: 8 | DE23: 88 | DF23: 8 | DG23: 15.6 | DH23: 2 | DI23: 0 | DJ23: 200
B25: ԹԵՓ | D25: N/D | F25: 0 | H25: N/D | J25: 0 | L25: 60 | M25: 75 | N25: 0 | O25: 0 | Q25: Կովի Ցեղը | T25: Կովկասյան գորշ | W25: Կալցիում /գ | X25: =DF50 -> 54.5 | Y25: =IF(AND($A$1=1, $T$19=400),'Օրական նորմեր'!T12,IF(AND($A$1=1, $T$19=450),'Օրական նորմեր'!U12,IF(AND($A$1=1, $T$19=500),'Օրական նորմեր'!V12,IF(AND($A$1=1, $T$19=550),'Օրական նորմեր'!W12,IF(AND($A$1=1, $T$19=600),'Օրական նորմեր'!X12,IF(AND($A$1=1, $T$19=650),'Օրական նորմեր'!Y12,0)))))) -> 70 | Z25: =IF(AND($A$1=2, $T$19=400),'Օրական նորմեր'!Z12,IF(AND($A$1=2, $T$19=450),'Օրական նորմեր'!AA12,IF(AND($A$1=2, $T$19=500),'Օրական նորմեր'!AB12,IF(AND($A$1=2, $T$19=550),'Օրական նորմեր'!AC12,IF(AND($A$1=2, $T$19=600),'Օրական նորմեր'!AD12,IF(AND($A$1=2, $T$19=650),'Օրական նորմեր'!AE12,0)))))) -> 0 | AA25: =IF(AND($A$1=3, $T$19=400),'Օրական նորմեր'!AF12,IF(AND($A$1=3, $T$19=450),'Օրական նորմեր'!AG12,IF(AND($A$1=3, $T$19=500),'Օրական նորմեր'!AH12,IF(AND($A$1=3, $T$19=550),'Օրական նորմեր'!AI12,IF(AND($A$1=3, $T$19=600),'Օրական նորմեր'!AJ12,IF(AND($A$1=3, $T$19=650),'Օրական նորմեր'!AK12,0)))))) -> 0 | AB25: 70 | AC25: -15.5 | AS25: =IF($D$25=test!$B$45,test!C45,0) -> 0 | AT25: =IF($D$25=test!$B$45,test!D45,0) -> 0 | AU25: =IF($D$25=test!$B$45,test!E45,0) -> 0 | AV25: =IF($D$25=test!$B$45,test!F45,0) -> 0 | AW25: =IF($D$25=test!$B$45,test!G45,0) -> 0 | AX25: =IF($D$25=test!$B$45,test!H45,0) -> 0 | AY25: =IF($D$25=test!$B$45,test!I45,0) -> 0 | AZ25: =IF($D$25=test!$B$45,test!J45,0) -> 0 | BA25: =IF($D$25=test!$B$45,test!K45,0) -> 0 | BB25: =IF($D$25=test!$B$45,test!L45,0) -> 0 | BC25: =IF($D$25=test!$B$45,test!M45,0) -> 0 | BD25: =IF($D$25=test!$B$45,test!N45,0) -> 0 | BE25: =IF($D$25=test!$B$45,test!O45,0) -> 0 | BF25: =IF($D$25=test!$B$45,test!P45,0) -> 0 | BG25: =IF($H$25=test!$B$45,test!C45,0) -> 0 | BH25: =IF($H$25=test!$B$45,test!D45,0) -> 0 | BI25: =IF($H$25=test!$B$45,test!E45,0) -> 0 | BJ25: =IF($H$25=test!$B$45,test!F45,0) -> 0 | BK25: =IF($H$25=test!$B$45,test!G45,0) -> 0 | BL25: =IF($H$25=test!$B$45,test!H45,0) -> 0 | BM25: =IF($H$25=test!$B$45,test!I45,0) -> 0 | BN25: =IF($H$25=test!$B$45,test!J45,0) -> 0 | BO25: =IF($H$25=test!$B$45,test!K45,0) -> 0 | BP25: =IF($H$25=test!$B$45,test!L45,0) -> 0 | BQ25: =IF($H$25=test!$B$45,test!M45,0) -> 0 | BR25: =IF($H$25=test!$B$45,test!N45,0) -> 0 | BS25: =IF($H$25=test!$B$45,test!O45,0) -> 0 | BT25: =IF($H$25=test!$B$45,test!P45,0) -> 0 | BU25: 0 | BV25: 0 | BW25: 0 | BX25: 0 | BY25: 0 | BZ25: 0 | CA25: 0 | CB25: 0 | CC25: 0 | CD25: 0 | CE25: 0 | CF25: 0 | CG25: 0 | CH25: 0 | CI25: 0 | CJ25: 0 | CK25: 0 | CL25: 0 | CM25: 0 | CN25: 0 | CO25: 0 | CP25: 0 | CQ25: 0 | CR25: 0 | CS25: 0 | CT25: 0 | CU25: 0 | CV25: 0 | CW25: 0 | CX25: 0 | CY25: 0 | CZ25: 0 | DA25: 0 | DB25: 0 | DC25: 0 | DD25: 0 | DE25: 0 | DF25: 0 | DG25: 0 | DH25: 0 | DI25: 0 | DJ25: 0
B27: ՔՈՒՍՊ | D27: N/D | F27: 0 | H27: N/D | J27: 0 | L27: 60 | M27: 80 | N27: 0 | O27: 0 | T27: Medium | U27: Max | W27: Ֆոսֆոր /գ | X27: =DG50 -> 37.4 | Y27: =IF(AND($A$1=1, $T$19=400),'Օրական նորմեր'!T13,IF(AND($A$1=1, $T$19=450),'Օրական նորմեր'!U13,IF(AND($A$1=1, $T$19=500),'Օրական նորմեր'!V13,IF(AND($A$1=1, $T$19=550),'Օրական նորմեր'!W13,IF(AND($A$1=1, $T$19=600),'Օրական նորմեր'!X13,IF(AND($A$1=1, $T$19=650),'Օրական նորմեր'!Y13,0)))))) -> 40 | Z27: =IF(AND($A$1=2, $T$19=400),'Օրական նորմեր'!Z13,IF(AND($A$1=2, $T$19=450),'Օրական նորմեր'!AA13,IF(AND($A$1=2, $T$19=500),'Օրական նորմեր'!AB13,IF(AND($A$1=2, $T$19=550),'Օրական նորմեր'!AC13,IF(AND($A$1=2, $T$19=600),'Օրական նորմեր'!AD13,IF(AND($A$1=2, $T$19=650),'Օրական նորմեր'!AE13,0)))))) -> 0 | AA27: =IF(AND($A$1=3, $T$19=400),'Օրական նորմեր'!AF13,IF(AND($A$1=3, $T$19=450),'Օրական նորմեր'!AG13,IF(AND($A$1=3, $T$19=500),'Օրական նորմեր'!AH13,IF(AND($A$1=3, $T$19=550),'Օրական նորմեր'!AI13,IF(AND($A$1=3, $T$19=600),'Օրական նորմեր'!AJ13,IF(AND($A$1=3, $T$19=650),'Օրական նորմեր'!AK13,0)))))) -> 0 | AB27: 40 | AC27: -2.6 | AS27: =IF($D$27=test!$B$46,test!C46,IF(Հաշվիչ!$D$27=test!$B$47,test!C47,IF(Հաշվիչ!$D$27=test!$B$48,test!C48,0))) -> 0 | AT27: =IF($D$27=test!$B$46,test!D46,IF(Հաշվիչ!$D$27=test!$B$47,test!D47,IF(Հաշվիչ!$D$27=test!$B$48,test!D48,0))) -> 0 | AU27: =IF($D$27=test!$B$46,test!E46,IF(Հաշվիչ!$D$27=test!$B$47,test!E47,IF(Հաշվիչ!$D$27=test!$B$48,test!E48,0))) -> 0 | AV27: =IF($D$27=test!$B$46,test!F46,IF(Հաշվիչ!$D$27=test!$B$47,test!F47,IF(Հաշվիչ!$D$27=test!$B$48,test!F48,0))) -> 0 | AW27: =IF($D$27=test!$B$46,test!G46,IF(Հաշվիչ!$D$27=test!$B$47,test!G47,IF(Հաշվիչ!$D$27=test!$B$48,test!G48,0))) -> 0 | AX27: =IF($D$27=test!$B$46,test!H46,IF(Հաշվիչ!$D$27=test!$B$47,test!H47,IF(Հաշվիչ!$D$27=test!$B$48,test!H48,0))) -> 0 | AY27: =IF($D$27=test!$B$46,test!I46,IF(Հաշվիչ!$D$27=test!$B$47,test!I47,IF(Հաշվիչ!$D$27=test!$B$48,test!I48,0))) -> 0 | AZ27: =IF($D$27=test!$B$46,test!J46,IF(Հաշվիչ!$D$27=test!$B$47,test!J47,IF(Հաշվիչ!$D$27=test!$B$48,test!J48,0))) -> 0 | BA27: =IF($D$27=test!$B$46,test!K46,IF(Հաշվիչ!$D$27=test!$B$47,test!K47,IF(Հաշվիչ!$D$27=test!$B$48,test!K48,0))) -> 0 | BB27: =IF($D$27=test!$B$46,test!L46,IF(Հաշվիչ!$D$27=test!$B$47,test!L47,IF(Հաշվիչ!$D$27=test!$B$48,test!L48,0))) -> 0 | BC27: =IF($D$27=test!$B$46,test!M46,IF(Հաշվիչ!$D$27=test!$B$47,test!M47,IF(Հաշվիչ!$D$27=test!$B$48,test!M48,0))) -> 0 | BD27: =IF($D$27=test!$B$46,test!N46,IF(Հաշվիչ!$D$27=test!$B$47,test!N47,IF(Հաշվիչ!$D$27=test!$B$48,test!N48,0))) -> 0 | BE27: =IF($D$27=test!$B$46,test!O46,IF(Հաշվիչ!$D$27=test!$B$47,test!O47,IF(Հաշվիչ!$D$27=test!$B$48,test!O48,0))) -> 0 | BF27: =IF($D$27=test!$B$46,test!P46,IF(Հաշվիչ!$D$27=test!$B$47,test!P47,IF(Հաշվիչ!$D$27=test!$B$48,test!P48,0))) -> 0 | BG27: =IF($H$27=test!$B$46,test!C46,IF(Հաշվիչ!$H$27=test!$B$47,test!C47,IF(Հաշվիչ!$H$27=test!$B$48,test!C48,0))) -> 0 | BH27: =IF($H$27=test!$B$46,test!D46,IF(Հաշվիչ!$H$27=test!$B$47,test!D47,IF(Հաշվիչ!$H$27=test!$B$48,test!D48,0))) -> 0 | BI27: =IF($H$27=test!$B$46,test!E46,IF(Հաշվիչ!$H$27=test!$B$47,test!E47,IF(Հաշվիչ!$H$27=test!$B$48,test!E48,0))) -> 0 | BJ27: =IF($H$27=test!$B$46,test!F46,IF(Հաշվիչ!$H$27=test!$B$47,test!F47,IF(Հաշվիչ!$H$27=test!$B$48,test!F48,0))) -> 0 | BK27: =IF($H$27=test!$B$46,test!G46,IF(Հաշվիչ!$H$27=test!$B$47,test!G47,IF(Հաշվիչ!$H$27=test!$B$48,test!G48,0))) -> 0 | BL27: =IF($H$27=test!$B$46,test!H46,IF(Հաշվիչ!$H$27=test!$B$47,test!H47,IF(Հաշվիչ!$H$27=test!$B$48,test!H48,0))) -> 0 | BM27: =IF($H$27=test!$B$46,test!I46,IF(Հաշվիչ!$H$27=test!$B$47,test!I47,IF(Հաշվիչ!$H$27=test!$B$48,test!I48,0))) -> 0 | BN27: =IF($H$27=test!$B$46,test!J46,IF(Հաշվիչ!$H$27=test!$B$47,test!J47,IF(Հաշվիչ!$H$27=test!$B$48,test!J48,0))) -> 0 | BO27: =IF($H$27=test!$B$46,test!K46,IF(Հաշվիչ!$H$27=test!$B$47,test!K47,IF(Հաշվիչ!$H$27=test!$B$48,test!K48,0))) -> 0 | BP27: =IF($H$27=test!$B$46,test!L46,IF(Հաշվիչ!$H$27=test!$B$47,test!L47,IF(Հաշվիչ!$H$27=test!$B$48,test!L48,0))) -> 0 | BQ27: =IF($H$27=test!$B$46,test!M46,IF(Հաշվիչ!$H$27=test!$B$47,test!M47,IF(Հաշվիչ!$H$27=test!$B$48,test!M48,0))) -> 0 | BR27: =IF($H$27=test!$B$46,test!N46,IF(Հաշվիչ!$H$27=test!$B$47,test!N47,IF(Հաշվիչ!$H$27=test!$B$48,test!N48,0))) -> 0 | BS27: =IF($H$27=test!$B$46,test!O46,IF(Հաշվիչ!$H$27=test!$B$47,test!O47,IF(Հաշվիչ!$H$27=test!$B$48,test!O48,0))) -> 0 | BT27: =IF($H$27=test!$B$46,test!P46,IF(Հաշվիչ!$H$27=test!$B$47,test!P47,IF(Հաշվիչ!$H$27=test!$B$48,test!P48,0))) -> 0 | BU27: 0 | BV27: 0 | BW27: 0 | BX27: 0 | BY27: 0 | BZ27: 0 | CA27: 0 | CB27: 0 | CC27: 0 | CD27: 0 | CE27: 0 | CF27: 0 | CG27: 0 | CH27: 0 | CI27: 0 | CJ27: 0 | CK27: 0 | CL27: 0 | CM27: 0 | CN27: 0 | CO27: 0 | CP27: 0 | CQ27: 0 | CR27: 0 | CS27: 0 | CT27: 0 | CU27: 0 | CV27: 0 | CW27: 0 | CX27: 0 | CY27: 0 | CZ27: 0 | DA27: 0 | DB27: 0 | DC27: 0 | DD27: 0 | DE27: 0 | DF27: 0 | DG27: 0 | DH27: 0 | DI27: 0 | DJ27: 0
B29: ՔՈՒՍՊԱԼՅՈՒՐ | D29: N/D | F29: 0 | H29: N/D | J29: 0 | L29: 50 | M29: 100 | N29: 0 | O29: 0 | Q29: Կաթնատվ.լիտր | T29: =IF($T$25=Sheet12!$AQ$2,Sheet12!AR2,IF($T$25=Sheet12!$AQ$3,Sheet12!AR3,IF($T$25=Sheet12!$AQ$4,Sheet12!AR4,IF($T$25=Sheet12!$AQ$5,Sheet12!AR5,IF($T$25=Sheet12!$AQ$6,Sheet12!AR6,IF($T$25=Sheet12!$AQ$7,Sheet12!AR7,0)))))) -> 3500 | U29: =IF($T$25=Sheet12!$AQ$2,Sheet12!AS2,IF($T$25=Sheet12!$AQ$3,Sheet12!AS3,IF($T$25=Sheet12!$AQ$4,Sheet12!AS4,IF($T$25=Sheet12!$AQ$5,Sheet12!AS5,IF($T$25=Sheet12!$AQ$6,Sheet12!AS6,IF($T$25=Sheet12!$AQ$7,Sheet12!AS7,0)))))) -> 4500 | W29: Կարոտին /մգ | X29: =DH50 -> 122.4 | Y29: =IF(AND($A$1=1, $T$19=400),'Օրական նորմեր'!T14,IF(AND($A$1=1, $T$19=450),'Օրական նորմեր'!U14,IF(AND($A$1=1, $T$19=500),'Օրական նորմեր'!V14,IF(AND($A$1=1, $T$19=550),'Օրական նորմեր'!W14,IF(AND($A$1=1, $T$19=600),'Օրական նորմեր'!X14,IF(AND($A$1=1, $T$19=650),'Օրական նորմեր'!Y14,0)))))) -> 300 | Z29: =IF(AND($A$1=2, $T$19=400),'Օրական նորմեր'!Z14,IF(AND($A$1=2, $T$19=450),'Օրական նորմեր'!AA14,IF(AND($A$1=2, $T$19=500),'Օրական նորմեր'!AB14,IF(AND($A$1=2, $T$19=550),'Օրական նորմեր'!AC14,IF(AND($A$1=2, $T$19=600),'Օրական նորմեր'!AD14,IF(AND($A$1=2, $T$19=650),'Օրական նորմեր'!AE14,0)))))) -> 0 | AA29: =IF(AND($A$1=3, $T$19=400),'Օրական նորմեր'!AF14,IF(AND($A$1=3, $T$19=450),'Օրական նորմեր'!AG14,IF(AND($A$1=3, $T$19=500),'Օրական նորմեր'!AH14,IF(AND($A$1=3, $T$19=550),'Օրական նորմեր'!AI14,IF(AND($A$1=3, $T$19=600),'Օրական նորմեր'!AJ14,IF(AND($A$1=3, $T$19=650),'Օրական նորմեր'!AK14,0)))))) -> 0 | AB29: 300 | AC29: -177.6 | AS29: =IF($D$29=test!$B$49,test!C49,IF(Հաշվիչ!$D$29=test!$B$50,test!C50,IF(Հաշվիչ!$D$29=test!$B$51,test!C51,IF(Հաշվիչ!$D$29=test!$B$52,test!C52,0)))) -> 0 | AT29: =IF($D$29=test!$B$49,test!D49,IF(Հաշվիչ!$D$29=test!$B$50,test!D50,IF(Հաշվիչ!$D$29=test!$B$51,test!D51,IF(Հաշվիչ!$D$29=test!$B$52,test!D52,0)))) -> 0 | AU29: =IF($D$29=test!$B$49,test!E49,IF(Հաշվիչ!$D$29=test!$B$50,test!E50,IF(Հաշվիչ!$D$29=test!$B$51,test!E51,IF(Հաշվիչ!$D$29=test!$B$52,test!E52,0)))) -> 0 | AV29: =IF($D$29=test!$B$49,test!F49,IF(Հաշվիչ!$D$29=test!$B$50,test!F50,IF(Հաշվիչ!$D$29=test!$B$51,test!F51,IF(Հաշվիչ!$D$29=test!$B$52,test!F52,0)))) -> 0 | AW29: =IF($D$29=test!$B$49,test!G49,IF(Հաշվիչ!$D$29=test!$B$50,test!G50,IF(Հաշվիչ!$D$29=test!$B$51,test!G51,IF(Հաշվիչ!$D$29=test!$B$52,test!G52,0)))) -> 0 | AX29: =IF($D$29=test!$B$49,test!H49,IF(Հաշվիչ!$D$29=test!$B$50,test!H50,IF(Հաշվիչ!$D$29=test!$B$51,test!H51,IF(Հաշվիչ!$D$29=test!$B$52,test!H52,0)))) -> 0 | AY29: =IF($D$29=test!$B$49,test!I49,IF(Հաշվիչ!$D$29=test!$B$50,test!I50,IF(Հաշվիչ!$D$29=test!$B$51,test!I51,IF(Հաշվիչ!$D$29=test!$B$52,test!I52,0)))) -> 0 | AZ29: =IF($D$29=test!$B$49,test!J49,IF(Հաշվիչ!$D$29=test!$B$50,test!J50,IF(Հաշվիչ!$D$29=test!$B$51,test!J51,IF(Հաշվիչ!$D$29=test!$B$52,test!J52,0)))) -> 0 | BA29: =IF($D$29=test!$B$49,test!K49,IF(Հաշվիչ!$D$29=test!$B$50,test!K50,IF(Հաշվիչ!$D$29=test!$B$51,test!K51,IF(Հաշվիչ!$D$29=test!$B$52,test!K52,0)))) -> 0 | BB29: =IF($D$29=test!$B$49,test!L49,IF(Հաշվիչ!$D$29=test!$B$50,test!L50,IF(Հաշվիչ!$D$29=test!$B$51,test!L51,IF(Հաշվիչ!$D$29=test!$B$52,test!L52,0)))) -> 0 | BC29: =IF($D$29=test!$B$49,test!M49,IF(Հաշվիչ!$D$29=test!$B$50,test!M50,IF(Հաշվիչ!$D$29=test!$B$51,test!M51,IF(Հաշվիչ!$D$29=test!$B$52,test!M52,0)))) -> 0 | BD29: =IF($D$29=test!$B$49,test!N49,IF(Հաշվիչ!$D$29=test!$B$50,test!N50,IF(Հաշվիչ!$D$29=test!$B$51,test!N51,IF(Հաշվիչ!$D$29=test!$B$52,test!N52,0)))) -> 0 | BE29: =IF($D$29=test!$B$49,test!O49,IF(Հաշվիչ!$D$29=test!$B$50,test!O50,IF(Հաշվիչ!$D$29=test!$B$51,test!O51,IF(Հաշվիչ!$D$29=test!$B$52,test!O52,0)))) -> 0 | BF29: =IF($D$29=test!$B$49,test!P49,IF(Հաշվիչ!$D$29=test!$B$50,test!P50,IF(Հաշվիչ!$D$29=test!$B$51,test!P51,IF(Հաշվիչ!$D$29=test!$B$52,test!P52,0)))) -> 0 | BG29: =IF($H$29=test!$B$49,test!C49,IF(Հաշվիչ!$H$29=test!$B$50,test!C50,IF(Հաշվիչ!$H$29=test!$B$51,test!C51,IF(Հաշվիչ!$H$29=test!$B$52,test!C52,0)))) -> 0 | BH29: =IF($H$29=test!$B$49,test!D49,IF(Հաշվիչ!$H$29=test!$B$50,test!D50,IF(Հաշվիչ!$H$29=test!$B$51,test!D51,IF(Հաշվիչ!$H$29=test!$B$52,test!D52,0)))) -> 0 | BI29: =IF($H$29=test!$B$49,test!E49,IF(Հաշվիչ!$H$29=test!$B$50,test!E50,IF(Հաշվիչ!$H$29=test!$B$51,test!E51,IF(Հաշվիչ!$H$29=test!$B$52,test!E52,0)))) -> 0 | BJ29: =IF($H$29=test!$B$49,test!F49,IF(Հաշվիչ!$H$29=test!$B$50,test!F50,IF(Հաշվիչ!$H$29=test!$B$51,test!F51,IF(Հաշվիչ!$H$29=test!$B$52,test!F52,0)))) -> 0 | BK29: =IF($H$29=test!$B$49,test!G49,IF(Հաշվիչ!$H$29=test!$B$50,test!G50,IF(Հաշվիչ!$H$29=test!$B$51,test!G51,IF(Հաշվիչ!$H$29=test!$B$52,test!G52,0)))) -> 0 | BL29: =IF($H$29=test!$B$49,test!H49,IF(Հաշվիչ!$H$29=test!$B$50,test!H50,IF(Հաշվիչ!$H$29=test!$B$51,test!H51,IF(Հաշվիչ!$H$29=test!$B$52,test!H52,0)))) -> 0 | BM29: =IF($H$29=test!$B$49,test!I49,IF(Հաշվիչ!$H$29=test!$B$50,test!I50,IF(Հաշվիչ!$H$29=test!$B$51,test!I51,IF(Հաշվիչ!$H$29=test!$B$52,test!I52,0)))) -> 0 | BN29: =IF($H$29=test!$B$49,test!J49,IF(Հաշվիչ!$H$29=test!$B$50,test!J50,IF(Հաշվիչ!$H$29=test!$B$51,test!J51,IF(Հաշվիչ!$H$29=test!$B$52,test!J52,0)))) -> 0 | BO29: =IF($H$29=test!$B$49,test!K49,IF(Հաշվիչ!$H$29=test!$B$50,test!K50,IF(Հաշվիչ!$H$29=test!$B$51,test!K51,IF(Հաշվիչ!$H$29=test!$B$52,test!K52,0)))) -> 0 | BP29: =IF($H$29=test!$B$49,test!L49,IF(Հաշվիչ!$H$29=test!$B$50,test!L50,IF(Հաշվիչ!$H$29=test!$B$51,test!L51,IF(Հաշվիչ!$H$29=test!$B$52,test!L52,0)))) -> 0 | BQ29: =IF($H$29=test!$B$49,test!M49,IF(Հաշվիչ!$H$29=test!$B$50,test!M50,IF(Հաշվիչ!$H$29=test!$B$51,test!M51,IF(Հաշվիչ!$H$29=test!$B$52,test!M52,0)))) -> 0 | BR29: =IF($H$29=test!$B$49,test!N49,IF(Հաշվիչ!$H$29=test!$B$50,test!N50,IF(Հաշվիչ!$H$29=test!$B$51,test!N51,IF(Հաշվիչ!$H$29=test!$B$52,test!N52,0)))) -> 0 | BS29: =IF($H$29=test!$B$49,test!O49,IF(Հաշվիչ!$H$29=test!$B$50,test!O50,IF(Հաշվիչ!$H$29=test!$B$51,test!O51,IF(Հաշվիչ!$H$29=test!$B$52,test!O52,0)))) -> 0 | BT29: =IF($H$29=test!$B$49,test!P49,IF(Հաշվիչ!$H$29=test!$B$50,test!P50,IF(Հաշվիչ!$H$29=test!$B$51,test!P51,IF(Հաշվիչ!$H$29=test!$B$52,test!P52,0)))) -> 0 | BU29: 0 | BV29: 0 | BW29: 0 | BX29: 0 | BY29: 0 | BZ29: 0 | CA29: 0 | CB29: 0 | CC29: 0 | CD29: 0 | CE29: 0 | CF29: 0 | CG29: 0 | CH29: 0 | CI29: 0 | CJ29: 0 | CK29: 0 | CL29: 0 | CM29: 0 | CN29: 0 | CO29: 0 | CP29: 0 | CQ29: 0 | CR29: 0 | CS29: 0 | CT29: 0 | CU29: 0 | CV29: 0 | CW29: 0 | CX29: 0 | CY29: 0 | CZ29: 0 | DA29: 0 | DB29: 0 | DC29: 0 | DD29: 0 | DE29: 0 | DF29: 0 | DG29: 0 | DH29: 0 | DI29: 0 | DJ29: 0
B31: ՄՐՈՒՐ | D31: N/D | F31: 0 | H31: N/D | J31: 0 | L31: 50 | M31: 100 | N31: 0 | O31: 0 | W31: D վիտամին /մգ | X31: =DI50/40 -> 0.625 | Y31: =IF(AND($A$1=1, $T$19=400),'Օրական նորմեր'!T15,IF(AND($A$1=1, $T$19=450),'Օրական նորմեր'!U15,IF(AND($A$1=1, $T$19=500),'Օրական նորմեր'!V15,IF(AND($A$1=1, $T$19=550),'Օրական նորմեր'!W15,IF(AND($A$1=1, $T$19=600),'Օրական նորմեր'!X15,IF(AND($A$1=1, $T$19=650),'Օրական նորմեր'!Y15,0)))))) -> 7.5 | Z31: =IF(AND($A$1=2, $T$19=400),'Օրական նորմեր'!Z15,IF(AND($A$1=2, $T$19=450),'Օրական նորմեր'!AA15,IF(AND($A$1=2, $T$19=500),'Օրական նորմեր'!AB15,IF(AND($A$1=2, $T$19=550),'Օրական նորմեր'!AC15,IF(AND($A$1=2, $T$19=600),'Օրական նորմեր'!AD15,IF(AND($A$1=2, $T$19=650),'Օրական նորմեր'!AE15,0)))))) -> 0 | AA31: =IF(AND($A$1=3, $T$19=400),'Օրական նորմեր'!AF15,IF(AND($A$1=3, $T$19=450),'Օրական նորմեր'!AG15,IF(AND($A$1=3, $T$19=500),'Օրական նորմեր'!AH15,IF(AND($A$1=3, $T$19=550),'Օրական նորմեր'!AI15,IF(AND($A$1=3, $T$19=600),'Օրական նորմեր'!AJ15,IF(AND($A$1=3, $T$19=650),'Օրական նորմեր'!AK15,0)))))) -> 0 | AB31: 7.5 | AC31: -6.875 | AS31: =IF($D$31=test!$B$53,test!C53,IF(Հաշվիչ!$D$31=test!$B$54,test!C54,IF(Հաշվիչ!$D$31=test!$B$55,test!C55,0))) -> 0 | AT31: =IF($D$31=test!$B$53,test!D53,IF(Հաշվիչ!$D$31=test!$B$54,test!D54,IF(Հաշվիչ!$D$31=test!$B$55,test!D55,0))) -> 0 | AU31: =IF($D$31=test!$B$53,test!E53,IF(Հաշվիչ!$D$31=test!$B$54,test!E54,IF(Հաշվիչ!$D$31=test!$B$55,test!E55,0))) -> 0 | AV31: =IF($D$31=test!$B$53,test!F53,IF(Հաշվիչ!$D$31=test!$B$54,test!F54,IF(Հաշվիչ!$D$31=test!$B$55,test!F55,0))) -> 0 | AW31: =IF($D$31=test!$B$53,test!G53,IF(Հաշվիչ!$D$31=test!$B$54,test!G54,IF(Հաշվիչ!$D$31=test!$B$55,test!G55,0))) -> 0 | AX31: =IF($D$31=test!$B$53,test!H53,IF(Հաշվիչ!$D$31=test!$B$54,test!H54,IF(Հաշվիչ!$D$31=test!$B$55,test!H55,0))) -> 0 | AY31: =IF($D$31=test!$B$53,test!I53,IF(Հաշվիչ!$D$31=test!$B$54,test!I54,IF(Հաշվիչ!$D$31=test!$B$55,test!I55,0))) -> 0 | AZ31: =IF($D$31=test!$B$53,test!J53,IF(Հաշվիչ!$D$31=test!$B$54,test!J54,IF(Հաշվիչ!$D$31=test!$B$55,test!J55,0))) -> 0 | BA31: =IF($D$31=test!$B$53,test!K53,IF(Հաշվիչ!$D$31=test!$B$54,test!K54,IF(Հաշվիչ!$D$31=test!$B$55,test!K55,0))) -> 0 | BB31: =IF($D$31=test!$B$53,test!L53,IF(Հաշվիչ!$D$31=test!$B$54,test!L54,IF(Հաշվիչ!$D$31=test!$B$55,test!L55,0))) -> 0 | BC31: =IF($D$31=test!$B$53,test!M53,IF(Հաշվիչ!$D$31=test!$B$54,test!M54,IF(Հաշվիչ!$D$31=test!$B$55,test!M55,0))) -> 0 | BD31: =IF($D$31=test!$B$53,test!N53,IF(Հաշվիչ!$D$31=test!$B$54,test!N54,IF(Հաշվիչ!$D$31=test!$B$55,test!N55,0))) -> 0 | BE31: =IF($D$31=test!$B$53,test!O53,IF(Հաշվիչ!$D$31=test!$B$54,test!O54,IF(Հաշվիչ!$D$31=test!$B$55,test!O55,0))) -> 0 | BF31: =IF($D$31=test!$B$53,test!P53,IF(Հաշվիչ!$D$31=test!$B$54,test!P54,IF(Հաշվիչ!$D$31=test!$B$55,test!P55,0))) -> 0 | BG31: =IF($H$31=test!$B$53,test!C53,IF(Հաշվիչ!$H$31=test!$B$54,test!C54,IF(Հաշվիչ!$H$31=test!$B$55,test!C55,0))) -> 0 | BH31: =IF($H$31=test!$B$53,test!D53,IF(Հաշվիչ!$H$31=test!$B$54,test!D54,IF(Հաշվիչ!$H$31=test!$B$55,test!D55,0))) -> 0 | BI31: =IF($H$31=test!$B$53,test!E53,IF(Հաշվիչ!$H$31=test!$B$54,test!E54,IF(Հաշվիչ!$H$31=test!$B$55,test!E55,0))) -> 0 | BJ31: =IF($H$31=test!$B$53,test!F53,IF(Հաշվիչ!$H$31=test!$B$54,test!F54,IF(Հաշվիչ!$H$31=test!$B$55,test!F55,0))) -> 0 | BK31: =IF($H$31=test!$B$53,test!G53,IF(Հաշվիչ!$H$31=test!$B$54,test!G54,IF(Հաշվիչ!$H$31=test!$B$55,test!G55,0))) -> 0 | BL31: =IF($H$31=test!$B$53,test!H53,IF(Հաշվիչ!$H$31=test!$B$54,test!H54,IF(Հաշվիչ!$H$31=test!$B$55,test!H55,0))) -> 0 | BM31: =IF($H$31=test!$B$53,test!I53,IF(Հաշվիչ!$H$31=test!$B$54,test!I54,IF(Հաշվիչ!$H$31=test!$B$55,test!I55,0))) -> 0 | BN31: =IF($H$31=test!$B$53,test!J53,IF(Հաշվիչ!$H$31=test!$B$54,test!J54,IF(Հաշվիչ!$H$31=test!$B$55,test!J55,0))) -> 0 | BO31: =IF($H$31=test!$B$53,test!K53,IF(Հաշվիչ!$H$31=test!$B$54,test!K54,IF(Հաշվիչ!$H$31=test!$B$55,test!K55,0))) -> 0 | BP31: =IF($H$31=test!$B$53,test!L53,IF(Հաշվիչ!$H$31=test!$B$54,test!L54,IF(Հաշվիչ!$H$31=test!$B$55,test!L55,0))) -> 0 | BQ31: =IF($H$31=test!$B$53,test!M53,IF(Հաշվիչ!$H$31=test!$B$54,test!M54,IF(Հաշվիչ!$H$31=test!$B$55,test!M55,0))) -> 0 | BR31: =IF($H$31=test!$B$53,test!N53,IF(Հաշվիչ!$H$31=test!$B$54,test!N54,IF(Հաշվիչ!$H$31=test!$B$55,test!N55,0))) -> 0 | BS31: =IF($H$31=test!$B$53,test!O53,IF(Հաշվիչ!$H$31=test!$B$54,test!O54,IF(Հաշվիչ!$H$31=test!$B$55,test!O55,0))) -> 0 | BT31: =IF($H$31=test!$B$53,test!P53,IF(Հաշվիչ!$H$31=test!$B$54,test!P54,IF(Հաշվիչ!$H$31=test!$B$55,test!P55,0))) -> 0 | BU31: 0 | BV31: 0 | BW31: 0 | BX31: 0 | BY31: 0 | BZ31: 0 | CA31: 0 | CB31: 0 | CC31: 0 | CD31: 0 | CE31: 0 | CF31: 0 | CG31: 0 | CH31: 0 | CI31: 0 | CJ31: 0 | CK31: 0 | CL31: 0 | CM31: 0 | CN31: 0 | CO31: 0 | CP31: 0 | CQ31: 0 | CR31: 0 | CS31: 0 | CT31: 0 | CU31: 0 | CV31: 0 | CW31: 0 | CX31: 0 | CY31: 0 | CZ31: 0 | DA31: 0 | DB31: 0 | DC31: 0 | DD31: 0 | DE31: 0 | DF31: 0 | DG31: 0 | DH31: 0 | DI31: 0 | DJ31: 0
B33: ՄԶՈՒԿ | D33: N/D | F33: 0 | H33: N/D | J33: 0 | L33: 50 | M33: 100 | N33: 0 | O33: 0 | Q33: =IF((X9*300)<T29,"NORM","Error") -> NORM | W33: E վիտամին /մգ | X33: =DJ50 -> 201.6 | Y33: =IF(AND($A$1=1, $T$19=400),'Օրական նորմեր'!T16,IF(AND($A$1=1, $T$19=450),'Օրական նորմեր'!U16,IF(AND($A$1=1, $T$19=500),'Օրական նորմեր'!V16,IF(AND($A$1=1, $T$19=550),'Օրական նորմեր'!W16,IF(AND($A$1=1, $T$19=600),'Օրական նորմեր'!X16,IF(AND($A$1=1, $T$19=650),'Օրական նորմեր'!Y16,0)))))) -> 300 | Z33: =IF(AND($A$1=2, $T$19=400),'Օրական նորմեր'!Z16,IF(AND($A$1=2, $T$19=450),'Օրական նորմեր'!AA16,IF(AND($A$1=2, $T$19=500),'Օրական նորմեր'!AB16,IF(AND($A$1=2, $T$19=550),'Օրական նորմեր'!AC16,IF(AND($A$1=2, $T$19=600),'Օրական նորմեր'!AD16,IF(AND($A$1=2, $T$19=650),'Օրական նորմեր'!AE16,0)))))) -> 0 | AA33: =IF(AND($A$1=3, $T$19=400),'Օրական նորմեր'!AF16,IF(AND($A$1=3, $T$19=450),'Օրական նորմեր'!AG16,IF(AND($A$1=3, $T$19=500),'Օրական նորմեր'!AH16,IF(AND($A$1=3, $T$19=550),'Օրական նորմեր'!AI16,IF(AND($A$1=3, $T$19=600),'Օրական նորմեր'!AJ16,IF(AND($A$1=3, $T$19=650),'Օրական նորմեր'!AK16,0)))))) -> 0 | AB33: 300 | AC33: -98.4 | AS33: =IF($D$33=test!$B$56,test!C56,IF(Հաշվիչ!$D$33=test!$B$57,test!C57,IF(Հաշվիչ!$D$33=test!$B$58,test!C58,0))) -> 0 | AT33: =IF($D$33=test!$B$56,test!D56,IF(Հաշվիչ!$D$33=test!$B$57,test!D57,IF(Հաշվիչ!$D$33=test!$B$58,test!D58,0))) -> 0 | AU33: =IF($D$33=test!$B$56,test!E56,IF(Հաշվիչ!$D$33=test!$B$57,test!E57,IF(Հաշվիչ!$D$33=test!$B$58,test!E58,0))) -> 0 | AV33: =IF($D$33=test!$B$56,test!F56,IF(Հաշվիչ!$D$33=test!$B$57,test!F57,IF(Հաշվիչ!$D$33=test!$B$58,test!F58,0))) -> 0 | AW33: =IF($D$33=test!$B$56,test!G56,IF(Հաշվիչ!$D$33=test!$B$57,test!G57,IF(Հաշվիչ!$D$33=test!$B$58,test!G58,0))) -> 0 | AX33: =IF($D$33=test!$B$56,test!H56,IF(Հաշվիչ!$D$33=test!$B$57,test!H57,IF(Հաշվիչ!$D$33=test!$B$58,test!H58,0))) -> 0 | AY33: =IF($D$33=test!$B$56,test!I56,IF(Հաշվիչ!$D$33=test!$B$57,test!I57,IF(Հաշվիչ!$D$33=test!$B$58,test!I58,0))) -> 0 | AZ33: =IF($D$33=test!$B$56,test!J56,IF(Հաշվիչ!$D$33=test!$B$57,test!J57,IF(Հաշվիչ!$D$33=test!$B$58,test!J58,0))) -> 0 | BA33: =IF($D$33=test!$B$56,test!K56,IF(Հաշվիչ!$D$33=test!$B$57,test!K57,IF(Հաշվիչ!$D$33=test!$B$58,test!K58,0))) -> 0 | BB33: =IF($D$33=test!$B$56,test!L56,IF(Հաշվիչ!$D$33=test!$B$57,test!L57,IF(Հաշվիչ!$D$33=test!$B$58,test!L58,0))) -> 0 | BC33: =IF($D$33=test!$B$56,test!M56,IF(Հաշվիչ!$D$33=test!$B$57,test!M57,IF(Հաշվիչ!$D$33=test!$B$58,test!M58,0))) -> 0 | BD33: =IF($D$33=test!$B$56,test!N56,IF(Հաշվիչ!$D$33=test!$B$57,test!N57,IF(Հաշվիչ!$D$33=test!$B$58,test!N58,0))) -> 0 | BE33: =IF($D$33=test!$B$56,test!O56,IF(Հաշվիչ!$D$33=test!$B$57,test!O57,IF(Հաշվիչ!$D$33=test!$B$58,test!O58,0))) -> 0 | BF33: =IF($D$33=test!$B$56,test!P56,IF(Հաշվիչ!$D$33=test!$B$57,test!P57,IF(Հաշվիչ!$D$33=test!$B$58,test!P58,0))) -> 0 | BG33: =IF($H$33=test!$B$56,test!C56,IF(Հաշվիչ!$H$33=test!$B$57,test!C57,IF(Հաշվիչ!$H$33=test!$B$58,test!C58,0))) -> 0 | BH33: =IF($H$33=test!$B$56,test!D56,IF(Հաշվիչ!$H$33=test!$B$57,test!D57,IF(Հաշվիչ!$H$33=test!$B$58,test!D58,0))) -> 0 | BI33: =IF($H$33=test!$B$56,test!E56,IF(Հաշվիչ!$H$33=test!$B$57,test!E57,IF(Հաշվիչ!$H$33=test!$B$58,test!E58,0))) -> 0 | BJ33: =IF($H$33=test!$B$56,test!F56,IF(Հաշվիչ!$H$33=test!$B$57,test!F57,IF(Հաշվիչ!$H$33=test!$B$58,test!F58,0))) -> 0 | BK33: =IF($H$33=test!$B$56,test!G56,IF(Հաշվիչ!$H$33=test!$B$57,test!G57,IF(Հաշվիչ!$H$33=test!$B$58,test!G58,0))) -> 0 | BL33: =IF($H$33=test!$B$56,test!H56,IF(Հաշվիչ!$H$33=test!$B$57,test!H57,IF(Հաշվիչ!$H$33=test!$B$58,test!H58,0))) -> 0 | BM33: =IF($H$33=test!$B$56,test!I56,IF(Հաշվիչ!$H$33=test!$B$57,test!I57,IF(Հաշվիչ!$H$33=test!$B$58,test!I58,0))) -> 0 | BN33: =IF($H$33=test!$B$56,test!J56,IF(Հաշվիչ!$H$33=test!$B$57,test!J57,IF(Հաշվիչ!$H$33=test!$B$58,test!J58,0))) -> 0 | BO33: =IF($H$33=test!$B$56,test!K56,IF(Հաշվիչ!$H$33=test!$B$57,test!K57,IF(Հաշվիչ!$H$33=test!$B$58,test!K58,0))) -> 0 | BP33: =IF($H$33=test!$B$56,test!L56,IF(Հաշվիչ!$H$33=test!$B$57,test!L57,IF(Հաշվիչ!$H$33=test!$B$58,test!L58,0))) -> 0 | BQ33: =IF($H$33=test!$B$56,test!M56,IF(Հաշվիչ!$H$33=test!$B$57,test!M57,IF(Հաշվիչ!$H$33=test!$B$58,test!M58,0))) -> 0 | BR33: =IF($H$33=test!$B$56,test!N56,IF(Հաշվիչ!$H$33=test!$B$57,test!N57,IF(Հաշվիչ!$H$33=test!$B$58,test!N58,0))) -> 0 | BS33: =IF($H$33=test!$B$56,test!O56,IF(Հաշվիչ!$H$33=test!$B$57,test!O57,IF(Հաշվիչ!$H$33=test!$B$58,test!O58,0))) -> 0 | BT33: =IF($H$33=test!$B$56,test!P56,IF(Հաշվիչ!$H$33=test!$B$57,test!P57,IF(Հաշվիչ!$H$33=test!$B$58,test!P58,0))) -> 0 | BU33: 0 | BV33: 0 | BW33: 0 | BX33: 0 | BY33: 0 | BZ33: 0 | CA33: 0 | CB33: 0 | CC33: 0 | CD33: 0 | CE33: 0 | CF33: 0 | CG33: 0 | CH33: 0 | CI33: 0 | CJ33: 0 | CK33: 0 | CL33: 0 | CM33: 0 | CN33: 0 | CO33: 0 | CP33: 0 | CQ33: 0 | CR33: 0 | CS33: 0 | CT33: 0 | CU33: 0 | CV33: 0 | CW33: 0 | CX33: 0 | CY33: 0 | CZ33: 0 | DA33: 0 | DB33: 0 | DC33: 0 | DD33: 0 | DE33: 0 | DF33: 0 | DG33: 0 | DH33: 0 | DI33: 0 | DJ33: 0
AA34: =IF(AND($A$1=3, $T$19=400),'Օրական նորմեր'!AF17,IF(AND($A$1=3, $T$19=450),'Օրական նորմեր'!AG17,IF(AND($A$1=3, $T$19=500),'Օրական նորմեր'!AH17,IF(AND($A$1=3, $T$19=550),'Օրական նորմեր'!AI17,IF(AND($A$1=3, $T$19=600),'Օրական նորմեր'!AJ17,IF(AND($A$1=3, $T$19=650),'Օրական նորմեր'!AK17,0)))))) -> 0 | AB34: 0
B35: ԿԱԹ | D35: N/D | F35: 0 | H35: N/D | J35: 0 | L35: 50 | M35: 100 | N35: 0 | O35: 0 | W35: Աղ | X35: =F51 -> 0 | Y35: =IF(AND($A$1=1, $T$19=400),'Օրական նորմեր'!T17,IF(AND($A$1=1, $T$19=450),'Օրական նորմեր'!U17,IF(AND($A$1=1, $T$19=500),'Օրական նորմեր'!V17,IF(AND($A$1=1, $T$19=550),'Օրական նորմեր'!W17,IF(AND($A$1=1, $T$19=600),'Օրական նորմեր'!X17,IF(AND($A$1=1, $T$19=650),'Օրական նորմեր'!Y17,0)))))) -> 54 | Z35: =IF(AND($A$1=2, $T$19=400),'Օրական նորմեր'!Z17,IF(AND($A$1=2, $T$19=450),'Օրական նորմեր'!AA17,IF(AND($A$1=2, $T$19=500),'Օրական նորմեր'!AB17,IF(AND($A$1=2, $T$19=550),'Օրական նորմեր'!AC17,IF(AND($A$1=2, $T$19=600),'Օրական նորմեր'!AD17,IF(AND($A$1=2, $T$19=650),'Օրական նորմեր'!AE17,0)))))) -> 0 | AA35: =IF(AND($A$1=3, $T$19=400),'Օրական նորմեր'!AF17,IF(AND($A$1=3, $T$19=450),'Օրական նորմեր'!AG17,IF(AND($A$1=3, $T$19=500),'Օրական նորմեր'!AH17,IF(AND($A$1=3, $T$19=550),'Օրական նորմեր'!AI17,IF(AND($A$1=3, $T$19=600),'Օրական նորմեր'!AJ17,IF(AND($A$1=3, $T$19=650),'Օրական նորմեր'!AK17,0)))))) -> 0 | AB35: =SUM(Y35:AA35)/1000 -> 0.054 | AC35: -0.054 | AS35: =IF($D$35=test!$B$59,test!C59,IF(Հաշվիչ!$D$35=test!$B$60,test!C60,IF(Հաշվիչ!$D$35=test!$B$61,test!C61,IF(Հաշվիչ!$D$35=test!$B$62,test!C62,IF(Հաշվիչ!$D$35=test!$B$63,test!C63,0))))) -> 0 | AT35: =IF($D$35=test!$B$59,test!D59,IF(Հաշվիչ!$D$35=test!$B$60,test!D60,IF(Հաշվիչ!$D$35=test!$B$61,test!D61,IF(Հաշվիչ!$D$35=test!$B$62,test!D62,IF(Հաշվիչ!$D$35=test!$B$63,test!D63,0))))) -> 0 | AU35: =IF($D$35=test!$B$59,test!E59,IF(Հաշվիչ!$D$35=test!$B$60,test!E60,IF(Հաշվիչ!$D$35=test!$B$61,test!E61,IF(Հաշվիչ!$D$35=test!$B$62,test!E62,IF(Հաշվիչ!$D$35=test!$B$63,test!E63,0))))) -> 0 | AV35: =IF($D$35=test!$B$59,test!F59,IF(Հաշվիչ!$D$35=test!$B$60,test!F60,IF(Հաշվիչ!$D$35=test!$B$61,test!F61,IF(Հաշվիչ!$D$35=test!$B$62,test!F62,IF(Հաշվիչ!$D$35=test!$B$63,test!F63,0))))) -> 0 | AW35: =IF($D$35=test!$B$59,test!G59,IF(Հաշվիչ!$D$35=test!$B$60,test!G60,IF(Հաշվիչ!$D$35=test!$B$61,test!G61,IF(Հաշվիչ!$D$35=test!$B$62,test!G62,IF(Հաշվիչ!$D$35=test!$B$63,test!G63,0))))) -> 0 | AX35: =IF($D$35=test!$B$59,test!H59,IF(Հաշվիչ!$D$35=test!$B$60,test!H60,IF(Հաշվիչ!$D$35=test!$B$61,test!H61,IF(Հաշվիչ!$D$35=test!$B$62,test!H62,IF(Հաշվիչ!$D$35=test!$B$63,test!H63,0))))) -> 0 | AY35: =IF($D$35=test!$B$59,test!I59,IF(Հաշվիչ!$D$35=test!$B$60,test!I60,IF(Հաշվիչ!$D$35=test!$B$61,test!I61,IF(Հաշվիչ!$D$35=test!$B$62,test!I62,IF(Հաշվիչ!$D$35=test!$B$63,test!I63,0))))) -> 0 | AZ35: =IF($D$35=test!$B$59,test!J59,IF(Հաշվիչ!$D$35=test!$B$60,test!J60,IF(Հաշվիչ!$D$35=test!$B$61,test!J61,IF(Հաշվիչ!$D$35=test!$B$62,test!J62,IF(Հաշվիչ!$D$35=test!$B$63,test!J63,0))))) -> 0 | BA35: =IF($D$35=test!$B$59,test!K59,IF(Հաշվիչ!$D$35=test!$B$60,test!K60,IF(Հաշվիչ!$D$35=test!$B$61,test!K61,IF(Հաշվիչ!$D$35=test!$B$62,test!K62,IF(Հաշվիչ!$D$35=test!$B$63,test!K63,0))))) -> 0 | BB35: =IF($D$35=test!$B$59,test!L59,IF(Հաշվիչ!$D$35=test!$B$60,test!L60,IF(Հաշվիչ!$D$35=test!$B$61,test!L61,IF(Հաշվիչ!$D$35=test!$B$62,test!L62,IF(Հաշվիչ!$D$35=test!$B$63,test!L63,0))))) -> 0 | BC35: =IF($D$35=test!$B$59,test!M59,IF(Հաշվիչ!$D$35=test!$B$60,test!M60,IF(Հաշվիչ!$D$35=test!$B$61,test!M61,IF(Հաշվիչ!$D$35=test!$B$62,test!M62,IF(Հաշվիչ!$D$35=test!$B$63,test!M63,0))))) -> 0 | BD35: =IF($D$35=test!$B$59,test!N59,IF(Հաշվիչ!$D$35=test!$B$60,test!N60,IF(Հաշվիչ!$D$35=test!$B$61,test!N61,IF(Հաշվիչ!$D$35=test!$B$62,test!N62,IF(Հաշվիչ!$D$35=test!$B$63,test!N63,0))))) -> 0 | BE35: =IF($D$35=test!$B$59,test!O59,IF(Հաշվիչ!$D$35=test!$B$60,test!O60,IF(Հաշվիչ!$D$35=test!$B$61,test!O61,IF(Հաշվիչ!$D$35=test!$B$62,test!O62,IF(Հաշվիչ!$D$35=test!$B$63,test!O63,0))))) -> 0 | BF35: =IF($D$35=test!$B$59,test!P59,IF(Հաշվիչ!$D$35=test!$B$60,test!P60,IF(Հաշվիչ!$D$35=test!$B$61,test!P61,IF(Հաշվիչ!$D$35=test!$B$62,test!P62,IF(Հաշվիչ!$D$35=test!$B$63,test!P63,0))))) -> 0 | BG35: =IF($H$35=test!$B$59,test!C59,IF(Հաշվիչ!$H$35=test!$B$60,test!C60,IF(Հաշվիչ!$H$35=test!$B$61,test!C61,IF(Հաշվիչ!$H$35=test!$B$62,test!C62,IF(Հաշվիչ!$H$35=test!$B$63,test!C63,0))))) -> 0 | BH35: =IF($H$35=test!$B$59,test!D59,IF(Հաշվիչ!$H$35=test!$B$60,test!D60,IF(Հաշվիչ!$H$35=test!$B$61,test!D61,IF(Հաշվիչ!$H$35=test!$B$62,test!D62,IF(Հաշվիչ!$H$35=test!$B$63,test!D63,0))))) -> 0 | BI35: =IF($H$35=test!$B$59,test!E59,IF(Հաշվիչ!$H$35=test!$B$60,test!E60,IF(Հաշվիչ!$H$35=test!$B$61,test!E61,IF(Հաշվիչ!$H$35=test!$B$62,test!E62,IF(Հաշվիչ!$H$35=test!$B$63,test!E63,0))))) -> 0 | BJ35: =IF($H$35=test!$B$59,test!F59,IF(Հաշվիչ!$H$35=test!$B$60,test!F60,IF(Հաշվիչ!$H$35=test!$B$61,test!F61,IF(Հաշվիչ!$H$35=test!$B$62,test!F62,IF(Հաշվիչ!$H$35=test!$B$63,test!F63,0))))) -> 0 | BK35: =IF($H$35=test!$B$59,test!G59,IF(Հաշվիչ!$H$35=test!$B$60,test!G60,IF(Հաշվիչ!$H$35=test!$B$61,test!G61,IF(Հաշվիչ!$H$35=test!$B$62,test!G62,IF(Հաշվիչ!$H$35=test!$B$63,test!G63,0))))) -> 0 | BL35: =IF($H$35=test!$B$59,test!H59,IF(Հաշվիչ!$H$35=test!$B$60,test!H60,IF(Հաշվիչ!$H$35=test!$B$61,test!H61,IF(Հաշվիչ!$H$35=test!$B$62,test!H62,IF(Հաշվիչ!$H$35=test!$B$63,test!H63,0))))) -> 0 | BM35: =IF($H$35=test!$B$59,test!I59,IF(Հաշվիչ!$H$35=test!$B$60,test!I60,IF(Հաշվիչ!$H$35=test!$B$61,test!I61,IF(Հաշվիչ!$H$35=test!$B$62,test!I62,IF(Հաշվիչ!$H$35=test!$B$63,test!I63,0))))) -> 0 | BN35: =IF($H$35=test!$B$59,test!J59,IF(Հաշվիչ!$H$35=test!$B$60,test!J60,IF(Հաշվիչ!$H$35=test!$B$61,test!J61,IF(Հաշվիչ!$H$35=test!$B$62,test!J62,IF(Հաշվիչ!$H$35=test!$B$63,test!J63,0))))) -> 0 | BO35: =IF($H$35=test!$B$59,test!K59,IF(Հաշվիչ!$H$35=test!$B$60,test!K60,IF(Հաշվիչ!$H$35=test!$B$61,test!K61,IF(Հաշվիչ!$H$35=test!$B$62,test!K62,IF(Հաշվիչ!$H$35=test!$B$63,test!K63,0))))) -> 0 | BP35: =IF($H$35=test!$B$59,test!L59,IF(Հաշվիչ!$H$35=test!$B$60,test!L60,IF(Հաշվիչ!$H$35=test!$B$61,test!L61,IF(Հաշվիչ!$H$35=test!$B$62,test!L62,IF(Հաշվիչ!$H$35=test!$B$63,test!L63,0))))) -> 0 | BQ35: =IF($H$35=test!$B$59,test!M59,IF(Հաշվիչ!$H$35=test!$B$60,test!M60,IF(Հաշվիչ!$H$35=test!$B$61,test!M61,IF(Հաշվիչ!$H$35=test!$B$62,test!M62,IF(Հաշվիչ!$H$35=test!$B$63,test!M63,0))))) -> 0 | BR35: =IF($H$35=test!$B$59,test!N59,IF(Հաշվիչ!$H$35=test!$B$60,test!N60,IF(Հաշվիչ!$H$35=test!$B$61,test!N61,IF(Հաշվիչ!$H$35=test!$B$62,test!N62,IF(Հաշվիչ!$H$35=test!$B$63,test!N63,0))))) -> 0 | BS35: =IF($H$35=test!$B$59,test!O59,IF(Հաշվիչ!$H$35=test!$B$60,test!O60,IF(Հաշվիչ!$H$35=test!$B$61,test!O61,IF(Հաշվիչ!$H$35=test!$B$62,test!O62,IF(Հաշվիչ!$H$35=test!$B$63,test!O63,0))))) -> 0 | BT35: =IF($H$35=test!$B$59,test!P59,IF(Հաշվիչ!$H$35=test!$B$60,test!P60,IF(Հաշվիչ!$H$35=test!$B$61,test!P61,IF(Հաշվիչ!$H$35=test!$B$62,test!P62,IF(Հաշվիչ!$H$35=test!$B$63,test!P63,0))))) -> 0 | BU35: 0 | BV35: 0 | BW35: 0 | BX35: 0 | BY35: 0 | BZ35: 0 | CA35: 0 | CB35: 0 | CC35: 0 | CD35: 0 | CE35: 0 | CF35: 0 | CG35: 0 | CH35: 0 | CI35: 0 | CJ35: 0 | CK35: 0 | CL35: 0 | CM35: 0 | CN35: 0 | CO35: 0 | CP35: 0 | CQ35: 0 | CR35: 0 | CS35: 0 | CT35: 0 | CU35: 0 | CV35: 0 | CW35: 0 | CX35: 0 | CY35: 0 | CZ35: 0 | DA35: 0 | DB35: 0 | DC35: 0 | DD35: 0 | DE35: 0 | DF35: 0 | DG35: 0 | DH35: 0 | DI35: 0 | DJ35: 0
B37: ԱՐՅԱՆ ԱԼՅՈՒՐ | D37: N/D | F37: 0 | L37: 50 | M37: 100 | N37: 0 | O37: 0 | AS37: =IF($D$37=test!$B$64,test!C64,0) -> 0 | AT37: =IF($D$37=test!$B$64,test!D64,0) -> 0 | AU37: =IF($D$37=test!$B$64,test!E64,0) -> 0 | AV37: =IF($D$37=test!$B$64,test!F64,0) -> 0 | AW37: =IF($D$37=test!$B$64,test!G64,0) -> 0 | AX37: =IF($D$37=test!$B$64,test!H64,0) -> 0 | AY37: =IF($D$37=test!$B$64,test!I64,0) -> 0 | AZ37: =IF($D$37=test!$B$64,test!J64,0) -> 0 | BA37: =IF($D$37=test!$B$64,test!K64,0) -> 0 | BB37: =IF($D$37=test!$B$64,test!L64,0) -> 0 | BC37: =IF($D$37=test!$B$64,test!M64,0) -> 0 | BD37: =IF($D$37=test!$B$64,test!N64,0) -> 0 | BE37: =IF($D$37=test!$B$64,test!O64,0) -> 0 | BF37: =IF($D$37=test!$B$64,test!P64,0) -> 0 | BU37: 0 | BV37: 0 | BW37: 0 | BX37: 0 | BY37: 0 | BZ37: 0 | CA37: 0 | CB37: 0 | CC37: 0 | CD37: 0 | CE37: 0 | CF37: 0 | CG37: 0 | CH37: 0 | CW37: 0 | CX37: 0 | CY37: 0 | CZ37: 0 | DA37: 0 | DB37: 0 | DC37: 0 | DD37: 0 | DE37: 0 | DF37: 0 | DG37: 0 | DH37: 0 | DI37: 0 | DJ37: 0
B39: ՄՍԱԼՅՈՒՐ | D39: N/D | F39: 0 | L39: 50 | M39: 100 | N39: 0 | O39: 0 | AS39: =IF($D$39=test!$B$65,test!C65,0) -> 0 | AT39: =IF($D$39=test!$B$65,test!D65,0) -> 0 | AU39: =IF($D$39=test!$B$65,test!E65,0) -> 0 | AV39: =IF($D$39=test!$B$65,test!F65,0) -> 0 | AW39: =IF($D$39=test!$B$65,test!G65,0) -> 0 | AX39: =IF($D$39=test!$B$65,test!H65,0) -> 0 | AY39: =IF($D$39=test!$B$65,test!I65,0) -> 0 | AZ39: =IF($D$39=test!$B$65,test!J65,0) -> 0 | BA39: =IF($D$39=test!$B$65,test!K65,0) -> 0 | BB39: =IF($D$39=test!$B$65,test!L65,0) -> 0 | BC39: =IF($D$39=test!$B$65,test!M65,0) -> 0 | BD39: =IF($D$39=test!$B$65,test!N65,0) -> 0 | BE39: =IF($D$39=test!$B$65,test!O65,0) -> 0 | BF39: =IF($D$39=test!$B$65,test!P65,0) -> 0 | BU39: 0 | BV39: 0 | BW39: 0 | BX39: 0 | BY39: 0 | BZ39: 0 | CA39: 0 | CB39: 0 | CC39: 0 | CD39: 0 | CE39: 0 | CF39: 0 | CG39: 0 | CH39: 0 | CW39: 0 | CX39: 0 | CY39: 0 | CZ39: 0 | DA39: 0 | DB39: 0 | DC39: 0 | DD39: 0 | DE39: 0 | DF39: 0 | DG39: 0 | DH39: 0 | DI39: 0 | DJ39: 0
B41: ՈՍԿՐԱԼՅՈՒՐ | D41: N/D | F41: 0 | L41: 50 | M41: 100 | N41: 0 | O41: 0 | W41: Կաթի գինը (1 լիտր) | X41: Min | AB41: =SUM(N7:N51)/X9 -> 54.99040307 | AS41: =IF($D$41=test!$B$66,test!C66,0) -> 0 | AT41: =IF($D$41=test!$B$66,test!D66,0) -> 0 | AU41: =IF($D$41=test!$B$66,test!E66,0) -> 0 | AV41: =IF($D$41=test!$B$66,test!F66,0) -> 0 | AW41: =IF($D$41=test!$B$66,test!G66,0) -> 0 | AX41: =IF($D$41=test!$B$66,test!H66,0) -> 0 | AY41: =IF($D$41=test!$B$66,test!I66,0) -> 0 | AZ41: =IF($D$41=test!$B$66,test!J66,0) -> 0 | BA41: =IF($D$41=test!$B$66,test!K66,0) -> 0 | BB41: =IF($D$41=test!$B$66,test!L66,0) -> 0 | BC41: =IF($D$41=test!$B$66,test!M66,0) -> 0 | BD41: =IF($D$41=test!$B$66,test!N66,0) -> 0 | BE41: =IF($D$41=test!$B$66,test!O66,0) -> 0 | BF41: =IF($D$41=test!$B$66,test!P66,0) -> 0 | BU41: 0 | BV41: 0 | BW41: 0 | BX41: 0 | BY41: 0 | BZ41: 0 | CA41: 0 | CB41: 0 | CC41: 0 | CD41: 0 | CE41: 0 | CF41: 0 | CG41: 0 | CH41: 0 | CW41: 0 | CX41: 0 | CY41: 0 | CZ41: 0 | DA41: 0 | DB41: 0 | DC41: 0 | DD41: 0 | DE41: 0 | DF41: 0 | DG41: 0 | DH41: 0 | DI41: 0 | DJ41: 0
B43: ՁԿՆԱԼՅՈՒՐ ՃԱՐՊՈՏ | D43: N/D | F43: 0 | L43: 50 | M43: 100 | N43: 0 | O43: 0 | X43: Max | AB43: =SUM(O7:O51)/X9 -> 93.09021113 | AS43: =IF($D$43=test!$B$67,test!C67,0) -> 0 | AT43: =IF($D$43=test!$B$67,test!D67,0) -> 0 | AU43: =IF($D$43=test!$B$67,test!E67,0) -> 0 | AV43: =IF($D$43=test!$B$67,test!F67,0) -> 0 | AW43: =IF($D$43=test!$B$67,test!G67,0) -> 0 | AX43: =IF($D$43=test!$B$67,test!H67,0) -> 0 | AY43: =IF($D$43=test!$B$67,test!I67,0) -> 0 | AZ43: =IF($D$43=test!$B$67,test!J67,0) -> 0 | BA43: =IF($D$43=test!$B$67,test!K67,0) -> 0 | BB43: =IF($D$43=test!$B$67,test!L67,0) -> 0 | BC43: =IF($D$43=test!$B$67,test!M67,0) -> 0 | BD43: =IF($D$43=test!$B$67,test!N67,0) -> 0 | BE43: =IF($D$43=test!$B$67,test!O67,0) -> 0 | BF43: =IF($D$43=test!$B$67,test!P67,0) -> 0 | BU43: 0 | BV43: 0 | BW43: 0 | BX43: 0 | BY43: 0 | BZ43: 0 | CA43: 0 | CB43: 0 | CC43: 0 | CD43: 0 | CE43: 0 | CF43: 0 | CG43: 0 | CH43: 0 | CW43: 0 | CX43: 0 | CY43: 0 | CZ43: 0 | DA43: 0 | DB43: 0 | DC43: 0 | DD43: 0 | DE43: 0 | DF43: 0 | DG43: 0 | DH43: 0 | DI43: 0 | DJ43: 0
B45: ՄՍՈՍԿՐԻ ԱԼՅՈՒՐ | D45: N/D | F45: 0 | L45: 50 | M45: 100 | N45: 0 | O45: 0 | AS45: =IF($D$45=test!$B$68,test!C68,0) -> 0 | AT45: =IF($D$45=test!$B$68,test!D68,0) -> 0 | AU45: =IF($D$45=test!$B$68,test!E68,0) -> 0 | AV45: =IF($D$45=test!$B$68,test!F68,0) -> 0 | AW45: =IF($D$45=test!$B$68,test!G68,0) -> 0 | AX45: =IF($D$45=test!$B$68,test!H68,0) -> 0 | AY45: =IF($D$45=test!$B$68,test!I68,0) -> 0 | AZ45: =IF($D$45=test!$B$68,test!J68,0) -> 0 | BA45: =IF($D$45=test!$B$68,test!K68,0) -> 0 | BB45: =IF($D$45=test!$B$68,test!L68,0) -> 0 | BC45: =IF($D$45=test!$B$68,test!M68,0) -> 0 | BD45: =IF($D$45=test!$B$68,test!N68,0) -> 0 | BE45: =IF($D$45=test!$B$68,test!O68,0) -> 0 | BF45: =IF($D$45=test!$B$68,test!P68,0) -> 0 | BU45: 0 | BV45: 0 | BW45: 0 | BX45: 0 | BY45: 0 | BZ45: 0 | CA45: 0 | CB45: 0 | CC45: 0 | CD45: 0 | CE45: 0 | CF45: 0 | CG45: 0 | CH45: 0 | CW45: 0 | CX45: 0 | CY45: 0 | CZ45: 0 | DA45: 0 | DB45: 0 | DC45: 0 | DD45: 0 | DE45: 0 | DF45: 0 | DG45: 0 | DH45: 0 | DI45: 0 | DJ45: 0
B47: ՁԿՆԱԼՅՈՒՐ ԱՆՃԱՐՊ | D47: N/D | F47: 0 | L47: 50 | M47: 100 | N47: 0 | O47: 0 | W47: Սպասվող ցուցանիշը ըստ ԽԵԿ ցեղի | AB47: =SUM(N7:N51)/(T29/300) -> 49.11428571 | AS47: =IF($D$47=test!$B$69,test!C69,0) -> 0 | AT47: =IF($D$47=test!$B$69,test!D69,0) -> 0 | AU47: =IF($D$47=test!$B$69,test!E69,0) -> 0 | AV47: =IF($D$47=test!$B$69,test!F69,0) -> 0 | AW47: =IF($D$47=test!$B$69,test!G69,0) -> 0 | AX47: =IF($D$47=test!$B$69,test!H69,0) -> 0 | AY47: =IF($D$47=test!$B$69,test!I69,0) -> 0 | AZ47: =IF($D$47=test!$B$69,test!J69,0) -> 0 | BA47: =IF($D$47=test!$B$69,test!K69,0) -> 0 | BB47: =IF($D$47=test!$B$69,test!L69,0) -> 0 | BC47: =IF($D$47=test!$B$69,test!M69,0) -> 0 | BD47: =IF($D$47=test!$B$69,test!N69,0) -> 0 | BE47: =IF($D$47=test!$B$69,test!O69,0) -> 0 | BF47: =IF($D$47=test!$B$69,test!P69,0) -> 0 | BU47: 0 | BV47: 0 | BW47: 0 | BX47: 0 | BY47: 0 | BZ47: 0 | CA47: 0 | CB47: 0 | CC47: 0 | CD47: 0 | CE47: 0 | CF47: 0 | CG47: 0 | CH47: 0 | CW47: 0 | CX47: 0 | CY47: 0 | CZ47: 0 | DA47: 0 | DB47: 0 | DC47: 0 | DD47: 0 | DE47: 0 | DF47: 0 | DG47: 0 | DH47: 0 | DI47: 0 | DJ47: 0
B49: ԳԱՐԵՋՐԻ ԴԻՐՏ | D49: N/D | F49: 0 | L49: 50 | M49: 100 | N49: 0 | O49: 0 | W49: Առավելագույն ցուցանիշը | AB49: =SUM(N7:N51)/(U29/300) -> 38.2 | AS49: =IF($D$49=test!$B$70,test!C70,0) -> 0 | AT49: =IF($D$49=test!$B$70,test!D70,0) -> 0 | AU49: =IF($D$49=test!$B$70,test!E70,0) -> 0 | AV49: =IF($D$49=test!$B$70,test!F70,0) -> 0 | AW49: =IF($D$49=test!$B$70,test!G70,0) -> 0 | AX49: =IF($D$49=test!$B$70,test!H70,0) -> 0 | AY49: =IF($D$49=test!$B$70,test!I70,0) -> 0 | AZ49: =IF($D$49=test!$B$70,test!J70,0) -> 0 | BA49: =IF($D$49=test!$B$70,test!K70,0) -> 0 | BB49: =IF($D$49=test!$B$70,test!L70,0) -> 0 | BC49: =IF($D$49=test!$B$70,test!M70,0) -> 0 | BD49: =IF($D$49=test!$B$70,test!N70,0) -> 0 | BE49: =IF($D$49=test!$B$70,test!O70,0) -> 0 | BF49: =IF($D$49=test!$B$70,test!P70,0) -> 0 | BU49: 0 | BV49: 0 | BW49: 0 | BX49: 0 | BY49: 0 | BZ49: 0 | CA49: 0 | CB49: 0 | CC49: 0 | CD49: 0 | CE49: 0 | CF49: 0 | CG49: 0 | CH49: 0 | CW49: 0 | CX49: 0 | CY49: 0 | CZ49: 0 | DA49: 0 | DB49: 0 | DC49: 0 | DD49: 0 | DE49: 0 | DF49: 0 | DG49: 0 | DH49: 0 | DI49: 0 | DJ49: 0
CW50: =SUM(CW7:CW49) -> 14886 | CX50: =SUM(CX7:CX49) -> 10.42 | CY50: 128.19 | CZ50: 1357 | DA50: 697 | DB50: 4147 | DC50: 2316 | DD50: 249 | DE50: 369 | DF50: 54.5 | DG50: 37.4 | DH50: 122.4 | DI50: 25 | DJ50: 201.6
B51: Աղ | F51: 0 | L51: 80 | M51: 120 | N51: =L51*(J51+F51) -> 0 | O51: 0
